﻿Body Name,Body,Service Area Catergorisation,Service Division Catergorisation,Responsible Unit,Expenses Type,Detailed Expenses Type,Expenses Code,Date,Transaction Number,Amount,Capital / Revenue,Supplier Name,Supplier ID
North East Lincolnshire Council,http://statistics.data.gov.uk/id/local-authority/00FC),Economy And Growth,Regeneration,Clee Hlf Townscape Heritage,Cap Land/Build-Build Enh Wrk,Cap Land/Build-Build Enh Wrk,YA102,21/12/2021,989075,16359,CAPITAL,REDACTED PERSONAL INFORMATION,REDACTED PERSONAL INFORMATION
North East Lincolnshire Council,http://statistics.data.gov.uk/id/local-authority/00FC),Economy And Growth,Regeneration,Clee Hlf Townscape Heritage,Cap Land/Build-Build Enh Wrk,Cap Land/Build-Build Enh Wrk,YA102,20/12/2021,989074,7171,CAPITAL,REDACTED PERSONAL INFORMATION,REDACTED PERSONAL INFORMATION
North East Lincolnshire Council,http://statistics.data.gov.uk/id/local-authority/00FC),Economy And Growth,Regeneration,Clee Hlf Townscape Heritage,Cap Land/Build-Build Enh Wrk,Cap Land/Build-Build Enh Wrk,YA102,21/12/2021,992318,1125,CAPITAL,REDACTED PERSONAL INFORMATION,REDACTED PERSONAL INFORMATION
North East Lincolnshire Council,http://statistics.data.gov.uk/id/local-authority/00FC),Economy And Growth,Regeneration,Clee Hlf Townscape Heritage,Cap Infrastr-Build Enh Wrk,Cap Infrastr-Build Enh Wrk,YC102,14/12/2021,698731,72538.29,CAPITAL,PBS CONSTRUCTION (NORTH EAST) LTD,127459
North East Lincolnshire Council,http://statistics.data.gov.uk/id/local-authority/00FC),Economy And Growth,Regeneration,Clee Hlf Townscape Heritage,Cap Infrastr-Prof Fees,Cap Infrastr-Prof Fees,YC103,21/12/2021,704837,4235.17,CAPITAL,ENGIE SERVICES LTD,133267
North East Lincolnshire Council,http://statistics.data.gov.uk/id/local-authority/00FC),Economy And Growth,Regeneration,Clee Hlf Townscape Heritage,Cap Infrastr-Prof Fees,Cap Infrastr-Prof Fees,YC103,21/12/2021,704838,4235.17,CAPITAL,ENGIE SERVICES LTD,133267
North East Lincolnshire Council,http://statistics.data.gov.uk/id/local-authority/00FC),Economy And Growth,Regeneration,Shiip Scheme,Cap Infrastr-Prof Fees,Cap Infrastr-Prof Fees,YC103,20/12/2021,704511,7150,CAPITAL,JONES LANG LASALLE LIMITED,138438
North East Lincolnshire Council,http://statistics.data.gov.uk/id/local-authority/00FC),Economy And Growth,Regeneration,Shiip Scheme,Cap Infrastr-Prof Fees,Cap Infrastr-Prof Fees,YC103,07/12/2021,701775,4110,CAPITAL,BROWNE JACOBSON LLP,111781
North East Lincolnshire Council,http://statistics.data.gov.uk/id/local-authority/00FC),Economy And Growth,Regeneration,Shiip Scheme,Cap Infrastr-Prof Fees,Cap Infrastr-Prof Fees,YC103,14/12/2021,703948,1000,CAPITAL,LANDMARK CHAMBERS,102475
North East Lincolnshire Council,http://statistics.data.gov.uk/id/local-authority/00FC),Economy And Growth,Regeneration,Shiip Scheme,Cap Infrastr-Build Enh Wrk,Cap Infrastr-Build Enh Wrk,YC102,09/12/2021,702969,257200,CAPITAL,J E SPENCE AND SON LTD,141305
North East Lincolnshire Council,http://statistics.data.gov.uk/id/local-authority/00FC),Economy And Growth,Regeneration,Shiip Scheme,Cap Infrastr-Prof Fees,Cap Infrastr-Prof Fees,YC103,06/12/2021,702042,1269,CAPITAL,ROGER WARDLE,147975
North East Lincolnshire Council,http://statistics.data.gov.uk/id/local-authority/00FC),Economy And Growth,Regeneration,Shiip Scheme,Cap Infrastr-Prof Fees,Cap Infrastr-Prof Fees,YC103,06/12/2021,701861,450,CAPITAL,ROGER WARDLE,147975
North East Lincolnshire Council,http://statistics.data.gov.uk/id/local-authority/00FC),Economy And Growth,Regeneration,Unlocking The Potential,Cap Infrastr-Prof Fees,Cap Infrastr-Prof Fees,YC103,21/12/2021,704969,1477.1,CAPITAL,BEVAN BRITTAN,101819
North East Lincolnshire Council,http://statistics.data.gov.uk/id/local-authority/00FC),Economy And Growth,Regeneration,Town Deal Investment,Cap Land/Build-Build Enh Wrk,Cap Land/Build-Build Enh Wrk,YA102,02/12/2021,701496,641.41,CAPITAL,ENGIE SERVICES LTD,133267
North East Lincolnshire Council,http://statistics.data.gov.uk/id/local-authority/00FC),Economy And Growth,Regeneration,Town Deal Investment,Cap Land/Build-Build Enh Wrk,Cap Land/Build-Build Enh Wrk,YA102,21/12/2021,704982,3816,CAPITAL,TOPCON CONSTRUCTION LTD,108462
North East Lincolnshire Council,http://statistics.data.gov.uk/id/local-authority/00FC),Economy And Growth,Regeneration,Central Clee Regeneration,Cap Infrastr-Build Enh Wrk,Cap Infrastr-Build Enh Wrk,YC102,07/12/2021,701772,1878,CAPITAL,J MCCANN & CO LTD,100841
North East Lincolnshire Council,http://statistics.data.gov.uk/id/local-authority/00FC),Economy And Growth,Regeneration,Cdf - Open For Culture,Cap Land/Build-Build Enh Wrk,Cap Land/Build-Build Enh Wrk,YA102,13/12/2021,703102,3628,CAPITAL,WILKINSON ENVIRONMENTAL LTD,149616
North East Lincolnshire Council,http://statistics.data.gov.uk/id/local-authority/00FC),Economy And Growth,Regeneration,Cdf - Open For Culture,Cap Land/Build-Build Enh Wrk,Cap Land/Build-Build Enh Wrk,YA102,07/12/2021,702442,762,CAPITAL,BROWNE JACOBSON LLP,111781
North East Lincolnshire Council,http://statistics.data.gov.uk/id/local-authority/00FC),Economy And Growth,Regeneration,Cdf - Open For Culture,Cap Land/Build-Build Enh Wrk,Cap Land/Build-Build Enh Wrk,YA102,20/12/2021,704473,2925,CAPITAL,ENGIE SERVICES LTD,133267
North East Lincolnshire Council,http://statistics.data.gov.uk/id/local-authority/00FC),Economy And Growth,Regeneration,Cdf - Open For Culture,Cap Land/Build-Build Enh Wrk,Cap Land/Build-Build Enh Wrk,YA102,21/12/2021,705133,845,CAPITAL,N WOODWARD PAINTING & DECORATING LTD,150392
North East Lincolnshire Council,http://statistics.data.gov.uk/id/local-authority/00FC),Economy And Growth,Regeneration,Cdf - Open For Culture,Cap Land/Build-Build Enh Wrk,Cap Land/Build-Build Enh Wrk,YA102,07/12/2021,701028,37000,CAPITAL,RHODAR LIMITED,107725
North East Lincolnshire Council,http://statistics.data.gov.uk/id/local-authority/00FC),Economy And Growth,Regeneration,Cdf - Open For Culture,Cap Land/Build-Build Enh Wrk,Cap Land/Build-Build Enh Wrk,YA102,22/12/2021,704367,15000,CAPITAL,RHODAR LIMITED,107725
North East Lincolnshire Council,http://statistics.data.gov.uk/id/local-authority/00FC),Economy And Growth,Regeneration,Future High Street Funds,Cap Land/Build-Prof Fees,Cap Land/Build-Prof Fees,YA103,20/12/2021,704573,18925,CAPITAL,AECOM LTD,133565
North East Lincolnshire Council,http://statistics.data.gov.uk/id/local-authority/00FC),Economy And Growth,Regeneration,Towns Fund,Cap Infrastr-Prof Fees,Cap Infrastr-Prof Fees,YC103,14/12/2021,703281,5476,CAPITAL,AMION CONSULTING LTD,148155
North East Lincolnshire Council,http://statistics.data.gov.uk/id/local-authority/00FC),Economy And Growth,Housing Highways And Transport,Local Transport Plan Schemes,Cap Infrastr-Build Enh Wrk,Cap Infrastr-Build Enh Wrk,YC102,06/12/2021,702016,855,CAPITAL,ONEWAY TM LIMITED,128602
North East Lincolnshire Council,http://statistics.data.gov.uk/id/local-authority/00FC),Economy And Growth,Housing Highways And Transport,Local Transport Plan Schemes,Cap Infrastr-Build Enh Wrk,Cap Infrastr-Build Enh Wrk,YC102,07/12/2021,701746,2412.54,CAPITAL,J MCCANN & CO LTD,100841
North East Lincolnshire Council,http://statistics.data.gov.uk/id/local-authority/00FC),Economy And Growth,Housing Highways And Transport,Local Transport Plan Schemes,Cap Infrastr-Build Enh Wrk,Cap Infrastr-Build Enh Wrk,YC102,17/12/2021,704355,2859.7,CAPITAL,J MCCANN & CO LTD,100841
North East Lincolnshire Council,http://statistics.data.gov.uk/id/local-authority/00FC),Economy And Growth,Housing Highways And Transport,Local Transport Plan Schemes,Cap Infrastr-Build Enh Wrk,Cap Infrastr-Build Enh Wrk,YC102,17/12/2021,704354,660.01,CAPITAL,J MCCANN & CO LTD,100841
North East Lincolnshire Council,http://statistics.data.gov.uk/id/local-authority/00FC),Economy And Growth,Housing Highways And Transport,Local Transport Plan Schemes,Cap Infrastr-Build Enh Wrk,Cap Infrastr-Build Enh Wrk,YC102,07/12/2021,701650,2995,CAPITAL,CLS CIVIL ENGINEERING LTD,146425
North East Lincolnshire Council,http://statistics.data.gov.uk/id/local-authority/00FC),Economy And Growth,Housing Highways And Transport,Local Transport Plan Schemes,Cap Land/Build-Build Enh Wrk,Cap Land/Build-Build Enh Wrk,YA102,07/12/2021,701754,1802.03,CAPITAL,J MCCANN & CO LTD,100841
North East Lincolnshire Council,http://statistics.data.gov.uk/id/local-authority/00FC),Economy And Growth,Housing Highways And Transport,Local Transport Plan Schemes,Cap Land/Build-Build Enh Wrk,Cap Land/Build-Build Enh Wrk,YA102,17/12/2021,704355,3553.88,CAPITAL,J MCCANN & CO LTD,100841
North East Lincolnshire Council,http://statistics.data.gov.uk/id/local-authority/00FC),Economy And Growth,Housing Highways And Transport,Local Transport Plan Schemes,Cap Land/Build-Build Enh Wrk,Cap Land/Build-Build Enh Wrk,YA102,17/12/2021,704354,5350.37,CAPITAL,J MCCANN & CO LTD,100841
North East Lincolnshire Council,http://statistics.data.gov.uk/id/local-authority/00FC),Economy And Growth,Housing Highways And Transport,Local Transport Plan Schemes,Cap Infrastr-Build Enh Wrk,Cap Infrastr-Build Enh Wrk,YC102,01/12/2021,700994,2300,CAPITAL,ONEWAY TM LIMITED,128602
North East Lincolnshire Council,http://statistics.data.gov.uk/id/local-authority/00FC),Economy And Growth,Housing Highways And Transport,Local Transport Plan Schemes,Cap Land/Build-Build Enh Wrk,Cap Land/Build-Build Enh Wrk,YA102,09/12/2021,699491,5290,CAPITAL,ALMEGA PROMOTIONAL GIFTS LTD,129985
North East Lincolnshire Council,http://statistics.data.gov.uk/id/local-authority/00FC),Economy And Growth,Housing Highways And Transport,Local Transport Plan Schemes,Cap Land/Build-Build Enh Wrk,Cap Land/Build-Build Enh Wrk,YA102,09/12/2021,699491,3095,CAPITAL,ALMEGA PROMOTIONAL GIFTS LTD,129985
North East Lincolnshire Council,http://statistics.data.gov.uk/id/local-authority/00FC),Economy And Growth,Housing Highways And Transport,Local Transport Plan Schemes,Cap Land/Build-Build Enh Wrk,Cap Land/Build-Build Enh Wrk,YA102,09/12/2021,699491,850,CAPITAL,ALMEGA PROMOTIONAL GIFTS LTD,129985
North East Lincolnshire Council,http://statistics.data.gov.uk/id/local-authority/00FC),Economy And Growth,Housing Highways And Transport,Local Transport Plan Schemes,Cap Land/Build-Build Enh Wrk,Cap Land/Build-Build Enh Wrk,YA102,09/12/2021,699491,2020,CAPITAL,ALMEGA PROMOTIONAL GIFTS LTD,129985
North East Lincolnshire Council,http://statistics.data.gov.uk/id/local-authority/00FC),Economy And Growth,Housing Highways And Transport,Local Transport Plan Schemes,Cap Infrastr-Purchase,Cap Infrastr-Purchase,YC101,07/12/2021,701746,1854.51,CAPITAL,J MCCANN & CO LTD,100841
North East Lincolnshire Council,http://statistics.data.gov.uk/id/local-authority/00FC),Economy And Growth,Housing Highways And Transport,Local Transport Plan Schemes,Cap Infrastr-Build Enh Wrk,Cap Infrastr-Build Enh Wrk,YC102,06/12/2021,701855,2567.82,CAPITAL,SOUTHAM SERVICES (LINCS) LTD,140951
North East Lincolnshire Council,http://statistics.data.gov.uk/id/local-authority/00FC),Economy And Growth,Housing Highways And Transport,Local Transport Plan Schemes,Cap Infrastr-Build Enh Wrk,Cap Infrastr-Build Enh Wrk,YC102,10/12/2021,702976,48951.67,CAPITAL,CADENT GAS LIMITED,138392
North East Lincolnshire Council,http://statistics.data.gov.uk/id/local-authority/00FC),Economy And Growth,Housing Highways And Transport,Housing Assist Grants And Loan,Cap Grants To O/Side Sources,Cap Grants To O/Side Sources,YJ101,21/12/2021,704895,1167.6,CAPITAL,ENGIE SERVICES LTD,133267
North East Lincolnshire Council,http://statistics.data.gov.uk/id/local-authority/00FC),Economy And Growth,Housing Highways And Transport,Housing Assist Grants And Loan,Cap Grants To O/Side Sources,Cap Grants To O/Side Sources,YJ101,16/12/2021,704035,6000,CAPITAL,P & P PLUMBING & HEATING SERVICES (UK) LTD,142857
North East Lincolnshire Council,http://statistics.data.gov.uk/id/local-authority/00FC),Economy And Growth,Housing Highways And Transport,Housing Assist Grants And Loan,Cap Grants To O/Side Sources,Cap Grants To O/Side Sources,YJ101,16/12/2021,703141,2850,CAPITAL,EAST MARSH CONSTRUCTION CIC,146757
North East Lincolnshire Council,http://statistics.data.gov.uk/id/local-authority/00FC),Economy And Growth,Housing Highways And Transport,Housing Assist Grants And Loan,Cap Grants To O/Side Sources,Cap Grants To O/Side Sources,YJ101,16/12/2021,703140,2727,CAPITAL,EAST MARSH CONSTRUCTION CIC,146757
North East Lincolnshire Council,http://statistics.data.gov.uk/id/local-authority/00FC),Economy And Growth,Housing Highways And Transport,Gllep Junction Improvement,Cap Infrastr-Purchase,Cap Infrastr-Purchase,YC101,17/12/2021,694325,80660.23,CAPITAL,C R REYNOLDS (CONSTRUCTION) LTD,103021
North East Lincolnshire Council,http://statistics.data.gov.uk/id/local-authority/00FC),Economy And Growth,Housing Highways And Transport,Accelerated Cons Funding,Cap Land/Build-Build Enh Wrk,Cap Land/Build-Build Enh Wrk,YA102,21/12/2021,704642,1654.8,CAPITAL,ANGLIAN WATER SERVICES LIMITED,125923
North East Lincolnshire Council,http://statistics.data.gov.uk/id/local-authority/00FC),Economy And Growth,Housing Highways And Transport,Accelerated Cons Funding,Cap Land/Build-Build Enh Wrk,Cap Land/Build-Build Enh Wrk,YA102,09/12/2021,702541,21827,CAPITAL,CADENT GAS LIMITED,138392
North East Lincolnshire Council,http://statistics.data.gov.uk/id/local-authority/00FC),Economy And Growth,Housing Highways And Transport,Accelerated Cons Funding,Cap Land/Build-Build Enh Wrk,Cap Land/Build-Build Enh Wrk,YA102,10/12/2021,703019,945.86,CAPITAL,VIRGIN MEDIA LTD,101831
North East Lincolnshire Council,http://statistics.data.gov.uk/id/local-authority/00FC),Resources,Law Governance And Assets,Backlog Maintenance,Cap Land/Build-Build Enh Wrk,Cap Land/Build-Build Enh Wrk,YA102,20/12/2021,704687,1294,CAPITAL,ENGIE SERVICES LTD,133267
North East Lincolnshire Council,http://statistics.data.gov.uk/id/local-authority/00FC),Resources,Law Governance And Assets,Backlog Maintenance,Cap Land/Build-Prof Fees,Cap Land/Build-Prof Fees,YA103,15/12/2021,695895,743.1,CAPITAL,FADING FOOTPRINTS LTD,141476
North East Lincolnshire Council,http://statistics.data.gov.uk/id/local-authority/00FC),Resources,Law Governance And Assets,Backlog Maintenance,Cap Land/Build-Prof Fees,Cap Land/Build-Prof Fees,YA103,16/12/2021,704093,5326.7,CAPITAL,FADING FOOTPRINTS LTD,141476
North East Lincolnshire Council,http://statistics.data.gov.uk/id/local-authority/00FC),Resources,Law Governance And Assets,Backlog Maintenance,Cap Land/Build-Build Enh Wrk,Cap Land/Build-Build Enh Wrk,YA102,02/12/2021,701579,1715,CAPITAL,ENGIE SERVICES LTD,133267
North East Lincolnshire Council,http://statistics.data.gov.uk/id/local-authority/00FC),Resources,Law Governance And Assets,Backlog Maintenance,Cap Land/Build-Build Enh Wrk,Cap Land/Build-Build Enh Wrk,YA102,02/12/2021,701561,2496,CAPITAL,ENGIE SERVICES LTD,133267
North East Lincolnshire Council,http://statistics.data.gov.uk/id/local-authority/00FC),Resources,Law Governance And Assets,Backlog Maintenance,Cap Land/Build-Build Enh Wrk,Cap Land/Build-Build Enh Wrk,YA102,02/12/2021,701570,875,CAPITAL,ENGIE SERVICES LTD,133267
North East Lincolnshire Council,http://statistics.data.gov.uk/id/local-authority/00FC),Resources,Law Governance And Assets,Backlog Maintenance,Cap Land/Build-Build Enh Wrk,Cap Land/Build-Build Enh Wrk,YA102,20/12/2021,704685,400,CAPITAL,ENGIE SERVICES LTD,133267
North East Lincolnshire Council,http://statistics.data.gov.uk/id/local-authority/00FC),Resources,Law Governance And Assets,Backlog Maintenance,Cap Land/Build-Build Enh Wrk,Cap Land/Build-Build Enh Wrk,YA102,20/12/2021,704682,2816,CAPITAL,ENGIE SERVICES LTD,133267
North East Lincolnshire Council,http://statistics.data.gov.uk/id/local-authority/00FC),Resources,Law Governance And Assets,Backlog Maintenance,Cap Land/Build-Build Enh Wrk,Cap Land/Build-Build Enh Wrk,YA102,01/12/2021,700998,500,CAPITAL,ENGIE SERVICES LTD,133267
North East Lincolnshire Council,http://statistics.data.gov.uk/id/local-authority/00FC),Resources,Law Governance And Assets,Backlog Maintenance,Cap Land/Build-Prof Fees,Cap Land/Build-Prof Fees,YA103,20/12/2021,704510,477.5,CAPITAL,ENGIE SERVICES LTD,133267
North East Lincolnshire Council,http://statistics.data.gov.uk/id/local-authority/00FC),Resources,Law Governance And Assets,Backlog Maintenance,Cap Land/Build-Build Enh Wrk,Cap Land/Build-Build Enh Wrk,YA102,20/12/2021,704507,3103.61,CAPITAL,ENGIE SERVICES LTD,133267
North East Lincolnshire Council,http://statistics.data.gov.uk/id/local-authority/00FC),Resources,Law Governance And Assets,Backlog Maintenance,Cap Land/Build-Build Enh Wrk,Cap Land/Build-Build Enh Wrk,YA102,02/12/2021,701569,425,CAPITAL,ENGIE SERVICES LTD,133267
North East Lincolnshire Council,http://statistics.data.gov.uk/id/local-authority/00FC),Resources,Law Governance And Assets,Backlog Maintenance,Cap Land/Build-Build Enh Wrk,Cap Land/Build-Build Enh Wrk,YA102,21/12/2021,704683,1375,CAPITAL,ENGIE SERVICES LTD,133267
North East Lincolnshire Council,http://statistics.data.gov.uk/id/local-authority/00FC),Resources,Law Governance And Assets,Backlog Maintenance,Cap Land/Build-Build Enh Wrk,Cap Land/Build-Build Enh Wrk,YA102,16/12/2021,704032,2370,CAPITAL,TRUEFIX CEILING LTD,127766
North East Lincolnshire Council,http://statistics.data.gov.uk/id/local-authority/00FC),Resources,Law Governance And Assets,Backlog Maintenance,Cap Land/Build-Build Enh Wrk,Cap Land/Build-Build Enh Wrk,YA102,02/12/2021,701568,6598.9,CAPITAL,ENGIE SERVICES LTD,133267
North East Lincolnshire Council,http://statistics.data.gov.uk/id/local-authority/00FC),Resources,Law Governance And Assets,Backlog Maintenance,Cap Land/Build-Build Enh Wrk,Cap Land/Build-Build Enh Wrk,YA102,20/12/2021,704684,1245,CAPITAL,ENGIE SERVICES LTD,133267
North East Lincolnshire Council,http://statistics.data.gov.uk/id/local-authority/00FC),Resources,Law Governance And Assets,Backlog Maintenance,Cap Land/Build-Prof Fees,Cap Land/Build-Prof Fees,YA103,20/12/2021,704508,2048.9,CAPITAL,ENGIE SERVICES LTD,133267
North East Lincolnshire Council,http://statistics.data.gov.uk/id/local-authority/00FC),Resources,Law Governance And Assets,Backlog Maintenance,Cap Land/Build-Prof Fees,Cap Land/Build-Prof Fees,YA103,20/12/2021,704578,300,CAPITAL,ENGIE SERVICES LTD,133267
North East Lincolnshire Council,http://statistics.data.gov.uk/id/local-authority/00FC),Resources,Law Governance And Assets,Backlog Maintenance,Cap Land/Build-Build Enh Wrk,Cap Land/Build-Build Enh Wrk,YA102,20/12/2021,704505,1886.5,CAPITAL,ENGIE SERVICES LTD,133267
North East Lincolnshire Council,http://statistics.data.gov.uk/id/local-authority/00FC),Resources,Law Governance And Assets,Backlog Maintenance,Cap Land/Build-Build Enh Wrk,Cap Land/Build-Build Enh Wrk,YA102,20/12/2021,704506,1465,CAPITAL,ENGIE SERVICES LTD,133267
North East Lincolnshire Council,http://statistics.data.gov.uk/id/local-authority/00FC),Resources,Law Governance And Assets,Property Rationalisation Prog,Cap Land/Build-Build Enh Wrk,Cap Land/Build-Build Enh Wrk,YA102,10/12/2021,703115,913,CAPITAL,ELLGIA LIMITED,101433
North East Lincolnshire Council,http://statistics.data.gov.uk/id/local-authority/00FC),Resources,Law Governance And Assets,Playing Pitch Reprovision,Cap Land/Build-Prof Fees,Cap Land/Build-Prof Fees,YA103,09/12/2021,702966,1617.3,CAPITAL,ALLEN ARCHAEOLOGY LTD,149431
North East Lincolnshire Council,http://statistics.data.gov.uk/id/local-authority/00FC),Resources,Law Governance And Assets,Playing Pitch Reprovision,Cap Land/Build-Prof Fees,Cap Land/Build-Prof Fees,YA103,08/12/2021,700959,4764.9,CAPITAL,SOLITECHNICS LTD,150162
North East Lincolnshire Council,http://statistics.data.gov.uk/id/local-authority/00FC),Resources,Policy Strategy And Resources,Ict Refresh,Cap Land/Build-Build Enh Wrk,Cap Land/Build-Build Enh Wrk,YA102,14/12/2021,703367,252.43,CAPITAL,REDCENTRIC SOLUTIONS LTD,144852
North East Lincolnshire Council,http://statistics.data.gov.uk/id/local-authority/00FC),Resources,Policy Strategy And Resources,Ict Refresh,Cap Land/Build-Build Enh Wrk,Cap Land/Build-Build Enh Wrk,YA102,10/12/2021,703070,1100,CAPITAL,TOTAL COMPUTER NETWORKS LTD,141310
North East Lincolnshire Council,http://statistics.data.gov.uk/id/local-authority/00FC),Resources,Policy Strategy And Resources,Ict Refresh,Cap Land/Build-Build Enh Wrk,Cap Land/Build-Build Enh Wrk,YA102,13/12/2021,703278,4757.25,CAPITAL,XMA LIMITED,100699
North East Lincolnshire Council,http://statistics.data.gov.uk/id/local-authority/00FC),Resources,Policy Strategy And Resources,Ict Refresh,Cap Land/Build-Build Enh Wrk,Cap Land/Build-Build Enh Wrk,YA102,13/12/2021,703235,1430,CAPITAL,TOTAL COMPUTER NETWORKS LTD,141310
North East Lincolnshire Council,http://statistics.data.gov.uk/id/local-authority/00FC),Resources,Policy Strategy And Resources,Ict Refresh,Cap Land/Build-Build Enh Wrk,Cap Land/Build-Build Enh Wrk,YA102,06/12/2021,696836,3357,CAPITAL,END2END SERVICES LTD,136807
North East Lincolnshire Council,http://statistics.data.gov.uk/id/local-authority/00FC),Resources,Policy Strategy And Resources,Ict Refresh,Cap Intangible Assets,Cap Intangible Assets,YH101,08/12/2021,694684,2777.78,CAPITAL,CISILION LTD,148323
North East Lincolnshire Council,http://statistics.data.gov.uk/id/local-authority/00FC),Resources,Policy Strategy And Resources,System Investment,Cap Veh Plt Eqp-Purchase,Cap Veh Plt Eqp-Purchase,YB101,10/12/2021,703034,1080,CAPITAL,MIDLAND SOFTWARE LTD,102633
North East Lincolnshire Council,http://statistics.data.gov.uk/id/local-authority/00FC),Resources,Policy Strategy And Resources,System Investment,Cap Veh Plt Eqp-Purchase,Cap Veh Plt Eqp-Purchase,YB101,21/12/2021,705729,768,CAPITAL,MIDLAND SOFTWARE LTD,102633
North East Lincolnshire Council,http://statistics.data.gov.uk/id/local-authority/00FC),Resources,Policy Strategy And Resources,System Investment,Cap Veh Plt Eqp-Purchase,Cap Veh Plt Eqp-Purchase,YB101,21/12/2021,705730,384,CAPITAL,MIDLAND SOFTWARE LTD,102633
North East Lincolnshire Council,http://statistics.data.gov.uk/id/local-authority/00FC),Resources,Policy Strategy And Resources,System Investment,Cap Veh Plt Eqp-Purchase,Cap Veh Plt Eqp-Purchase,YB101,21/12/2021,705732,384,CAPITAL,MIDLAND SOFTWARE LTD,102633
North East Lincolnshire Council,http://statistics.data.gov.uk/id/local-authority/00FC),Resources,Policy Strategy And Resources,System Investment,Cap Veh Plt Eqp-Purchase,Cap Veh Plt Eqp-Purchase,YB101,20/12/2021,704523,3695,CAPITAL,MIDLAND SOFTWARE LTD,102633
North East Lincolnshire Council,http://statistics.data.gov.uk/id/local-authority/00FC),Resources,Policy Strategy And Resources,System Investment,Cap Veh Plt Eqp-Purchase,Cap Veh Plt Eqp-Purchase,YB101,20/12/2021,704523,3206.25,CAPITAL,MIDLAND SOFTWARE LTD,102633
North East Lincolnshire Council,http://statistics.data.gov.uk/id/local-authority/00FC),Resources,Policy Strategy And Resources,System Investment,Cap Veh Plt Eqp-Purchase,Cap Veh Plt Eqp-Purchase,YB101,20/12/2021,704522,746.66,CAPITAL,MIDLAND SOFTWARE LTD,102633
North East Lincolnshire Council,http://statistics.data.gov.uk/id/local-authority/00FC),Resources,Policy Strategy And Resources,System Investment,Cap Veh Plt Eqp-Purchase,Cap Veh Plt Eqp-Purchase,YB101,20/12/2021,704525,9000,CAPITAL,MIDLAND SOFTWARE LTD,102633
North East Lincolnshire Council,http://statistics.data.gov.uk/id/local-authority/00FC),Resources,Policy Strategy And Resources,System Investment,Cap Veh Plt Eqp-Purchase,Cap Veh Plt Eqp-Purchase,YB101,21/12/2021,705731,293.75,CAPITAL,MIDLAND SOFTWARE LTD,102633
North East Lincolnshire Council,http://statistics.data.gov.uk/id/local-authority/00FC),Resources,Policy Strategy And Resources,System Investment,Cap Infrastr-Prof Fees,Cap Infrastr-Prof Fees,YC103,10/12/2021,703034,544.53,CAPITAL,MIDLAND SOFTWARE LTD,102633
North East Lincolnshire Council,http://statistics.data.gov.uk/id/local-authority/00FC),Resources,Policy Strategy And Resources,System Investment,Cap Infrastr-Prof Fees,Cap Infrastr-Prof Fees,YC103,10/12/2021,703033,544.53,CAPITAL,MIDLAND SOFTWARE LTD,102633
North East Lincolnshire Council,http://statistics.data.gov.uk/id/local-authority/00FC),Environment,Environment,Fleet Replacement Programme,Cap Veh Plt Eqp-Purchase,Cap Veh Plt Eqp-Purchase,YB101,20/12/2021,704540,1488.75,CAPITAL,CTRACK UK LTD,147152
North East Lincolnshire Council,http://statistics.data.gov.uk/id/local-authority/00FC),Environment,Environment,Fleet Replacement Programme,Cap Veh Plt Eqp-Purchase,Cap Veh Plt Eqp-Purchase,YB101,20/12/2021,701642,1504,CAPITAL,DENNIS EAGLE LTD,100627
North East Lincolnshire Council,http://statistics.data.gov.uk/id/local-authority/00FC),Environment,Environment,Fleet Replacement Programme,Cap Veh Plt Eqp-Purchase,Cap Veh Plt Eqp-Purchase,YB101,20/12/2021,701644,1504,CAPITAL,DENNIS EAGLE LTD,100627
North East Lincolnshire Council,http://statistics.data.gov.uk/id/local-authority/00FC),Environment,Environment,Fleet Replacement Programme,Cap Veh Plt Eqp-Purchase,Cap Veh Plt Eqp-Purchase,YB101,20/12/2021,700773,1504,CAPITAL,DENNIS EAGLE LTD,100627
North East Lincolnshire Council,http://statistics.data.gov.uk/id/local-authority/00FC),Environment,Environment,Fleet Replacement Programme,Cap Veh Plt Eqp-Purchase,Cap Veh Plt Eqp-Purchase,YB101,20/12/2021,700774,1504,CAPITAL,DENNIS EAGLE LTD,100627
North East Lincolnshire Council,http://statistics.data.gov.uk/id/local-authority/00FC),Environment,Environment,Fleet Replacement Programme,Cap Veh Plt Eqp-Purchase,Cap Veh Plt Eqp-Purchase,YB101,20/12/2021,701643,1504,CAPITAL,DENNIS EAGLE LTD,100627
North East Lincolnshire Council,http://statistics.data.gov.uk/id/local-authority/00FC),Environment,Environment,Fleet Replacement Programme,Cap Veh Plt Eqp-Purchase,Cap Veh Plt Eqp-Purchase,YB101,20/12/2021,701642,191470,CAPITAL,DENNIS EAGLE LTD,100627
North East Lincolnshire Council,http://statistics.data.gov.uk/id/local-authority/00FC),Environment,Environment,Fleet Replacement Programme,Cap Veh Plt Eqp-Purchase,Cap Veh Plt Eqp-Purchase,YB101,20/12/2021,701644,191470,CAPITAL,DENNIS EAGLE LTD,100627
North East Lincolnshire Council,http://statistics.data.gov.uk/id/local-authority/00FC),Environment,Environment,Fleet Replacement Programme,Cap Veh Plt Eqp-Purchase,Cap Veh Plt Eqp-Purchase,YB101,20/12/2021,700773,191470,CAPITAL,DENNIS EAGLE LTD,100627
North East Lincolnshire Council,http://statistics.data.gov.uk/id/local-authority/00FC),Environment,Environment,Fleet Replacement Programme,Cap Veh Plt Eqp-Purchase,Cap Veh Plt Eqp-Purchase,YB101,20/12/2021,700774,191470,CAPITAL,DENNIS EAGLE LTD,100627
North East Lincolnshire Council,http://statistics.data.gov.uk/id/local-authority/00FC),Environment,Environment,Fleet Replacement Programme,Cap Veh Plt Eqp-Purchase,Cap Veh Plt Eqp-Purchase,YB101,20/12/2021,701643,191470,CAPITAL,DENNIS EAGLE LTD,100627
North East Lincolnshire Council,http://statistics.data.gov.uk/id/local-authority/00FC),Environment,Environment,Fleet Replacement Programme,Cap Veh Plt Eqp-Purchase,Cap Veh Plt Eqp-Purchase,YB101,20/12/2021,701642,1667,CAPITAL,DENNIS EAGLE LTD,100627
North East Lincolnshire Council,http://statistics.data.gov.uk/id/local-authority/00FC),Environment,Environment,Fleet Replacement Programme,Cap Veh Plt Eqp-Purchase,Cap Veh Plt Eqp-Purchase,YB101,20/12/2021,701644,1667,CAPITAL,DENNIS EAGLE LTD,100627
North East Lincolnshire Council,http://statistics.data.gov.uk/id/local-authority/00FC),Environment,Environment,Fleet Replacement Programme,Cap Veh Plt Eqp-Purchase,Cap Veh Plt Eqp-Purchase,YB101,20/12/2021,700773,1667,CAPITAL,DENNIS EAGLE LTD,100627
North East Lincolnshire Council,http://statistics.data.gov.uk/id/local-authority/00FC),Environment,Environment,Fleet Replacement Programme,Cap Veh Plt Eqp-Purchase,Cap Veh Plt Eqp-Purchase,YB101,20/12/2021,700774,1667,CAPITAL,DENNIS EAGLE LTD,100627
North East Lincolnshire Council,http://statistics.data.gov.uk/id/local-authority/00FC),Environment,Environment,Fleet Replacement Programme,Cap Veh Plt Eqp-Purchase,Cap Veh Plt Eqp-Purchase,YB101,20/12/2021,701643,1667,CAPITAL,DENNIS EAGLE LTD,100627
North East Lincolnshire Council,http://statistics.data.gov.uk/id/local-authority/00FC),Environment,Environment,Fleet Replacement Programme,Cap Veh Plt Eqp-Purchase,Cap Veh Plt Eqp-Purchase,YB101,20/12/2021,701642,2727,CAPITAL,DENNIS EAGLE LTD,100627
North East Lincolnshire Council,http://statistics.data.gov.uk/id/local-authority/00FC),Environment,Environment,Fleet Replacement Programme,Cap Veh Plt Eqp-Purchase,Cap Veh Plt Eqp-Purchase,YB101,20/12/2021,701644,2727,CAPITAL,DENNIS EAGLE LTD,100627
North East Lincolnshire Council,http://statistics.data.gov.uk/id/local-authority/00FC),Environment,Environment,Fleet Replacement Programme,Cap Veh Plt Eqp-Purchase,Cap Veh Plt Eqp-Purchase,YB101,20/12/2021,700773,2727,CAPITAL,DENNIS EAGLE LTD,100627
North East Lincolnshire Council,http://statistics.data.gov.uk/id/local-authority/00FC),Environment,Environment,Fleet Replacement Programme,Cap Veh Plt Eqp-Purchase,Cap Veh Plt Eqp-Purchase,YB101,20/12/2021,700774,2727,CAPITAL,DENNIS EAGLE LTD,100627
North East Lincolnshire Council,http://statistics.data.gov.uk/id/local-authority/00FC),Environment,Environment,Fleet Replacement Programme,Cap Veh Plt Eqp-Purchase,Cap Veh Plt Eqp-Purchase,YB101,20/12/2021,701643,2727,CAPITAL,DENNIS EAGLE LTD,100627
North East Lincolnshire Council,http://statistics.data.gov.uk/id/local-authority/00FC),Environment,Environment,Fleet Replacement Programme,Cap Veh Plt Eqp-Purchase,Cap Veh Plt Eqp-Purchase,YB101,20/12/2021,701642,1646,CAPITAL,DENNIS EAGLE LTD,100627
North East Lincolnshire Council,http://statistics.data.gov.uk/id/local-authority/00FC),Environment,Environment,Fleet Replacement Programme,Cap Veh Plt Eqp-Purchase,Cap Veh Plt Eqp-Purchase,YB101,20/12/2021,701644,1646,CAPITAL,DENNIS EAGLE LTD,100627
North East Lincolnshire Council,http://statistics.data.gov.uk/id/local-authority/00FC),Environment,Environment,Fleet Replacement Programme,Cap Veh Plt Eqp-Purchase,Cap Veh Plt Eqp-Purchase,YB101,20/12/2021,700773,1646,CAPITAL,DENNIS EAGLE LTD,100627
North East Lincolnshire Council,http://statistics.data.gov.uk/id/local-authority/00FC),Environment,Environment,Fleet Replacement Programme,Cap Veh Plt Eqp-Purchase,Cap Veh Plt Eqp-Purchase,YB101,20/12/2021,700774,1646,CAPITAL,DENNIS EAGLE LTD,100627
North East Lincolnshire Council,http://statistics.data.gov.uk/id/local-authority/00FC),Environment,Environment,Fleet Replacement Programme,Cap Veh Plt Eqp-Purchase,Cap Veh Plt Eqp-Purchase,YB101,20/12/2021,701643,1646,CAPITAL,DENNIS EAGLE LTD,100627
North East Lincolnshire Council,http://statistics.data.gov.uk/id/local-authority/00FC),Environment,Environment,Fleet Replacement Programme,Cap Veh Plt Eqp-Purchase,Cap Veh Plt Eqp-Purchase,YB101,21/12/2021,703988,550,CAPITAL,DENNIS EAGLE LTD,100627
North East Lincolnshire Council,http://statistics.data.gov.uk/id/local-authority/00FC),Environment,Environment,Fleet Replacement Programme,Cap Veh Plt Eqp-Purchase,Cap Veh Plt Eqp-Purchase,YB101,21/12/2021,703988,3048,CAPITAL,DENNIS EAGLE LTD,100627
North East Lincolnshire Council,http://statistics.data.gov.uk/id/local-authority/00FC),Environment,Environment,Fleet Replacement Programme,Cap Veh Plt Eqp-Purchase,Cap Veh Plt Eqp-Purchase,YB101,20/12/2021,704542,8932.5,CAPITAL,CTRACK UK LTD,147152
North East Lincolnshire Council,http://statistics.data.gov.uk/id/local-authority/00FC),Environment,Environment,Fleet Replacement Programme,Cap Veh Plt Eqp-Purchase,Cap Veh Plt Eqp-Purchase,YB101,16/12/2021,702680,955,CAPITAL,SIGN OF THE TIMES,100575
North East Lincolnshire Council,http://statistics.data.gov.uk/id/local-authority/00FC),Environment,Environment,Fleet Replacement Programme,Cap Veh Plt Eqp-Purchase,Cap Veh Plt Eqp-Purchase,YB101,10/12/2021,701750,7560,CAPITAL,MGB,101544
North East Lincolnshire Council,http://statistics.data.gov.uk/id/local-authority/00FC),Environment,Environment,Litter Bin Upgrade Plan,Cap Land/Build-Build Enh Wrk,Cap Land/Build-Build Enh Wrk,YA102,20/12/2021,704700,1849.9,CAPITAL,GLASDON UK LTD,100531
North East Lincolnshire Council,http://statistics.data.gov.uk/id/local-authority/00FC),Environment,Environment,Enhancement Bereavement Serv,Cap Land/Build-Build Enh Wrk,Cap Land/Build-Build Enh Wrk,YA102,17/12/2021,704353,47643.13,CAPITAL,TOPCON BUILDING LTD,144162
North East Lincolnshire Council,http://statistics.data.gov.uk/id/local-authority/00FC),Environment,Environment,Enhancement Bereavement Serv,Cap Land/Build-Build Enh Wrk,Cap Land/Build-Build Enh Wrk,YA102,06/12/2021,701512,1210,CAPITAL,MASON CLARK ASSOCIATES,100793
North East Lincolnshire Council,http://statistics.data.gov.uk/id/local-authority/00FC),Environment,Environment,Enhancement Bereavement Serv,Cap Land/Build-Build Enh Wrk,Cap Land/Build-Build Enh Wrk,YA102,13/12/2021,703229,1145,CAPITAL,MASON CLARK ASSOCIATES,100793
North East Lincolnshire Council,http://statistics.data.gov.uk/id/local-authority/00FC),Environment,Environment,Enhancement Bereavement Serv,Cap Land/Build-Build Enh Wrk,Cap Land/Build-Build Enh Wrk,YA102,20/12/2021,704466,1008,CAPITAL,FURNDECO LTD,150369
North East Lincolnshire Council,http://statistics.data.gov.uk/id/local-authority/00FC),Environment,Environment,Enhancement Bereavement Serv,Cap Land/Build-Build Enh Wrk,Cap Land/Build-Build Enh Wrk,YA102,20/12/2021,704466,1050,CAPITAL,FURNDECO LTD,150369
North East Lincolnshire Council,http://statistics.data.gov.uk/id/local-authority/00FC),Environment,Environment,Enhancement Bereavement Serv,Cap Land/Build-Build Enh Wrk,Cap Land/Build-Build Enh Wrk,YA102,20/12/2021,704466,1050,CAPITAL,FURNDECO LTD,150369
North East Lincolnshire Council,http://statistics.data.gov.uk/id/local-authority/00FC),Environment,Environment,Enhancement Bereavement Serv,Cap Land/Build-Build Enh Wrk,Cap Land/Build-Build Enh Wrk,YA102,21/12/2021,704553,5915,CAPITAL,NETWORK ARCHAEOLOGY,147380
North East Lincolnshire Council,http://statistics.data.gov.uk/id/local-authority/00FC),Environment,Environment,Depot Rationalisation,Cap Land/Build-Purchase,Cap Land/Build-Purchase,YA101,02/12/2021,701584,7500,CAPITAL,ENGIE SERVICES LTD,133267
North East Lincolnshire Council,http://statistics.data.gov.uk/id/local-authority/00FC),Environment,Environment,Depot Rationalisation,Cap Land/Build-Purchase,Cap Land/Build-Purchase,YA101,20/12/2021,704705,7500,CAPITAL,ENGIE SERVICES LTD,133267
North East Lincolnshire Council,http://statistics.data.gov.uk/id/local-authority/00FC),Environment,Environment,Depot Rationalisation,Cap Land/Build-Purchase,Cap Land/Build-Purchase,YA101,16/12/2021,703131,4134.24,CAPITAL,4WAY CONSULTING LTD,143214
North East Lincolnshire Council,http://statistics.data.gov.uk/id/local-authority/00FC),Environment,Environment,Depot Rationalisation,Cap Land/Build-Purchase,Cap Land/Build-Purchase,YA101,10/12/2021,701391,650,CAPITAL,SEVENAIRS CONSULTING LTD,141944
North East Lincolnshire Council,http://statistics.data.gov.uk/id/local-authority/00FC),Environment,Environment,Depot Rationalisation,Cap Land/Build-Purchase,Cap Land/Build-Purchase,YA101,15/12/2021,703996,380,CAPITAL,PROFESSIONAL TELECOM INSTALLATIONS LTD,143057
North East Lincolnshire Council,http://statistics.data.gov.uk/id/local-authority/00FC),Environment,Environment,Scartho Cem Lodge/Waiting Rm,Cap Land/Build-Build Enh Wrk,Cap Land/Build-Build Enh Wrk,YA102,09/12/2021,702535,563.5,CAPITAL,CGC ECOLOGY LTD,142378
North East Lincolnshire Council,http://statistics.data.gov.uk/id/local-authority/00FC),Environment,Environment,Scartho Cem Lodge/Waiting Rm,Cap Land/Build-Build Enh Wrk,Cap Land/Build-Build Enh Wrk,YA102,20/12/2021,704539,7000,CAPITAL,ENGIE SERVICES LTD,133267
North East Lincolnshire Council,http://statistics.data.gov.uk/id/local-authority/00FC),Environment,Environment,Resort Management,Cap Land/Build-Build Enh Wrk,Cap Land/Build-Build Enh Wrk,YA102,16/12/2021,702002,556.88,CAPITAL,MOBILE MINI UK LTD,105081
North East Lincolnshire Council,http://statistics.data.gov.uk/id/local-authority/00FC),Environment,Environment,Resort Management,Cap Veh Plt Eqp-Purchase,Cap Veh Plt Eqp-Purchase,YB101,10/12/2021,702708,20052.66,CAPITAL,ENGIE SERVICES LTD,133267
North East Lincolnshire Council,http://statistics.data.gov.uk/id/local-authority/00FC),Environment,Environment,Public Sector Decarbonisation,Cap Land/Build-Build Enh Wrk,Cap Land/Build-Build Enh Wrk,YA102,02/12/2021,700732,11780.8,CAPITAL,WATT ENERGY SAVER LTD,144341
North East Lincolnshire Council,http://statistics.data.gov.uk/id/local-authority/00FC),Environment,Environment,Memorial Testing And Repairs,Cap Veh Plt Eqp-Build Enh Wrk,Cap Veh Plt Eqp-Build Enh Wrk,YB102,07/12/2021,702039,13170,CAPITAL,GREENBRIDGE DESIGNS LTD,149891
North East Lincolnshire Council,http://statistics.data.gov.uk/id/local-authority/00FC),Environment,Environment,Memorial Testing And Repairs,Cap Veh Plt Eqp-Build Enh Wrk,Cap Veh Plt Eqp-Build Enh Wrk,YB102,20/12/2021,704601,3185,CAPITAL,S P DAVIS MEMORIALS LIMITED,130000
North East Lincolnshire Council,http://statistics.data.gov.uk/id/local-authority/00FC),Adult Services,Adult Services,Hps-Disabled Fac. Grants,Cap Grants To O/Side Sources,Cap Grants To O/Side Sources,YJ101,14/12/2021,703352,34555.93,CAPITAL,ENGIE SERVICES LTD,133267
North East Lincolnshire Council,http://statistics.data.gov.uk/id/local-authority/00FC),Adult Services,Adult Services,Hps-Disabled Fac. Grants,Cap Grants To O/Side Sources,Cap Grants To O/Side Sources,YJ101,21/12/2021,704895,15168.89,CAPITAL,ENGIE SERVICES LTD,133267
North East Lincolnshire Council,http://statistics.data.gov.uk/id/local-authority/00FC),Adult Services,Adult Services,Hps-Disabled Fac. Grants,Cap Grants To O/Side Sources,Cap Grants To O/Side Sources,YJ101,21/12/2021,704490,6472,CAPITAL,HOBSON & PORTER,101010
North East Lincolnshire Council,http://statistics.data.gov.uk/id/local-authority/00FC),Adult Services,Adult Services,Hps-Disabled Fac. Grants,Cap Grants To O/Side Sources,Cap Grants To O/Side Sources,YJ101,13/12/2021,702809,11799.74,CAPITAL,VIC HANSEN BUILDING & JOINERY LTD,103981
North East Lincolnshire Council,http://statistics.data.gov.uk/id/local-authority/00FC),Adult Services,Adult Services,Hps-Disabled Fac. Grants,Cap Grants To O/Side Sources,Cap Grants To O/Side Sources,YJ101,13/12/2021,703051,5426.41,CAPITAL,VIC HANSEN BUILDING & JOINERY LTD,103981
North East Lincolnshire Council,http://statistics.data.gov.uk/id/local-authority/00FC),Adult Services,Adult Services,Hps-Disabled Fac. Grants,Cap Grants To O/Side Sources,Cap Grants To O/Side Sources,YJ101,02/12/2021,701617,9658.69,CAPITAL,R G CARTER LINCOLN LTD,146557
North East Lincolnshire Council,http://statistics.data.gov.uk/id/local-authority/00FC),Adult Services,Adult Services,Hps-Disabled Fac. Grants,Cap Grants To O/Side Sources,Cap Grants To O/Side Sources,YJ101,09/12/2021,702609,4685,CAPITAL,OBAM LIFT SERVICES LTD,112666
North East Lincolnshire Council,http://statistics.data.gov.uk/id/local-authority/00FC),Adult Services,Adult Services,Hps-Disabled Fac. Grants,Cap Grants To O/Side Sources,Cap Grants To O/Side Sources,YJ101,08/12/2021,701866,23320.82,CAPITAL,ASKERTON HOMES LTD,145694
North East Lincolnshire Council,http://statistics.data.gov.uk/id/local-authority/00FC),Adult Services,Adult Services,Hps-Disabled Fac. Grants,Cap Grants To O/Side Sources,Cap Grants To O/Side Sources,YJ101,13/12/2021,702972,13356.34,CAPITAL,E S RUDKIN LTD,100632
North East Lincolnshire Council,http://statistics.data.gov.uk/id/local-authority/00FC),Adult Services,Adult Services,Hps-Disabled Fac. Grants,Cap Grants To O/Side Sources,Cap Grants To O/Side Sources,YJ101,06/12/2021,701920,2550,CAPITAL,ENGIE SERVICES LTD,133267
North East Lincolnshire Council,http://statistics.data.gov.uk/id/local-authority/00FC),Adult Services,Adult Services,Hps-Disabled Fac. Grants,Cap Grants To O/Side Sources,Cap Grants To O/Side Sources,YJ101,07/12/2021,702458,3663.69,CAPITAL,DOLPHIN MOBILITY EAST MIDLANDS LTD,101317
North East Lincolnshire Council,http://statistics.data.gov.uk/id/local-authority/00FC),Adult Services,Adult Services,Hps-Disabled Fac. Grants,Cap Grants To O/Side Sources,Cap Grants To O/Side Sources,YJ101,15/12/2021,703384,5304.85,CAPITAL,ABLE 4 ENTERPRISE LTD,120159
North East Lincolnshire Council,http://statistics.data.gov.uk/id/local-authority/00FC),Adult Services,Adult Services,Hps-Disabled Fac. Grants,Cap Grants To O/Side Sources,Cap Grants To O/Side Sources,YJ101,06/12/2021,701919,6558.33,CAPITAL,ENGIE SERVICES LTD,133267
North East Lincolnshire Council,http://statistics.data.gov.uk/id/local-authority/00FC),Adult Services,Adult Services,Hps-Disabled Fac. Grants,Cap Grants To O/Side Sources,Cap Grants To O/Side Sources,YJ101,08/12/2021,701916,5498.9,CAPITAL,ENGIE SERVICES LTD,133267
North East Lincolnshire Council,http://statistics.data.gov.uk/id/local-authority/00FC),Adult Services,Adult Services,Hps-Disabled Fac. Grants,Cap Grants To O/Side Sources,Cap Grants To O/Side Sources,YJ101,08/12/2021,701858,2744.5,CAPITAL,ENGIE SERVICES LTD,133267
North East Lincolnshire Council,http://statistics.data.gov.uk/id/local-authority/00FC),Adult Services,Adult Services,Hps-Disabled Fac. Grants,Cap Grants To O/Side Sources,Cap Grants To O/Side Sources,YJ101,13/12/2021,702790,11326.54,CAPITAL,VIC HANSEN BUILDING & JOINERY LTD,103981
North East Lincolnshire Council,http://statistics.data.gov.uk/id/local-authority/00FC),Adult Services,Adult Services,Hps-Disabled Fac. Grants,Cap Grants To O/Side Sources,Cap Grants To O/Side Sources,YJ101,21/12/2021,704499,11405.69,CAPITAL,ABLE 4 ENTERPRISE LTD,120159
North East Lincolnshire Council,http://statistics.data.gov.uk/id/local-authority/00FC),Adult Services,Adult Services,Hps-Disabled Fac. Grants,Cap Grants To O/Side Sources,Cap Grants To O/Side Sources,YJ101,08/12/2021,702203,11642.74,CAPITAL,VIC HANSEN BUILDING & JOINERY LTD,103981
North East Lincolnshire Council,http://statistics.data.gov.uk/id/local-authority/00FC),Adult Services,Adult Services,Hps-Disabled Fac. Grants,Cap Grants To O/Side Sources,Cap Grants To O/Side Sources,YJ101,09/12/2021,702717,16211.05,CAPITAL,TSPRO LTD,146603
North East Lincolnshire Council,http://statistics.data.gov.uk/id/local-authority/00FC),Adult Services,Adult Services,Hps-Disabled Fac. Grants,Cap Grants To O/Side Sources,Cap Grants To O/Side Sources,YJ101,14/12/2021,703946,7255.24,CAPITAL,ABLE 4 ENTERPRISE LTD,120159
North East Lincolnshire Council,http://statistics.data.gov.uk/id/local-authority/00FC),Adult Services,Adult Services,Hps-Disabled Fac. Grants,Cap Grants To O/Side Sources,Cap Grants To O/Side Sources,YJ101,08/12/2021,702188,12794.78,CAPITAL,ASKERTON HOMES LTD,145694
North East Lincolnshire Council,http://statistics.data.gov.uk/id/local-authority/00FC),Adult Services,Adult Services,Hps-Disabled Fac. Grants,Cap Veh Plt Eqp-Purchase,Cap Veh Plt Eqp-Purchase,YB101,16/12/2021,704167,742,CAPITAL,ARJO UK LIMITED,137759
North East Lincolnshire Council,http://statistics.data.gov.uk/id/local-authority/00FC),Adult Services,Adult Services,Hps-Disabled Fac. Grants,Cap Veh Plt Eqp-Purchase,Cap Veh Plt Eqp-Purchase,YB101,16/12/2021,704162,14500,CAPITAL,ARJO UK LIMITED,137759
North East Lincolnshire Council,http://statistics.data.gov.uk/id/local-authority/00FC),Adult Services,Adult Services,Hps-Disabled Fac. Grants,Cap Veh Plt Eqp-Purchase,Cap Veh Plt Eqp-Purchase,YB101,16/12/2021,704162,12360,CAPITAL,ARJO UK LIMITED,137759
North East Lincolnshire Council,http://statistics.data.gov.uk/id/local-authority/00FC),Adult Services,Adult Services,Hps-Disabled Fac. Grants,Cap Veh Plt Eqp-Purchase,Cap Veh Plt Eqp-Purchase,YB101,10/12/2021,702779,455.8,CAPITAL,NOTTINGHAM REHAB LIMITED,101715
North East Lincolnshire Council,http://statistics.data.gov.uk/id/local-authority/00FC),Adult Services,Adult Services,Hps-Disabled Fac. Grants,Cap Veh Plt Eqp-Purchase,Cap Veh Plt Eqp-Purchase,YB101,10/12/2021,702779,441.42,CAPITAL,NOTTINGHAM REHAB LIMITED,101715
North East Lincolnshire Council,http://statistics.data.gov.uk/id/local-authority/00FC),Adult Services,Adult Services,Hps-Disabled Fac. Grants,Cap Veh Plt Eqp-Purchase,Cap Veh Plt Eqp-Purchase,YB101,10/12/2021,702779,525,CAPITAL,NOTTINGHAM REHAB LIMITED,101715
North East Lincolnshire Council,http://statistics.data.gov.uk/id/local-authority/00FC),Adult Services,Adult Services,Hps-Disabled Fac. Grants,Cap Veh Plt Eqp-Purchase,Cap Veh Plt Eqp-Purchase,YB101,10/12/2021,702779,1500,CAPITAL,NOTTINGHAM REHAB LIMITED,101715
North East Lincolnshire Council,http://statistics.data.gov.uk/id/local-authority/00FC),Adult Services,Adult Services,Hps-Disabled Fac. Grants,Cap Veh Plt Eqp-Purchase,Cap Veh Plt Eqp-Purchase,YB101,10/12/2021,702779,367.5,CAPITAL,NOTTINGHAM REHAB LIMITED,101715
North East Lincolnshire Council,http://statistics.data.gov.uk/id/local-authority/00FC),Adult Services,Adult Services,Hps-Disabled Fac. Grants,Cap Veh Plt Eqp-Purchase,Cap Veh Plt Eqp-Purchase,YB101,10/12/2021,702779,468.4,CAPITAL,NOTTINGHAM REHAB LIMITED,101715
North East Lincolnshire Council,http://statistics.data.gov.uk/id/local-authority/00FC),Adult Services,Adult Services,Hps-Disabled Fac. Grants,Cap Veh Plt Eqp-Purchase,Cap Veh Plt Eqp-Purchase,YB101,10/12/2021,702779,521.8,CAPITAL,NOTTINGHAM REHAB LIMITED,101715
North East Lincolnshire Council,http://statistics.data.gov.uk/id/local-authority/00FC),Adult Services,Adult Services,Hps-Disabled Fac. Grants,Cap Veh Plt Eqp-Purchase,Cap Veh Plt Eqp-Purchase,YB101,20/12/2021,703280,1741.2,CAPITAL,NOTTINGHAM REHAB LIMITED,101715
North East Lincolnshire Council,http://statistics.data.gov.uk/id/local-authority/00FC),Adult Services,Adult Services,Hps-Disabled Fac. Grants,Cap Veh Plt Eqp-Purchase,Cap Veh Plt Eqp-Purchase,YB101,20/12/2021,704395,391.98,CAPITAL,NOTTINGHAM REHAB LIMITED,101715
North East Lincolnshire Council,http://statistics.data.gov.uk/id/local-authority/00FC),Adult Services,Adult Services,Hps-Disabled Fac. Grants,Cap Veh Plt Eqp-Purchase,Cap Veh Plt Eqp-Purchase,YB101,20/12/2021,704395,435.72,CAPITAL,NOTTINGHAM REHAB LIMITED,101715
North East Lincolnshire Council,http://statistics.data.gov.uk/id/local-authority/00FC),Adult Services,Adult Services,Hps-Disabled Fac. Grants,Cap Veh Plt Eqp-Purchase,Cap Veh Plt Eqp-Purchase,YB101,20/12/2021,704395,496.98,CAPITAL,NOTTINGHAM REHAB LIMITED,101715
North East Lincolnshire Council,http://statistics.data.gov.uk/id/local-authority/00FC),Adult Services,Adult Services,Hps-Disabled Fac. Grants,Cap Veh Plt Eqp-Purchase,Cap Veh Plt Eqp-Purchase,YB101,09/12/2021,702461,3400,CAPITAL,NOTTINGHAM REHAB LIMITED,101715
North East Lincolnshire Council,http://statistics.data.gov.uk/id/local-authority/00FC),Childrens Services,Education And Inclusion,Education Transport,Contract Hire-Operating Leases,Vehicles - Contract Hire,JC101,06/12/2021,701912,1800,REVENUE,AA RADIO CARS LTD,101222
North East Lincolnshire Council,http://statistics.data.gov.uk/id/local-authority/00FC),Childrens Services,Education And Inclusion,Education Transport,Contract Hire-Operating Leases,Vehicles - Contract Hire,JC101,10/12/2021,703121,572,REVENUE,LINKS TAXIS,100546
North East Lincolnshire Council,http://statistics.data.gov.uk/id/local-authority/00FC),Childrens Services,Education And Inclusion,Education Transport,Contract Hire-Operating Leases,Vehicles - Contract Hire,JC101,24/12/2021,705780,416,REVENUE,LINKS TAXIS,100546
North East Lincolnshire Council,http://statistics.data.gov.uk/id/local-authority/00FC),Childrens Services,Education And Inclusion,Education Transport,Contract Hire-Operating Leases,Vehicles - Contract Hire,JC101,01/12/2021,701424,9134.7,REVENUE,LINKS TAXIS,100546
North East Lincolnshire Council,http://statistics.data.gov.uk/id/local-authority/00FC),Childrens Services,Education And Inclusion,Education Transport,Contract Hire-Operating Leases,Vehicles - Contract Hire,JC101,13/12/2021,703099,7539.2,REVENUE,LINKS TAXIS,100546
North East Lincolnshire Council,http://statistics.data.gov.uk/id/local-authority/00FC),Childrens Services,Education And Inclusion,Education Transport,Contract Hire-Operating Leases,Vehicles - Contract Hire,JC101,20/12/2021,704772,828.75,REVENUE,SMT (LINCS) ENTERPRISES LTD,141297
North East Lincolnshire Council,http://statistics.data.gov.uk/id/local-authority/00FC),Childrens Services,Education And Inclusion,Education Transport,Contract Hire-Operating Leases,Vehicles - Contract Hire,JC101,10/12/2021,703135,357,REVENUE,LINKS TAXIS,100546
North East Lincolnshire Council,http://statistics.data.gov.uk/id/local-authority/00FC),Childrens Services,Education And Inclusion,Education Transport,Contract Hire-Operating Leases,Vehicles - Contract Hire,JC101,06/12/2021,702103,420,REVENUE,COXONS CARS LIMITED,100578
North East Lincolnshire Council,http://statistics.data.gov.uk/id/local-authority/00FC),Childrens Services,Education And Inclusion,Education Transport,Contract Hire-Operating Leases,Vehicles - Contract Hire,JC101,13/12/2021,703101,810.5,REVENUE,LINKS TAXIS,100546
North East Lincolnshire Council,http://statistics.data.gov.uk/id/local-authority/00FC),Childrens Services,Education And Inclusion,Education Transport,Contract Hire-Operating Leases,Vehicles - Contract Hire,JC101,02/12/2021,701428,1540,REVENUE,SMT (LINCS) ENTERPRISES LTD,141297
North East Lincolnshire Council,http://statistics.data.gov.uk/id/local-authority/00FC),Childrens Services,Education And Inclusion,Education Transport,Contract Hire-Operating Leases,Vehicles - Contract Hire,JC101,20/12/2021,704771,910,REVENUE,SMT (LINCS) ENTERPRISES LTD,141297
North East Lincolnshire Council,http://statistics.data.gov.uk/id/local-authority/00FC),Childrens Services,Education And Inclusion,Education Transport,Contract Hire-Operating Leases,Vehicles - Contract Hire,JC101,07/12/2021,701906,1159,REVENUE,AA RADIO CARS LTD,101222
North East Lincolnshire Council,http://statistics.data.gov.uk/id/local-authority/00FC),Childrens Services,Education And Inclusion,Education Transport,Contract Hire-Operating Leases,Vehicles - Contract Hire,JC101,10/12/2021,703138,529.25,REVENUE,LINKS TAXIS,100546
North East Lincolnshire Council,http://statistics.data.gov.uk/id/local-authority/00FC),Childrens Services,Education And Inclusion,Education Transport,Contract Hire-Operating Leases,Vehicles - Contract Hire,JC101,10/12/2021,703132,308,REVENUE,LINKS TAXIS,100546
North East Lincolnshire Council,http://statistics.data.gov.uk/id/local-authority/00FC),Childrens Services,Education And Inclusion,Education Transport,Contract Hire-Operating Leases,Vehicles - Contract Hire,JC101,01/12/2021,701427,467.5,REVENUE,SMT (LINCS) ENTERPRISES LTD,141297
North East Lincolnshire Council,http://statistics.data.gov.uk/id/local-authority/00FC),Childrens Services,Education And Inclusion,Education Transport,Contract Hire-Operating Leases,Vehicles - Contract Hire,JC101,20/12/2021,704738,682.5,REVENUE,SMT (LINCS) ENTERPRISES LTD,141297
North East Lincolnshire Council,http://statistics.data.gov.uk/id/local-authority/00FC),Childrens Services,Education And Inclusion,Education Transport,Contract Hire-Operating Leases,Vehicles - Contract Hire,JC101,02/12/2021,701466,765,REVENUE,SMT (LINCS) ENTERPRISES LTD,141297
North East Lincolnshire Council,http://statistics.data.gov.uk/id/local-authority/00FC),Childrens Services,Education And Inclusion,Education Transport,Contract Hire-Operating Leases,Vehicles - Contract Hire,JC101,20/12/2021,704734,585,REVENUE,SMT (LINCS) ENTERPRISES LTD,141297
North East Lincolnshire Council,http://statistics.data.gov.uk/id/local-authority/00FC),Childrens Services,Education And Inclusion,Education Transport,Contract Hire-Operating Leases,Vehicles - Contract Hire,JC101,02/12/2021,701455,675,REVENUE,SMT (LINCS) ENTERPRISES LTD,141297
North East Lincolnshire Council,http://statistics.data.gov.uk/id/local-authority/00FC),Childrens Services,Education And Inclusion,Education Transport,Contract Hire-Operating Leases,Vehicles - Contract Hire,JC101,20/12/2021,704737,292.5,REVENUE,SMT (LINCS) ENTERPRISES LTD,141297
North East Lincolnshire Council,http://statistics.data.gov.uk/id/local-authority/00FC),Childrens Services,Education And Inclusion,Education Transport,Contract Hire-Operating Leases,Vehicles - Contract Hire,JC101,01/12/2021,701452,340,REVENUE,SMT (LINCS) ENTERPRISES LTD,141297
North East Lincolnshire Council,http://statistics.data.gov.uk/id/local-authority/00FC),Childrens Services,Education And Inclusion,Education Transport,Contract Hire-Operating Leases,Vehicles - Contract Hire,JC101,20/12/2021,704748,260,REVENUE,SMT (LINCS) ENTERPRISES LTD,141297
North East Lincolnshire Council,http://statistics.data.gov.uk/id/local-authority/00FC),Childrens Services,Education And Inclusion,Education Transport,Contract Hire-Operating Leases,Vehicles - Contract Hire,JC101,06/12/2021,702105,1037,REVENUE,COXONS CARS LIMITED,100578
North East Lincolnshire Council,http://statistics.data.gov.uk/id/local-authority/00FC),Childrens Services,Education And Inclusion,Education Transport,Contract Hire-Operating Leases,Vehicles - Contract Hire,JC101,21/12/2021,704800,764,REVENUE,COXONS CARS LIMITED,100578
North East Lincolnshire Council,http://statistics.data.gov.uk/id/local-authority/00FC),Childrens Services,Education And Inclusion,Education Transport,Contract Hire-Operating Leases,Vehicles - Contract Hire,JC101,01/12/2021,701424,611,REVENUE,LINKS TAXIS,100546
North East Lincolnshire Council,http://statistics.data.gov.uk/id/local-authority/00FC),Childrens Services,Education And Inclusion,Education Transport,Contract Hire-Operating Leases,Vehicles - Contract Hire,JC101,13/12/2021,703099,658,REVENUE,LINKS TAXIS,100546
North East Lincolnshire Council,http://statistics.data.gov.uk/id/local-authority/00FC),Childrens Services,Education And Inclusion,Education Transport,Private Contractors,Concessionary Fares,PH104,07/12/2021,702440,788.8,REVENUE,STAGECOACH SERVICES,101404
North East Lincolnshire Council,http://statistics.data.gov.uk/id/local-authority/00FC),Childrens Services,Education And Inclusion,Education Transport,Private Contractors,Concessionary Fares,PH104,20/12/2021,704567,2045,REVENUE,STAGECOACH SERVICES,101404
North East Lincolnshire Council,http://statistics.data.gov.uk/id/local-authority/00FC),Childrens Services,Education And Inclusion,Education Transport,Contract Hire-Operating Leases,Vehicles - Contract Hire,JC101,09/12/2021,703010,1584,REVENUE,LINKS TAXIS,100546
North East Lincolnshire Council,http://statistics.data.gov.uk/id/local-authority/00FC),Childrens Services,Education And Inclusion,Education Transport,Contract Hire-Operating Leases,Vehicles - Contract Hire,JC101,09/12/2021,703008,1364,REVENUE,LINKS TAXIS,100546
North East Lincolnshire Council,http://statistics.data.gov.uk/id/local-authority/00FC),Childrens Services,Education And Inclusion,Education Transport,Contract Hire-Operating Leases,Vehicles - Contract Hire,JC101,24/12/2021,705877,806,REVENUE,LINKS TAXIS,100546
North East Lincolnshire Council,http://statistics.data.gov.uk/id/local-authority/00FC),Childrens Services,Education And Inclusion,Education Transport,Contract Hire-Operating Leases,Vehicles - Contract Hire,JC101,07/12/2021,702480,1430,REVENUE,MINICABS CLEETHORPES (LINCS) LTD,102124
North East Lincolnshire Council,http://statistics.data.gov.uk/id/local-authority/00FC),Childrens Services,Education And Inclusion,Education Transport,Contract Hire-Operating Leases,Vehicles - Contract Hire,JC101,07/12/2021,701768,2521.2,REVENUE,GRIMSBY MINIBUSES LTD,121524
North East Lincolnshire Council,http://statistics.data.gov.uk/id/local-authority/00FC),Childrens Services,Education And Inclusion,Education Transport,Contract Hire-Operating Leases,Vehicles - Contract Hire,JC101,20/12/2021,704399,1375.2,REVENUE,GRIMSBY MINIBUSES LTD,121524
North East Lincolnshire Council,http://statistics.data.gov.uk/id/local-authority/00FC),Childrens Services,Education And Inclusion,Education Transport,Contract Hire-Operating Leases,Vehicles - Contract Hire,JC101,07/12/2021,701761,3295.6,REVENUE,GRIMSBY MINIBUSES LTD,121524
North East Lincolnshire Council,http://statistics.data.gov.uk/id/local-authority/00FC),Childrens Services,Education And Inclusion,Education Transport,Contract Hire-Operating Leases,Vehicles - Contract Hire,JC101,20/12/2021,704400,1947.4,REVENUE,GRIMSBY MINIBUSES LTD,121524
North East Lincolnshire Council,http://statistics.data.gov.uk/id/local-authority/00FC),Childrens Services,Education And Inclusion,Education Transport,Contract Hire-Operating Leases,Vehicles - Contract Hire,JC101,07/12/2021,702189,4345,REVENUE,AMVALE LIMITED,101030
North East Lincolnshire Council,http://statistics.data.gov.uk/id/local-authority/00FC),Childrens Services,Education And Inclusion,Education Transport,Contract Hire-Operating Leases,Vehicles - Contract Hire,JC101,20/12/2021,704583,2567.5,REVENUE,AMVALE LIMITED,101030
North East Lincolnshire Council,http://statistics.data.gov.uk/id/local-authority/00FC),Childrens Services,Education And Inclusion,Education Transport,Contract Hire-Operating Leases,Vehicles - Contract Hire,JC101,07/12/2021,702192,4158,REVENUE,AMVALE LIMITED,101030
North East Lincolnshire Council,http://statistics.data.gov.uk/id/local-authority/00FC),Childrens Services,Education And Inclusion,Education Transport,Contract Hire-Operating Leases,Vehicles - Contract Hire,JC101,20/12/2021,704585,2457,REVENUE,AMVALE LIMITED,101030
North East Lincolnshire Council,http://statistics.data.gov.uk/id/local-authority/00FC),Childrens Services,Education And Inclusion,Education Transport,Contract Hire-Operating Leases,Vehicles - Contract Hire,JC101,07/12/2021,702193,4158,REVENUE,AMVALE LIMITED,101030
North East Lincolnshire Council,http://statistics.data.gov.uk/id/local-authority/00FC),Childrens Services,Education And Inclusion,Education Transport,Contract Hire-Operating Leases,Vehicles - Contract Hire,JC101,20/12/2021,704586,2457,REVENUE,AMVALE LIMITED,101030
North East Lincolnshire Council,http://statistics.data.gov.uk/id/local-authority/00FC),Childrens Services,Education And Inclusion,Education Transport,Contract Hire-Operating Leases,Vehicles - Contract Hire,JC101,07/12/2021,702191,4158,REVENUE,AMVALE LIMITED,101030
North East Lincolnshire Council,http://statistics.data.gov.uk/id/local-authority/00FC),Childrens Services,Education And Inclusion,Education Transport,Contract Hire-Operating Leases,Vehicles - Contract Hire,JC101,20/12/2021,704587,2457,REVENUE,AMVALE LIMITED,101030
North East Lincolnshire Council,http://statistics.data.gov.uk/id/local-authority/00FC),Childrens Services,Education And Inclusion,Education Transport,Contract Hire-Operating Leases,Vehicles - Contract Hire,JC101,06/12/2021,702104,1090,REVENUE,COXONS CARS LIMITED,100578
North East Lincolnshire Council,http://statistics.data.gov.uk/id/local-authority/00FC),Childrens Services,Education And Inclusion,Education Transport,Contract Hire-Operating Leases,Vehicles - Contract Hire,JC101,21/12/2021,704801,910,REVENUE,COXONS CARS LIMITED,100578
North East Lincolnshire Council,http://statistics.data.gov.uk/id/local-authority/00FC),Childrens Services,Education And Inclusion,Education Transport,Contract Hire-Operating Leases,Vehicles - Contract Hire,JC101,13/12/2021,703305,2200,REVENUE,LINKS TAXIS,100546
North East Lincolnshire Council,http://statistics.data.gov.uk/id/local-authority/00FC),Childrens Services,Education And Inclusion,Education Transport,Contract Hire-Operating Leases,Vehicles - Contract Hire,JC101,14/12/2021,703934,1600,REVENUE,LINKS TAXIS,100546
North East Lincolnshire Council,http://statistics.data.gov.uk/id/local-authority/00FC),Childrens Services,Education And Inclusion,Education Transport,Contract Hire-Operating Leases,Vehicles - Contract Hire,JC101,01/12/2021,701424,672,REVENUE,LINKS TAXIS,100546
North East Lincolnshire Council,http://statistics.data.gov.uk/id/local-authority/00FC),Childrens Services,Education And Inclusion,Education Transport,Contract Hire-Operating Leases,Vehicles - Contract Hire,JC101,13/12/2021,703099,352,REVENUE,LINKS TAXIS,100546
North East Lincolnshire Council,http://statistics.data.gov.uk/id/local-authority/00FC),Childrens Services,Education And Inclusion,Education Transport,Private Contractors,Concessionary Fares,PH104,07/12/2021,702440,798,REVENUE,STAGECOACH SERVICES,101404
North East Lincolnshire Council,http://statistics.data.gov.uk/id/local-authority/00FC),Childrens Services,Education And Inclusion,Education Transport,Private Contractors,Concessionary Fares,PH104,20/12/2021,704567,519,REVENUE,STAGECOACH SERVICES,101404
North East Lincolnshire Council,http://statistics.data.gov.uk/id/local-authority/00FC),Childrens Services,Education And Inclusion,Education Transport,Contract Hire-Operating Leases,Vehicles - Contract Hire,JC101,07/12/2021,702114,3058,REVENUE,AMVALE MEDICAL TRANSPORT LTD,130777
North East Lincolnshire Council,http://statistics.data.gov.uk/id/local-authority/00FC),Childrens Services,Education And Inclusion,Education Transport,Contract Hire-Operating Leases,Vehicles - Contract Hire,JC101,21/12/2021,704550,1536,REVENUE,THE BUS RUN,101522
North East Lincolnshire Council,http://statistics.data.gov.uk/id/local-authority/00FC),Childrens Services,Education And Inclusion,Education Transport,Contract Hire-Operating Leases,Vehicles - Contract Hire,JC101,21/12/2021,704690,2818,REVENUE,THE BUS RUN,101522
North East Lincolnshire Council,http://statistics.data.gov.uk/id/local-authority/00FC),Childrens Services,Education And Inclusion,Education Transport,Contract Hire-Operating Leases,Vehicles - Contract Hire,JC101,07/12/2021,701765,2675.2,REVENUE,GRIMSBY MINIBUSES LTD,121524
North East Lincolnshire Council,http://statistics.data.gov.uk/id/local-authority/00FC),Childrens Services,Education And Inclusion,Education Transport,Contract Hire-Operating Leases,Vehicles - Contract Hire,JC101,20/12/2021,704401,1459.2,REVENUE,GRIMSBY MINIBUSES LTD,121524
North East Lincolnshire Council,http://statistics.data.gov.uk/id/local-authority/00FC),Childrens Services,Education And Inclusion,Education Transport,Contract Hire-Operating Leases,Vehicles - Contract Hire,JC101,07/12/2021,701764,3097.6,REVENUE,GRIMSBY MINIBUSES LTD,121524
North East Lincolnshire Council,http://statistics.data.gov.uk/id/local-authority/00FC),Childrens Services,Education And Inclusion,Education Transport,Contract Hire-Operating Leases,Vehicles - Contract Hire,JC101,20/12/2021,704402,1689.6,REVENUE,GRIMSBY MINIBUSES LTD,121524
North East Lincolnshire Council,http://statistics.data.gov.uk/id/local-authority/00FC),Childrens Services,Education And Inclusion,Education Transport,Contract Hire-Operating Leases,Vehicles - Contract Hire,JC101,21/12/2021,704981,1284,REVENUE,HANSONS AIRPORT EXPRESS,111879
North East Lincolnshire Council,http://statistics.data.gov.uk/id/local-authority/00FC),Childrens Services,Education And Inclusion,Education Transport,Contract Hire-Operating Leases,Vehicles - Contract Hire,JC101,21/12/2021,704980,1284,REVENUE,HANSONS AIRPORT EXPRESS,111879
North East Lincolnshire Council,http://statistics.data.gov.uk/id/local-authority/00FC),Childrens Services,Education And Inclusion,Education Transport,Contract Hire-Operating Leases,Vehicles - Contract Hire,JC101,07/12/2021,702116,3036,REVENUE,AMVALE MEDICAL TRANSPORT LTD,130777
North East Lincolnshire Council,http://statistics.data.gov.uk/id/local-authority/00FC),Childrens Services,Education And Inclusion,Education Transport,Contract Hire-Operating Leases,Vehicles - Contract Hire,JC101,07/12/2021,702473,4620,REVENUE,PC COACHES LTD,102879
North East Lincolnshire Council,http://statistics.data.gov.uk/id/local-authority/00FC),Childrens Services,Education And Inclusion,Education Transport,Contract Hire-Operating Leases,Vehicles - Contract Hire,JC101,07/12/2021,702115,2838,REVENUE,AMVALE MEDICAL TRANSPORT LTD,130777
North East Lincolnshire Council,http://statistics.data.gov.uk/id/local-authority/00FC),Childrens Services,Education And Inclusion,Education Transport,Contract Hire-Operating Leases,Vehicles - Contract Hire,JC101,07/12/2021,702118,3093,REVENUE,AMVALE MEDICAL TRANSPORT LTD,130777
North East Lincolnshire Council,http://statistics.data.gov.uk/id/local-authority/00FC),Childrens Services,Education And Inclusion,Education Transport,Contract Hire-Operating Leases,Vehicles - Contract Hire,JC101,01/12/2021,701459,1397.5,REVENUE,SMT (LINCS) ENTERPRISES LTD,141297
North East Lincolnshire Council,http://statistics.data.gov.uk/id/local-authority/00FC),Childrens Services,Education And Inclusion,Education Transport,Contract Hire-Operating Leases,Vehicles - Contract Hire,JC101,07/12/2021,702481,1628,REVENUE,MINICABS CLEETHORPES (LINCS) LTD,102124
North East Lincolnshire Council,http://statistics.data.gov.uk/id/local-authority/00FC),Childrens Services,Education And Inclusion,Education Transport,Contract Hire-Operating Leases,Vehicles - Contract Hire,JC101,01/12/2021,701462,1760,REVENUE,SMT (LINCS) ENTERPRISES LTD,141297
North East Lincolnshire Council,http://statistics.data.gov.uk/id/local-authority/00FC),Childrens Services,Education And Inclusion,Education Transport,Contract Hire-Operating Leases,Vehicles - Contract Hire,JC101,20/12/2021,704773,960,REVENUE,SMT (LINCS) ENTERPRISES LTD,141297
North East Lincolnshire Council,http://statistics.data.gov.uk/id/local-authority/00FC),Childrens Services,Education And Inclusion,Education Transport,Contract Hire-Operating Leases,Vehicles - Contract Hire,JC101,07/12/2021,702476,1360,REVENUE,MINICABS CLEETHORPES (LINCS) LTD,102124
North East Lincolnshire Council,http://statistics.data.gov.uk/id/local-authority/00FC),Childrens Services,Education And Inclusion,Education Transport,Contract Hire-Operating Leases,Vehicles - Contract Hire,JC101,17/12/2021,704246,-2215.4,REVENUE,GRIMSBY MINIBUSES LTD,121524
North East Lincolnshire Council,http://statistics.data.gov.uk/id/local-authority/00FC),Childrens Services,Education And Inclusion,Education Transport,Contract Hire-Operating Leases,Vehicles - Contract Hire,JC101,20/12/2021,704406,1611.2,REVENUE,GRIMSBY MINIBUSES LTD,121524
North East Lincolnshire Council,http://statistics.data.gov.uk/id/local-authority/00FC),Childrens Services,Education And Inclusion,Education Transport,Contract Hire-Operating Leases,Vehicles - Contract Hire,JC101,02/12/2021,701468,2535,REVENUE,SMT (LINCS) ENTERPRISES LTD,141297
North East Lincolnshire Council,http://statistics.data.gov.uk/id/local-authority/00FC),Childrens Services,Education And Inclusion,Education Transport,Contract Hire-Operating Leases,Vehicles - Contract Hire,JC101,20/12/2021,704741,936,REVENUE,SMT (LINCS) ENTERPRISES LTD,141297
North East Lincolnshire Council,http://statistics.data.gov.uk/id/local-authority/00FC),Childrens Services,Education And Inclusion,Education Transport,Contract Hire-Operating Leases,Vehicles - Contract Hire,JC101,09/12/2021,703009,1284,REVENUE,LINKS TAXIS,100546
North East Lincolnshire Council,http://statistics.data.gov.uk/id/local-authority/00FC),Childrens Services,Education And Inclusion,Education Transport,Contract Hire-Operating Leases,Vehicles - Contract Hire,JC101,07/12/2021,702474,1443.5,REVENUE,MINICABS CLEETHORPES (LINCS) LTD,102124
North East Lincolnshire Council,http://statistics.data.gov.uk/id/local-authority/00FC),Childrens Services,Education And Inclusion,Education Transport,Contract Hire-Operating Leases,Vehicles - Contract Hire,JC101,13/12/2021,703101,810.5,REVENUE,LINKS TAXIS,100546
North East Lincolnshire Council,http://statistics.data.gov.uk/id/local-authority/00FC),Childrens Services,Education And Inclusion,Education Transport,Contract Hire-Operating Leases,Vehicles - Contract Hire,JC101,06/12/2021,701904,1298,REVENUE,AA RADIO CARS LTD,101222
North East Lincolnshire Council,http://statistics.data.gov.uk/id/local-authority/00FC),Childrens Services,Education And Inclusion,Education Transport,Contract Hire-Operating Leases,Vehicles - Contract Hire,JC101,07/12/2021,702477,1996,REVENUE,MINICABS CLEETHORPES (LINCS) LTD,102124
North East Lincolnshire Council,http://statistics.data.gov.uk/id/local-authority/00FC),Childrens Services,Education And Inclusion,Education Transport,Contract Hire-Operating Leases,Vehicles - Contract Hire,JC101,07/12/2021,702479,1976,REVENUE,MINICABS CLEETHORPES (LINCS) LTD,102124
North East Lincolnshire Council,http://statistics.data.gov.uk/id/local-authority/00FC),Childrens Services,Education And Inclusion,Education Transport,Contract Hire-Operating Leases,Vehicles - Contract Hire,JC101,01/12/2021,701451,1330,REVENUE,SMT (LINCS) ENTERPRISES LTD,141297
North East Lincolnshire Council,http://statistics.data.gov.uk/id/local-authority/00FC),Childrens Services,Education And Inclusion,Education Transport,Contract Hire-Operating Leases,Vehicles - Contract Hire,JC101,20/12/2021,704732,910,REVENUE,SMT (LINCS) ENTERPRISES LTD,141297
North East Lincolnshire Council,http://statistics.data.gov.uk/id/local-authority/00FC),Childrens Services,Education And Inclusion,Education Transport,Contract Hire-Operating Leases,Vehicles - Contract Hire,JC101,02/12/2021,701428,1540,REVENUE,SMT (LINCS) ENTERPRISES LTD,141297
North East Lincolnshire Council,http://statistics.data.gov.uk/id/local-authority/00FC),Childrens Services,Education And Inclusion,Education Transport,Contract Hire-Operating Leases,Vehicles - Contract Hire,JC101,20/12/2021,704771,910,REVENUE,SMT (LINCS) ENTERPRISES LTD,141297
North East Lincolnshire Council,http://statistics.data.gov.uk/id/local-authority/00FC),Childrens Services,Education And Inclusion,Education Transport,Contract Hire-Operating Leases,Vehicles - Contract Hire,JC101,14/12/2021,703930,2322,REVENUE,AA RADIO CARS LTD,101222
North East Lincolnshire Council,http://statistics.data.gov.uk/id/local-authority/00FC),Childrens Services,Education And Inclusion,Education Transport,Contract Hire-Operating Leases,Vehicles - Contract Hire,JC101,06/12/2021,701909,540,REVENUE,AA RADIO CARS LTD,101222
North East Lincolnshire Council,http://statistics.data.gov.uk/id/local-authority/00FC),Childrens Services,Education And Inclusion,Education Transport,Contract Hire-Operating Leases,Vehicles - Contract Hire,JC101,02/12/2021,701465,2299,REVENUE,SMT (LINCS) ENTERPRISES LTD,141297
North East Lincolnshire Council,http://statistics.data.gov.uk/id/local-authority/00FC),Childrens Services,Education And Inclusion,Education Transport,Contract Hire-Operating Leases,Vehicles - Contract Hire,JC101,20/12/2021,704709,1358.5,REVENUE,SMT (LINCS) ENTERPRISES LTD,141297
North East Lincolnshire Council,http://statistics.data.gov.uk/id/local-authority/00FC),Childrens Services,Education And Inclusion,Education Transport,Contract Hire-Operating Leases,Vehicles - Contract Hire,JC101,06/12/2021,701917,3295.6,REVENUE,GRIMSBY MINIBUSES LTD,121524
North East Lincolnshire Council,http://statistics.data.gov.uk/id/local-authority/00FC),Childrens Services,Education And Inclusion,Education Transport,Contract Hire-Operating Leases,Vehicles - Contract Hire,JC101,20/12/2021,704398,1947.4,REVENUE,GRIMSBY MINIBUSES LTD,121524
North East Lincolnshire Council,http://statistics.data.gov.uk/id/local-authority/00FC),Childrens Services,Education And Inclusion,Education Transport,Contract Hire-Operating Leases,Vehicles - Contract Hire,JC101,01/12/2021,701431,1980,REVENUE,SMT (LINCS) ENTERPRISES LTD,141297
North East Lincolnshire Council,http://statistics.data.gov.uk/id/local-authority/00FC),Childrens Services,Education And Inclusion,Education Transport,Contract Hire-Operating Leases,Vehicles - Contract Hire,JC101,01/12/2021,701461,1870,REVENUE,SMT (LINCS) ENTERPRISES LTD,141297
North East Lincolnshire Council,http://statistics.data.gov.uk/id/local-authority/00FC),Childrens Services,Education And Inclusion,Education Transport,Contract Hire-Operating Leases,Vehicles - Contract Hire,JC101,09/12/2021,702773,2268,REVENUE,DRS TAXI SERVICE,141083
North East Lincolnshire Council,http://statistics.data.gov.uk/id/local-authority/00FC),Childrens Services,Education And Inclusion,Education Transport,Contract Hire-Operating Leases,Vehicles - Contract Hire,JC101,20/12/2021,704595,1417,REVENUE,DRS TAXI SERVICE,141083
North East Lincolnshire Council,http://statistics.data.gov.uk/id/local-authority/00FC),Childrens Services,Education And Inclusion,Education Transport,Contract Hire-Operating Leases,Vehicles - Contract Hire,JC101,07/12/2021,702478,1540,REVENUE,MINICABS CLEETHORPES (LINCS) LTD,102124
North East Lincolnshire Council,http://statistics.data.gov.uk/id/local-authority/00FC),Childrens Services,Education And Inclusion,Education Transport,Contract Hire-Operating Leases,Vehicles - Contract Hire,JC101,20/12/2021,704747,2028,REVENUE,SMT (LINCS) ENTERPRISES LTD,141297
North East Lincolnshire Council,http://statistics.data.gov.uk/id/local-authority/00FC),Childrens Services,Education And Inclusion,Education Transport,Contract Hire-Operating Leases,Vehicles - Contract Hire,JC101,24/12/2021,705789,3432,REVENUE,SMT (LINCS) ENTERPRISES LTD,141297
North East Lincolnshire Council,http://statistics.data.gov.uk/id/local-authority/00FC),Childrens Services,Education And Inclusion,Education Transport,Contract Hire-Operating Leases,Vehicles - Contract Hire,JC101,10/12/2021,703137,1329,REVENUE,LINKS TAXIS,100546
North East Lincolnshire Council,http://statistics.data.gov.uk/id/local-authority/00FC),Childrens Services,Education And Inclusion,Education Transport,Contract Hire-Operating Leases,Vehicles - Contract Hire,JC101,24/12/2021,705885,826,REVENUE,LINKS TAXIS,100546
North East Lincolnshire Council,http://statistics.data.gov.uk/id/local-authority/00FC),Childrens Services,Education And Inclusion,Education Transport,Contract Hire-Operating Leases,Vehicles - Contract Hire,JC101,01/12/2021,701470,1050,REVENUE,SMT (LINCS) ENTERPRISES LTD,141297
North East Lincolnshire Council,http://statistics.data.gov.uk/id/local-authority/00FC),Childrens Services,Education And Inclusion,Education Transport,Contract Hire-Operating Leases,Vehicles - Contract Hire,JC101,10/12/2021,703120,1008,REVENUE,LINKS TAXIS,100546
North East Lincolnshire Council,http://statistics.data.gov.uk/id/local-authority/00FC),Childrens Services,Education And Inclusion,Education Transport,Contract Hire-Operating Leases,Vehicles - Contract Hire,JC101,24/12/2021,705886,392,REVENUE,LINKS TAXIS,100546
North East Lincolnshire Council,http://statistics.data.gov.uk/id/local-authority/00FC),Childrens Services,Education And Inclusion,Education Transport,Contract Hire-Operating Leases,Vehicles - Contract Hire,JC101,20/12/2021,704772,828.75,REVENUE,SMT (LINCS) ENTERPRISES LTD,141297
North East Lincolnshire Council,http://statistics.data.gov.uk/id/local-authority/00FC),Childrens Services,Education And Inclusion,Education Transport,Contract Hire-Operating Leases,Vehicles - Contract Hire,JC101,08/12/2021,702524,2898,REVENUE,DRS TAXI SERVICE,141083
North East Lincolnshire Council,http://statistics.data.gov.uk/id/local-authority/00FC),Childrens Services,Education And Inclusion,Education Transport,Contract Hire-Operating Leases,Vehicles - Contract Hire,JC101,20/12/2021,704594,1794,REVENUE,DRS TAXI SERVICE,141083
North East Lincolnshire Council,http://statistics.data.gov.uk/id/local-authority/00FC),Childrens Services,Education And Inclusion,Education Transport,Contract Hire-Operating Leases,Vehicles - Contract Hire,JC101,20/12/2021,704535,1284,REVENUE,REDACTED PERSONAL INFORMATION,REDACTED PERSONAL INFORMATION
North East Lincolnshire Council,http://statistics.data.gov.uk/id/local-authority/00FC),Childrens Services,Education And Inclusion,Education Transport,Contract Hire-Operating Leases,Vehicles - Contract Hire,JC101,10/12/2021,703136,2134,REVENUE,LINKS TAXIS,100546
North East Lincolnshire Council,http://statistics.data.gov.uk/id/local-authority/00FC),Childrens Services,Education And Inclusion,Education Transport,Contract Hire-Operating Leases,Vehicles - Contract Hire,JC101,24/12/2021,705795,1164,REVENUE,LINKS TAXIS,100546
North East Lincolnshire Council,http://statistics.data.gov.uk/id/local-authority/00FC),Childrens Services,Education And Inclusion,Education Transport,Contract Hire-Operating Leases,Vehicles - Contract Hire,JC101,01/12/2021,701437,1470,REVENUE,SMT (LINCS) ENTERPRISES LTD,141297
North East Lincolnshire Council,http://statistics.data.gov.uk/id/local-authority/00FC),Childrens Services,Education And Inclusion,Education Transport,Contract Hire-Operating Leases,Vehicles - Contract Hire,JC101,20/12/2021,704739,840,REVENUE,SMT (LINCS) ENTERPRISES LTD,141297
North East Lincolnshire Council,http://statistics.data.gov.uk/id/local-authority/00FC),Childrens Services,Education And Inclusion,Education Transport,Contract Hire-Operating Leases,Vehicles - Contract Hire,JC101,01/12/2021,701453,1125,REVENUE,SMT (LINCS) ENTERPRISES LTD,141297
North East Lincolnshire Council,http://statistics.data.gov.uk/id/local-authority/00FC),Childrens Services,Education And Inclusion,Education Transport,Contract Hire-Operating Leases,Vehicles - Contract Hire,JC101,20/12/2021,704733,625,REVENUE,SMT (LINCS) ENTERPRISES LTD,141297
North East Lincolnshire Council,http://statistics.data.gov.uk/id/local-authority/00FC),Childrens Services,Education And Inclusion,Education Transport,Contract Hire-Operating Leases,Vehicles - Contract Hire,JC101,10/12/2021,703138,529.25,REVENUE,LINKS TAXIS,100546
North East Lincolnshire Council,http://statistics.data.gov.uk/id/local-authority/00FC),Childrens Services,Education And Inclusion,Education Transport,Contract Hire-Operating Leases,Vehicles - Contract Hire,JC101,01/12/2021,701460,1320,REVENUE,SMT (LINCS) ENTERPRISES LTD,141297
North East Lincolnshire Council,http://statistics.data.gov.uk/id/local-authority/00FC),Childrens Services,Education And Inclusion,Education Transport,Contract Hire-Operating Leases,Vehicles - Contract Hire,JC101,20/12/2021,704707,780,REVENUE,SMT (LINCS) ENTERPRISES LTD,141297
North East Lincolnshire Council,http://statistics.data.gov.uk/id/local-authority/00FC),Childrens Services,Education And Inclusion,Education Transport,Contract Hire-Operating Leases,Vehicles - Contract Hire,JC101,07/12/2021,701770,2151.6,REVENUE,GRIMSBY MINIBUSES LTD,121524
North East Lincolnshire Council,http://statistics.data.gov.uk/id/local-authority/00FC),Childrens Services,Education And Inclusion,Education Transport,Contract Hire-Operating Leases,Vehicles - Contract Hire,JC101,20/12/2021,704397,1271.4,REVENUE,GRIMSBY MINIBUSES LTD,121524
North East Lincolnshire Council,http://statistics.data.gov.uk/id/local-authority/00FC),Childrens Services,Education And Inclusion,Education Transport,Contract Hire-Operating Leases,Vehicles - Contract Hire,JC101,01/12/2021,701471,3792.5,REVENUE,SMT (LINCS) ENTERPRISES LTD,141297
North East Lincolnshire Council,http://statistics.data.gov.uk/id/local-authority/00FC),Childrens Services,Education And Inclusion,Education Transport,Contract Hire-Operating Leases,Vehicles - Contract Hire,JC101,02/12/2021,701545,840,REVENUE,SMT (LINCS) ENTERPRISES LTD,141297
North East Lincolnshire Council,http://statistics.data.gov.uk/id/local-authority/00FC),Childrens Services,Education And Inclusion,Education Transport,Contract Hire-Operating Leases,Vehicles - Contract Hire,JC101,01/12/2021,701473,1727,REVENUE,SMT (LINCS) ENTERPRISES LTD,141297
North East Lincolnshire Council,http://statistics.data.gov.uk/id/local-authority/00FC),Childrens Services,Education And Inclusion,Education Transport,Contract Hire-Operating Leases,Vehicles - Contract Hire,JC101,09/12/2021,703011,1980,REVENUE,LINKS TAXIS,100546
North East Lincolnshire Council,http://statistics.data.gov.uk/id/local-authority/00FC),Childrens Services,Education And Inclusion,Education Transport,Contract Hire-Operating Leases,Vehicles - Contract Hire,JC101,24/12/2021,705878,1170,REVENUE,LINKS TAXIS,100546
North East Lincolnshire Council,http://statistics.data.gov.uk/id/local-authority/00FC),Childrens Services,Education And Inclusion,Education Transport,Contract Hire-Operating Leases,Vehicles - Contract Hire,JC101,06/12/2021,702113,6600,REVENUE,AMVALE MEDICAL TRANSPORT LTD,130777
North East Lincolnshire Council,http://statistics.data.gov.uk/id/local-authority/00FC),Childrens Services,Education And Inclusion,Education Transport,Contract Hire-Operating Leases,Vehicles - Contract Hire,JC101,07/12/2021,702117,4774,REVENUE,AMVALE MEDICAL TRANSPORT LTD,130777
North East Lincolnshire Council,http://statistics.data.gov.uk/id/local-authority/00FC),Childrens Services,Education And Inclusion,Education Transport,Contract Hire-Operating Leases,Vehicles - Contract Hire,JC101,01/12/2021,701448,820,REVENUE,AMVALE LIMITED,101030
North East Lincolnshire Council,http://statistics.data.gov.uk/id/local-authority/00FC),Childrens Services,Education And Inclusion,Education Transport,Contract Hire-Operating Leases,Vehicles - Contract Hire,JC101,01/12/2021,701449,820,REVENUE,AMVALE LIMITED,101030
North East Lincolnshire Council,http://statistics.data.gov.uk/id/local-authority/00FC),Childrens Services,Education And Inclusion,Education Transport,Contract Hire-Operating Leases,Vehicles - Contract Hire,JC101,01/12/2021,701450,820,REVENUE,AMVALE LIMITED,101030
North East Lincolnshire Council,http://statistics.data.gov.uk/id/local-authority/00FC),Childrens Services,Education And Inclusion,Education Transport,Contract Hire-Operating Leases,Vehicles - Contract Hire,JC101,24/12/2021,705790,820,REVENUE,AMVALE LIMITED,101030
North East Lincolnshire Council,http://statistics.data.gov.uk/id/local-authority/00FC),Childrens Services,Education And Inclusion,Education Transport,Contract Hire-Operating Leases,Vehicles - Contract Hire,JC101,24/12/2021,705791,820,REVENUE,AMVALE LIMITED,101030
North East Lincolnshire Council,http://statistics.data.gov.uk/id/local-authority/00FC),Childrens Services,Education And Inclusion,Education Transport,Contract Hire-Operating Leases,Vehicles - Contract Hire,JC101,24/12/2021,705792,820,REVENUE,AMVALE LIMITED,101030
North East Lincolnshire Council,http://statistics.data.gov.uk/id/local-authority/00FC),Childrens Services,Education And Inclusion,Education Transport,Contract Hire-Operating Leases,Vehicles - Contract Hire,JC101,01/12/2021,701457,816,REVENUE,SMT (LINCS) ENTERPRISES LTD,141297
North East Lincolnshire Council,http://statistics.data.gov.uk/id/local-authority/00FC),Childrens Services,Education And Inclusion,Education Transport,Contract Hire-Operating Leases,Vehicles - Contract Hire,JC101,01/12/2021,701430,792,REVENUE,SMT (LINCS) ENTERPRISES LTD,141297
North East Lincolnshire Council,http://statistics.data.gov.uk/id/local-authority/00FC),Childrens Services,Education And Inclusion,Education Transport,Contract Hire-Operating Leases,Vehicles - Contract Hire,JC101,20/12/2021,704774,360,REVENUE,SMT (LINCS) ENTERPRISES LTD,141297
North East Lincolnshire Council,http://statistics.data.gov.uk/id/local-authority/00FC),Childrens Services,Education And Inclusion,Education Transport,Contract Hire-Operating Leases,Vehicles - Contract Hire,JC101,01/12/2021,701438,1008,REVENUE,SMT (LINCS) ENTERPRISES LTD,141297
North East Lincolnshire Council,http://statistics.data.gov.uk/id/local-authority/00FC),Childrens Services,Education And Inclusion,Education Transport,Contract Hire-Operating Leases,Vehicles - Contract Hire,JC101,20/12/2021,704708,576,REVENUE,SMT (LINCS) ENTERPRISES LTD,141297
North East Lincolnshire Council,http://statistics.data.gov.uk/id/local-authority/00FC),Childrens Services,Education And Inclusion,Education Transport,Contract Hire-Operating Leases,Vehicles - Contract Hire,JC101,06/12/2021,701907,968,REVENUE,AA RADIO CARS LTD,101222
North East Lincolnshire Council,http://statistics.data.gov.uk/id/local-authority/00FC),Childrens Services,Education And Inclusion,Education Transport,Contract Hire-Operating Leases,Vehicles - Contract Hire,JC101,06/12/2021,701914,748,REVENUE,AA RADIO CARS LTD,101222
North East Lincolnshire Council,http://statistics.data.gov.uk/id/local-authority/00FC),Childrens Services,Education And Inclusion,Education Transport,Contract Hire-Operating Leases,Vehicles - Contract Hire,JC101,01/12/2021,701463,770,REVENUE,SMT (LINCS) ENTERPRISES LTD,141297
North East Lincolnshire Council,http://statistics.data.gov.uk/id/local-authority/00FC),Childrens Services,Education And Inclusion,Education Transport,Contract Hire-Operating Leases,Vehicles - Contract Hire,JC101,20/12/2021,704735,420,REVENUE,SMT (LINCS) ENTERPRISES LTD,141297
North East Lincolnshire Council,http://statistics.data.gov.uk/id/local-authority/00FC),Childrens Services,Education And Inclusion,Education Transport,Contract Hire-Operating Leases,Vehicles - Contract Hire,JC101,07/12/2021,702109,774,REVENUE,COXONS CARS LIMITED,100578
North East Lincolnshire Council,http://statistics.data.gov.uk/id/local-authority/00FC),Childrens Services,Education And Inclusion,Education Transport,Contract Hire-Operating Leases,Vehicles - Contract Hire,JC101,21/12/2021,704796,414,REVENUE,COXONS CARS LIMITED,100578
North East Lincolnshire Council,http://statistics.data.gov.uk/id/local-authority/00FC),Childrens Services,Education And Inclusion,Education Transport,Contract Hire-Operating Leases,Vehicles - Contract Hire,JC101,10/12/2021,703132,616,REVENUE,LINKS TAXIS,100546
North East Lincolnshire Council,http://statistics.data.gov.uk/id/local-authority/00FC),Childrens Services,Education And Inclusion,Education Transport,Contract Hire-Operating Leases,Vehicles - Contract Hire,JC101,24/12/2021,705777,374,REVENUE,LINKS TAXIS,100546
North East Lincolnshire Council,http://statistics.data.gov.uk/id/local-authority/00FC),Childrens Services,Education And Inclusion,Education Transport,Contract Hire-Operating Leases,Vehicles - Contract Hire,JC101,01/12/2021,701436,1100,REVENUE,SMT (LINCS) ENTERPRISES LTD,141297
North East Lincolnshire Council,http://statistics.data.gov.uk/id/local-authority/00FC),Childrens Services,Education And Inclusion,Education Transport,Contract Hire-Operating Leases,Vehicles - Contract Hire,JC101,20/12/2021,704736,650,REVENUE,SMT (LINCS) ENTERPRISES LTD,141297
North East Lincolnshire Council,http://statistics.data.gov.uk/id/local-authority/00FC),Childrens Services,Education And Inclusion,Education Transport,Contract Hire-Operating Leases,Vehicles - Contract Hire,JC101,07/12/2021,702106,1056,REVENUE,COXONS CARS LIMITED,100578
North East Lincolnshire Council,http://statistics.data.gov.uk/id/local-authority/00FC),Childrens Services,Education And Inclusion,Education Transport,Contract Hire-Operating Leases,Vehicles - Contract Hire,JC101,21/12/2021,704798,576,REVENUE,COXONS CARS LIMITED,100578
North East Lincolnshire Council,http://statistics.data.gov.uk/id/local-authority/00FC),Childrens Services,Education And Inclusion,Education Transport,Contract Hire-Operating Leases,Vehicles - Contract Hire,JC101,10/12/2021,703134,819,REVENUE,LINKS TAXIS,100546
North East Lincolnshire Council,http://statistics.data.gov.uk/id/local-authority/00FC),Childrens Services,Education And Inclusion,Education Transport,Contract Hire-Operating Leases,Vehicles - Contract Hire,JC101,24/12/2021,705778,632.65,REVENUE,LINKS TAXIS,100546
North East Lincolnshire Council,http://statistics.data.gov.uk/id/local-authority/00FC),Childrens Services,Education And Inclusion,Education Transport,Contract Hire-Operating Leases,Vehicles - Contract Hire,JC101,01/12/2021,701427,467.5,REVENUE,SMT (LINCS) ENTERPRISES LTD,141297
North East Lincolnshire Council,http://statistics.data.gov.uk/id/local-authority/00FC),Childrens Services,Education And Inclusion,Education Transport,Contract Hire-Operating Leases,Vehicles - Contract Hire,JC101,20/12/2021,704738,682.5,REVENUE,SMT (LINCS) ENTERPRISES LTD,141297
North East Lincolnshire Council,http://statistics.data.gov.uk/id/local-authority/00FC),Childrens Services,Education And Inclusion,Education Transport,Contract Hire-Operating Leases,Vehicles - Contract Hire,JC101,01/12/2021,701435,990,REVENUE,SMT (LINCS) ENTERPRISES LTD,141297
North East Lincolnshire Council,http://statistics.data.gov.uk/id/local-authority/00FC),Childrens Services,Education And Inclusion,Education Transport,Contract Hire-Operating Leases,Vehicles - Contract Hire,JC101,20/12/2021,704745,550,REVENUE,SMT (LINCS) ENTERPRISES LTD,141297
North East Lincolnshire Council,http://statistics.data.gov.uk/id/local-authority/00FC),Childrens Services,Education And Inclusion,Education Transport,Contract Hire-Operating Leases,Vehicles - Contract Hire,JC101,06/12/2021,701903,936,REVENUE,AA RADIO CARS LTD,101222
North East Lincolnshire Council,http://statistics.data.gov.uk/id/local-authority/00FC),Childrens Services,Education And Inclusion,Education Transport,Contract Hire-Operating Leases,Vehicles - Contract Hire,JC101,01/12/2021,701456,1672,REVENUE,SMT (LINCS) ENTERPRISES LTD,141297
North East Lincolnshire Council,http://statistics.data.gov.uk/id/local-authority/00FC),Childrens Services,Education And Inclusion,Education Transport,Contract Hire-Operating Leases,Vehicles - Contract Hire,JC101,20/12/2021,704731,520,REVENUE,SMT (LINCS) ENTERPRISES LTD,141297
North East Lincolnshire Council,http://statistics.data.gov.uk/id/local-authority/00FC),Childrens Services,Education And Inclusion,Education Transport,Contract Hire-Operating Leases,Vehicles - Contract Hire,JC101,02/12/2021,701458,880,REVENUE,SMT (LINCS) ENTERPRISES LTD,141297
North East Lincolnshire Council,http://statistics.data.gov.uk/id/local-authority/00FC),Childrens Services,Education And Inclusion,Education Transport,Contract Hire-Operating Leases,Vehicles - Contract Hire,JC101,21/12/2021,704880,400,REVENUE,SMT (LINCS) ENTERPRISES LTD,141297
North East Lincolnshire Council,http://statistics.data.gov.uk/id/local-authority/00FC),Childrens Services,Education And Inclusion,Education Transport,Contract Hire-Operating Leases,Vehicles - Contract Hire,JC101,10/12/2021,703135,357,REVENUE,LINKS TAXIS,100546
North East Lincolnshire Council,http://statistics.data.gov.uk/id/local-authority/00FC),Childrens Services,Education And Inclusion,Education Transport,Contract Hire-Operating Leases,Vehicles - Contract Hire,JC101,01/12/2021,701469,990,REVENUE,SMT (LINCS) ENTERPRISES LTD,141297
North East Lincolnshire Council,http://statistics.data.gov.uk/id/local-authority/00FC),Childrens Services,Education And Inclusion,Education Transport,Contract Hire-Operating Leases,Vehicles - Contract Hire,JC101,20/12/2021,704742,540,REVENUE,SMT (LINCS) ENTERPRISES LTD,141297
North East Lincolnshire Council,http://statistics.data.gov.uk/id/local-authority/00FC),Childrens Services,Education And Inclusion,Education Transport,Contract Hire-Operating Leases,Vehicles - Contract Hire,JC101,10/12/2021,703119,987,REVENUE,LINKS TAXIS,100546
North East Lincolnshire Council,http://statistics.data.gov.uk/id/local-authority/00FC),Childrens Services,Education And Inclusion,Education Transport,Contract Hire-Operating Leases,Vehicles - Contract Hire,JC101,24/12/2021,705779,647.5,REVENUE,LINKS TAXIS,100546
North East Lincolnshire Council,http://statistics.data.gov.uk/id/local-authority/00FC),Childrens Services,Education And Inclusion,Education Transport,Contract Hire-Operating Leases,Vehicles - Contract Hire,JC101,13/12/2021,703306,500,REVENUE,LINKS TAXIS,100546
North East Lincolnshire Council,http://statistics.data.gov.uk/id/local-authority/00FC),Childrens Services,Education And Inclusion,Education Transport,Contract Hire-Operating Leases,Vehicles - Contract Hire,JC101,24/12/2021,705883,400,REVENUE,LINKS TAXIS,100546
North East Lincolnshire Council,http://statistics.data.gov.uk/id/local-authority/00FC),Childrens Services,Education And Inclusion,Education Transport,Contract Hire-Operating Leases,Vehicles - Contract Hire,JC101,13/12/2021,703309,900,REVENUE,LINKS TAXIS,100546
North East Lincolnshire Council,http://statistics.data.gov.uk/id/local-authority/00FC),Childrens Services,Education And Inclusion,Education Transport,Contract Hire-Operating Leases,Vehicles - Contract Hire,JC101,02/12/2021,701432,680,REVENUE,SMT (LINCS) ENTERPRISES LTD,141297
North East Lincolnshire Council,http://statistics.data.gov.uk/id/local-authority/00FC),Childrens Services,Education And Inclusion,Education Transport,Contract Hire-Operating Leases,Vehicles - Contract Hire,JC101,21/12/2021,704879,520,REVENUE,SMT (LINCS) ENTERPRISES LTD,141297
North East Lincolnshire Council,http://statistics.data.gov.uk/id/local-authority/00FC),Childrens Services,Education And Inclusion,Education Transport,Contract Hire-Operating Leases,Vehicles - Contract Hire,JC101,01/12/2021,701454,850,REVENUE,SMT (LINCS) ENTERPRISES LTD,141297
North East Lincolnshire Council,http://statistics.data.gov.uk/id/local-authority/00FC),Childrens Services,Education And Inclusion,Education Transport,Contract Hire-Operating Leases,Vehicles - Contract Hire,JC101,20/12/2021,704706,650,REVENUE,SMT (LINCS) ENTERPRISES LTD,141297
North East Lincolnshire Council,http://statistics.data.gov.uk/id/local-authority/00FC),Childrens Services,Education And Inclusion,Education Transport,Contract Hire-Operating Leases,Vehicles - Contract Hire,JC101,01/12/2021,701474,945,REVENUE,SMT (LINCS) ENTERPRISES LTD,141297
North East Lincolnshire Council,http://statistics.data.gov.uk/id/local-authority/00FC),Childrens Services,Education And Inclusion,Education Transport,Contract Hire-Operating Leases,Vehicles - Contract Hire,JC101,01/12/2021,701467,1980,REVENUE,SMT (LINCS) ENTERPRISES LTD,141297
North East Lincolnshire Council,http://statistics.data.gov.uk/id/local-authority/00FC),Childrens Services,Education And Inclusion,Education Transport,Contract Hire-Operating Leases,Vehicles - Contract Hire,JC101,20/12/2021,704740,1080,REVENUE,SMT (LINCS) ENTERPRISES LTD,141297
North East Lincolnshire Council,http://statistics.data.gov.uk/id/local-authority/00FC),Childrens Services,Education And Inclusion,Education Transport,Contract Hire-Operating Leases,Vehicles - Contract Hire,JC101,07/12/2021,701986,1900,REVENUE,S&B PRIVATE HIRE,149599
North East Lincolnshire Council,http://statistics.data.gov.uk/id/local-authority/00FC),Childrens Services,Education And Inclusion,Education Transport,Contract Hire-Operating Leases,Vehicles - Contract Hire,JC101,21/12/2021,704916,1300,REVENUE,S&B PRIVATE HIRE,149599
North East Lincolnshire Council,http://statistics.data.gov.uk/id/local-authority/00FC),Childrens Services,Education And Inclusion,Education Transport,Contract Hire-Operating Leases,Vehicles - Contract Hire,JC101,01/12/2021,701464,1980,REVENUE,SMT (LINCS) ENTERPRISES LTD,141297
North East Lincolnshire Council,http://statistics.data.gov.uk/id/local-authority/00FC),Childrens Services,Education And Inclusion,Education Transport,Contract Hire-Operating Leases,Vehicles - Contract Hire,JC101,20/12/2021,704744,1170,REVENUE,SMT (LINCS) ENTERPRISES LTD,141297
North East Lincolnshire Council,http://statistics.data.gov.uk/id/local-authority/00FC),Childrens Services,Education And Inclusion,Education Transport,Contract Hire-Operating Leases,Vehicles - Contract Hire,JC101,13/12/2021,703307,1549,REVENUE,LINKS TAXIS,100546
North East Lincolnshire Council,http://statistics.data.gov.uk/id/local-authority/00FC),Childrens Services,Education And Inclusion,Education Transport,Contract Hire-Operating Leases,Vehicles - Contract Hire,JC101,06/12/2021,702112,2178,REVENUE,AMVALE MEDICAL TRANSPORT LTD,130777
North East Lincolnshire Council,http://statistics.data.gov.uk/id/local-authority/00FC),Childrens Services,Education And Inclusion,Education Transport,Contract Hire-Operating Leases,Vehicles - Contract Hire,JC101,10/12/2021,703133,1535.5,REVENUE,LINKS TAXIS,100546
North East Lincolnshire Council,http://statistics.data.gov.uk/id/local-authority/00FC),Childrens Services,Education And Inclusion,Education Transport,Contract Hire-Operating Leases,Vehicles - Contract Hire,JC101,24/12/2021,705810,684.5,REVENUE,LINKS TAXIS,100546
North East Lincolnshire Council,http://statistics.data.gov.uk/id/local-authority/00FC),Childrens Services,Education And Inclusion,Education Transport,Contract Hire-Operating Leases,Vehicles - Contract Hire,JC101,10/12/2021,703118,814,REVENUE,LINKS TAXIS,100546
North East Lincolnshire Council,http://statistics.data.gov.uk/id/local-authority/00FC),Childrens Services,Education And Inclusion,Education Transport,Contract Hire-Operating Leases,Vehicles - Contract Hire,JC101,24/12/2021,705809,425.5,REVENUE,LINKS TAXIS,100546
North East Lincolnshire Council,http://statistics.data.gov.uk/id/local-authority/00FC),Childrens Services,Education And Inclusion,Education Transport,Contract Hire-Operating Leases,Vehicles - Contract Hire,JC101,07/12/2021,702108,1100,REVENUE,COXONS CARS LIMITED,100578
North East Lincolnshire Council,http://statistics.data.gov.uk/id/local-authority/00FC),Childrens Services,Education And Inclusion,Education Transport,Contract Hire-Operating Leases,Vehicles - Contract Hire,JC101,21/12/2021,704795,500,REVENUE,COXONS CARS LIMITED,100578
North East Lincolnshire Council,http://statistics.data.gov.uk/id/local-authority/00FC),Childrens Services,Education And Inclusion,Education Transport,Contract Hire-Operating Leases,Vehicles - Contract Hire,JC101,06/12/2021,701911,1204,REVENUE,AA RADIO CARS LTD,101222
North East Lincolnshire Council,http://statistics.data.gov.uk/id/local-authority/00FC),Childrens Services,Education And Inclusion,Education Transport,Contract Hire-Operating Leases,Vehicles - Contract Hire,JC101,10/12/2021,703124,525,REVENUE,LINKS TAXIS,100546
North East Lincolnshire Council,http://statistics.data.gov.uk/id/local-authority/00FC),Childrens Services,Education And Inclusion,Education Transport,Contract Hire-Operating Leases,Vehicles - Contract Hire,JC101,24/12/2021,705796,820,REVENUE,LINKS TAXIS,100546
North East Lincolnshire Council,http://statistics.data.gov.uk/id/local-authority/00FC),Childrens Services,Education And Inclusion,Education Transport,Contract Hire-Operating Leases,Vehicles - Contract Hire,JC101,07/12/2021,702107,912,REVENUE,COXONS CARS LIMITED,100578
North East Lincolnshire Council,http://statistics.data.gov.uk/id/local-authority/00FC),Childrens Services,Education And Inclusion,Education Transport,Contract Hire-Operating Leases,Vehicles - Contract Hire,JC101,21/12/2021,704797,624,REVENUE,COXONS CARS LIMITED,100578
North East Lincolnshire Council,http://statistics.data.gov.uk/id/local-authority/00FC),Childrens Services,Education And Inclusion,Education Transport,Contract Hire-Operating Leases,Vehicles - Contract Hire,JC101,10/12/2021,703130,1333,REVENUE,LINKS TAXIS,100546
North East Lincolnshire Council,http://statistics.data.gov.uk/id/local-authority/00FC),Childrens Services,Education And Inclusion,Education Transport,Contract Hire-Operating Leases,Vehicles - Contract Hire,JC101,24/12/2021,705794,806,REVENUE,LINKS TAXIS,100546
North East Lincolnshire Council,http://statistics.data.gov.uk/id/local-authority/00FC),Childrens Services,Education And Inclusion,Education Transport,Contract Hire-Operating Leases,Vehicles - Contract Hire,JC101,10/12/2021,703123,1364,REVENUE,LINKS TAXIS,100546
North East Lincolnshire Council,http://statistics.data.gov.uk/id/local-authority/00FC),Childrens Services,Education And Inclusion,Education Transport,Contract Hire-Operating Leases,Vehicles - Contract Hire,JC101,24/12/2021,705876,904,REVENUE,LINKS TAXIS,100546
North East Lincolnshire Council,http://statistics.data.gov.uk/id/local-authority/00FC),Childrens Services,Education And Inclusion,Education Transport,Contract Hire-Operating Leases,Vehicles - Contract Hire,JC101,14/12/2021,703931,1222,REVENUE,LINKS TAXIS,100546
North East Lincolnshire Council,http://statistics.data.gov.uk/id/local-authority/00FC),Childrens Services,Education And Inclusion,Education Transport,Contract Hire-Operating Leases,Vehicles - Contract Hire,JC101,15/12/2021,703987,1999,REVENUE,LINKS TAXIS,100546
North East Lincolnshire Council,http://statistics.data.gov.uk/id/local-authority/00FC),Childrens Services,Education And Inclusion,Education Transport,Contract Hire-Operating Leases,Vehicles - Contract Hire,JC101,06/12/2021,702102,600,REVENUE,COXONS CARS LIMITED,100578
North East Lincolnshire Council,http://statistics.data.gov.uk/id/local-authority/00FC),Childrens Services,Education And Inclusion,Education Transport,Contract Hire-Operating Leases,Vehicles - Contract Hire,JC101,21/12/2021,704787,420,REVENUE,COXONS CARS LIMITED,100578
North East Lincolnshire Council,http://statistics.data.gov.uk/id/local-authority/00FC),Childrens Services,Education And Inclusion,Education Transport,Contract Hire-Operating Leases,Vehicles - Contract Hire,JC101,13/12/2021,703100,1054,REVENUE,LINKS TAXIS,100546
North East Lincolnshire Council,http://statistics.data.gov.uk/id/local-authority/00FC),Childrens Services,Education And Inclusion,Education Transport,Contract Hire-Operating Leases,Vehicles - Contract Hire,JC101,24/12/2021,705884,564,REVENUE,LINKS TAXIS,100546
North East Lincolnshire Council,http://statistics.data.gov.uk/id/local-authority/00FC),Childrens Services,Education And Inclusion,Education Transport,Contract Hire-Operating Leases,Vehicles - Contract Hire,JC101,10/12/2021,703122,681.5,REVENUE,LINKS TAXIS,100546
North East Lincolnshire Council,http://statistics.data.gov.uk/id/local-authority/00FC),Childrens Services,Education And Inclusion,Education Transport,Contract Hire-Operating Leases,Vehicles - Contract Hire,JC101,24/12/2021,705881,611,REVENUE,LINKS TAXIS,100546
North East Lincolnshire Council,http://statistics.data.gov.uk/id/local-authority/00FC),Childrens Services,Education And Inclusion,Education Transport,Contract Hire-Operating Leases,Vehicles - Contract Hire,JC101,06/12/2021,701908,728,REVENUE,AA RADIO CARS LTD,101222
North East Lincolnshire Council,http://statistics.data.gov.uk/id/local-authority/00FC),Childrens Services,Education And Inclusion,Education Transport,Contract Hire-Operating Leases,Vehicles - Contract Hire,JC101,06/12/2021,701905,1035,REVENUE,AA RADIO CARS LTD,101222
North East Lincolnshire Council,http://statistics.data.gov.uk/id/local-authority/00FC),Childrens Services,Education And Inclusion,Education Transport,Contract Hire-Operating Leases,Vehicles - Contract Hire,JC101,06/12/2021,701910,280,REVENUE,AA RADIO CARS LTD,101222
North East Lincolnshire Council,http://statistics.data.gov.uk/id/local-authority/00FC),Childrens Services,Education And Inclusion,Education Transport,Contract Hire-Operating Leases,Vehicles - Contract Hire,JC101,07/12/2021,701955,2838,REVENUE,AMVALE LIMITED,101030
North East Lincolnshire Council,http://statistics.data.gov.uk/id/local-authority/00FC),Childrens Services,Education And Inclusion,Education Transport,Contract Hire-Operating Leases,Vehicles - Contract Hire,JC101,07/12/2021,701959,385,REVENUE,AMVALE LIMITED,101030
North East Lincolnshire Council,http://statistics.data.gov.uk/id/local-authority/00FC),Childrens Services,Education And Inclusion,Education Transport,Contract Hire-Operating Leases,Vehicles - Contract Hire,JC101,20/12/2021,704580,1548,REVENUE,AMVALE LIMITED,101030
North East Lincolnshire Council,http://statistics.data.gov.uk/id/local-authority/00FC),Childrens Services,Education And Inclusion,Education Transport,Contract Hire-Operating Leases,Vehicles - Contract Hire,JC101,07/12/2021,701956,3058,REVENUE,AMVALE LIMITED,101030
North East Lincolnshire Council,http://statistics.data.gov.uk/id/local-authority/00FC),Childrens Services,Education And Inclusion,Education Transport,Contract Hire-Operating Leases,Vehicles - Contract Hire,JC101,07/12/2021,701958,315,REVENUE,AMVALE LIMITED,101030
North East Lincolnshire Council,http://statistics.data.gov.uk/id/local-authority/00FC),Childrens Services,Education And Inclusion,Education Transport,Contract Hire-Operating Leases,Vehicles - Contract Hire,JC101,07/12/2021,701957,3036,REVENUE,AMVALE LIMITED,101030
North East Lincolnshire Council,http://statistics.data.gov.uk/id/local-authority/00FC),Childrens Services,Education And Inclusion,Education Transport,Contract Hire-Operating Leases,Vehicles - Contract Hire,JC101,20/12/2021,704582,1794,REVENUE,AMVALE LIMITED,101030
North East Lincolnshire Council,http://statistics.data.gov.uk/id/local-authority/00FC),Childrens Services,Education And Inclusion,Education Transport,Contract Hire-Operating Leases,Vehicles - Contract Hire,JC101,13/12/2021,703310,852.5,REVENUE,LINKS TAXIS,100546
North East Lincolnshire Council,http://statistics.data.gov.uk/id/local-authority/00FC),Childrens Services,Education And Inclusion,Education Transport,Contract Hire-Operating Leases,Vehicles - Contract Hire,JC101,01/12/2021,701434,3720,REVENUE,SMT (LINCS) ENTERPRISES LTD,141297
North East Lincolnshire Council,http://statistics.data.gov.uk/id/local-authority/00FC),Childrens Services,Education And Inclusion,Education Transport,Contract Hire-Operating Leases,Vehicles - Contract Hire,JC101,02/12/2021,701433,1870,REVENUE,SMT (LINCS) ENTERPRISES LTD,141297
North East Lincolnshire Council,http://statistics.data.gov.uk/id/local-authority/00FC),Childrens Services,Education And Inclusion,Education Transport,Contract Hire-Operating Leases,Vehicles - Contract Hire,JC101,20/12/2021,704746,1430,REVENUE,SMT (LINCS) ENTERPRISES LTD,141297
North East Lincolnshire Council,http://statistics.data.gov.uk/id/local-authority/00FC),Childrens Services,Education And Inclusion,Education Transport,Contract Hire-Operating Leases,Vehicles - Contract Hire,JC101,13/12/2021,703311,924,REVENUE,LINKS TAXIS,100546
North East Lincolnshire Council,http://statistics.data.gov.uk/id/local-authority/00FC),Childrens Services,Education And Inclusion,Education Transport,Contract Hire-Operating Leases,Vehicles - Contract Hire,JC101,17/12/2021,704271,567,REVENUE,LINKS TAXIS,100546
North East Lincolnshire Council,http://statistics.data.gov.uk/id/local-authority/00FC),Childrens Services,Education And Inclusion,Education Transport,Contract Hire-Operating Leases,Vehicles - Contract Hire,JC101,13/12/2021,703237,260,REVENUE,REDACTED PERSONAL INFORMATION,REDACTED PERSONAL INFORMATION
North East Lincolnshire Council,http://statistics.data.gov.uk/id/local-authority/00FC),Childrens Services,Education And Inclusion,Education Transport,Contract Hire-Operating Leases,Vehicles - Contract Hire,JC101,01/12/2021,701424,2402.3,REVENUE,LINKS TAXIS,100546
North East Lincolnshire Council,http://statistics.data.gov.uk/id/local-authority/00FC),Childrens Services,Education And Inclusion,Education Transport,Contract Hire-Operating Leases,Vehicles - Contract Hire,JC101,13/12/2021,703099,2368.8,REVENUE,LINKS TAXIS,100546
North East Lincolnshire Council,http://statistics.data.gov.uk/id/local-authority/00FC),Childrens Services,Education And Inclusion,Education Transport,Contract Hire-Operating Leases,Vehicles - Contract Hire,JC101,13/12/2021,703171,1725,REVENUE,LINCOLNSHIRE COUNTY COUNCIL,100389
North East Lincolnshire Council,http://statistics.data.gov.uk/id/local-authority/00FC),Childrens Services,Education And Inclusion,Education Transport,Contract Hire-Operating Leases,Vehicles - Contract Hire,JC101,20/12/2021,704593,1863,REVENUE,LINCOLNSHIRE COUNTY COUNCIL,100389
North East Lincolnshire Council,http://statistics.data.gov.uk/id/local-authority/00FC),Childrens Services,Education And Inclusion,Education Transport,Contract Hire-Operating Leases,Vehicles - Contract Hire,JC101,20/12/2021,704590,1725,REVENUE,LINCOLNSHIRE COUNTY COUNCIL,100389
North East Lincolnshire Council,http://statistics.data.gov.uk/id/local-authority/00FC),Childrens Services,Education And Inclusion,Education Transport,Contract Hire-Operating Leases,Vehicles - Contract Hire,JC101,09/12/2021,702679,825,REVENUE,SMT (LINCS) ENTERPRISES LTD,141297
North East Lincolnshire Council,http://statistics.data.gov.uk/id/local-authority/00FC),Childrens Services,Education And Inclusion,Education Transport,Contract Hire-Operating Leases,Vehicles - Contract Hire,JC101,20/12/2021,704589,2967,REVENUE,LINCOLNSHIRE COUNTY COUNCIL,100389
North East Lincolnshire Council,http://statistics.data.gov.uk/id/local-authority/00FC),Childrens Services,Education And Inclusion,Education Transport,Contract Hire-Operating Leases,Vehicles - Contract Hire,JC101,15/12/2021,703947,4999.5,REVENUE,DONCASTER METROPOLITAN BOROUGH COUNCIL,122184
North East Lincolnshire Council,http://statistics.data.gov.uk/id/local-authority/00FC),Childrens Services,Education And Inclusion,Education Transport,Contributions To Provisions,Contributions - Other,LK103,21/12/2021,989041,1009.06,REVENUE,REDACTED PERSONAL INFORMATION,REDACTED PERSONAL INFORMATION
North East Lincolnshire Council,http://statistics.data.gov.uk/id/local-authority/00FC),Childrens Services,Education And Inclusion,Education Transport,Private Contractors,Concessionary Fares,PH104,20/12/2021,704567,306,REVENUE,STAGECOACH SERVICES,101404
North East Lincolnshire Council,http://statistics.data.gov.uk/id/local-authority/00FC),Childrens Services,Education And Inclusion,Sen/Inclusion,Other Local Authorities,Third Pp - Other Local Auth,PC101,20/12/2021,704502,900,REVENUE,R Y FIDLER,142906
North East Lincolnshire Council,http://statistics.data.gov.uk/id/local-authority/00FC),Childrens Services,Education And Inclusion,Sen/Inclusion,Other Local Authorities,Third Pp - Other Local Auth,PC101,20/12/2021,704500,900,REVENUE,R Y FIDLER,142906
North East Lincolnshire Council,http://statistics.data.gov.uk/id/local-authority/00FC),Childrens Services,Education And Inclusion,Sen/Inclusion,Miscellaneous Expenses,Contingency Reserve,LL123,21/12/2021,705117,8700,REVENUE,THE CAMBRIDGE PARK ACADEMY,107472
North East Lincolnshire Council,http://statistics.data.gov.uk/id/local-authority/00FC),Childrens Services,Education And Inclusion,Sen/Inclusion,Miscellaneous Expenses,Contingency Reserve,LL123,13/12/2021,703221,3280.85,REVENUE,BEACON ACADEMY,138130
North East Lincolnshire Council,http://statistics.data.gov.uk/id/local-authority/00FC),Childrens Services,Education And Inclusion,Sen/Inclusion,Miscellaneous Expenses,Contingency Reserve,LL123,13/12/2021,703200,2805.49,REVENUE,HUMBERSTON ACADEMY,106067
North East Lincolnshire Council,http://statistics.data.gov.uk/id/local-authority/00FC),Childrens Services,Education And Inclusion,Sen/Inclusion,Voluntary Associations,Third Pp - Third Sector,PF101,20/12/2021,704493,19625,REVENUE,BARNARDO SERVICES LTD,101050
North East Lincolnshire Council,http://statistics.data.gov.uk/id/local-authority/00FC),Childrens Services,Education And Inclusion,Sen/Inclusion,Indirect Employee Expenses,Staff Training,EB122,07/12/2021,702444,290,REVENUE,CADMUS SUPPORT SERVICES LTD,149931
North East Lincolnshire Council,http://statistics.data.gov.uk/id/local-authority/00FC),Childrens Services,Education And Inclusion,Sen/Inclusion,Direct Employee Expenses,Pay Teachers Supply Cover,EA106,07/12/2021,702058,366,REVENUE,SAAF SUPPLY LIMITED,141575
North East Lincolnshire Council,http://statistics.data.gov.uk/id/local-authority/00FC),Childrens Services,Education And Inclusion,Sen/Inclusion,Direct Employee Expenses,Pay Teachers Supply Cover,EA106,07/12/2021,702083,610,REVENUE,SAAF SUPPLY LIMITED,141575
North East Lincolnshire Council,http://statistics.data.gov.uk/id/local-authority/00FC),Childrens Services,Education And Inclusion,Sen/Inclusion,Direct Employee Expenses,Pay Teachers Supply Cover,EA106,07/12/2021,702085,875,REVENUE,SAAF SUPPLY LIMITED,141575
North East Lincolnshire Council,http://statistics.data.gov.uk/id/local-authority/00FC),Childrens Services,Education And Inclusion,Sen/Inclusion,Communications And Computing,Computer S/Ware - Licences,LF103,20/12/2021,704548,700,REVENUE,TOTAL COMPUTER NETWORKS LTD,141310
North East Lincolnshire Council,http://statistics.data.gov.uk/id/local-authority/00FC),Childrens Services,Education And Inclusion,Sen/Inclusion,Other Local Authorities,Third Pp - Other Local Auth,PC101,14/12/2021,703932,19057.22,REVENUE,REDACTED PERSONAL INFORMATION,REDACTED PERSONAL INFORMATION
North East Lincolnshire Council,http://statistics.data.gov.uk/id/local-authority/00FC),Childrens Services,Education And Inclusion,Sen/Inclusion,Other Local Authorities,Third Pp - Other Local Auth,PC101,10/12/2021,703077,1005.45,REVENUE,REDACTED PERSONAL INFORMATION,REDACTED PERSONAL INFORMATION
North East Lincolnshire Council,http://statistics.data.gov.uk/id/local-authority/00FC),Childrens Services,Education And Inclusion,Sen/Inclusion,Private Contractors,Third Party Prov - Private,PH101,21/12/2021,992489,-567.75,REVENUE,REDACTED PERSONAL INFORMATION,REDACTED PERSONAL INFORMATION
North East Lincolnshire Council,http://statistics.data.gov.uk/id/local-authority/00FC),Childrens Services,Education And Inclusion,Sen/Inclusion,Private Contractors,Third Party Prov - Private,PH101,06/12/2021,701882,1721,REVENUE,FRANKLIN COLLEGE,101073
North East Lincolnshire Council,http://statistics.data.gov.uk/id/local-authority/00FC),Childrens Services,Education And Inclusion,Sen/Inclusion,Private Contractors,Third Party Prov - Private,PH101,06/12/2021,701883,1721,REVENUE,FRANKLIN COLLEGE,101073
North East Lincolnshire Council,http://statistics.data.gov.uk/id/local-authority/00FC),Childrens Services,Education And Inclusion,Sen/Inclusion,Private Contractors,Third Party Prov - Private,PH101,10/12/2021,703080,25108.67,REVENUE,REDACTED PERSONAL INFORMATION,REDACTED PERSONAL INFORMATION
North East Lincolnshire Council,http://statistics.data.gov.uk/id/local-authority/00FC),Childrens Services,Education And Inclusion,Sen/Inclusion,Private Contractors,Third Party Prov - Private,PH101,10/12/2021,703078,17364.67,REVENUE,REDACTED PERSONAL INFORMATION,REDACTED PERSONAL INFORMATION
North East Lincolnshire Council,http://statistics.data.gov.uk/id/local-authority/00FC),Childrens Services,Education And Inclusion,Sen/Inclusion,Private Contractors,Third Party Prov - Private,PH101,06/12/2021,701915,1635.5,REVENUE,FRANKLIN COLLEGE,101073
North East Lincolnshire Council,http://statistics.data.gov.uk/id/local-authority/00FC),Childrens Services,Education And Inclusion,Sen/Inclusion,Private Contractors,Third Party Prov - Private,PH101,15/12/2021,703965,19981.38,REVENUE,LEARNING4LIFE-GY-CIC,144120
North East Lincolnshire Council,http://statistics.data.gov.uk/id/local-authority/00FC),Childrens Services,Education And Inclusion,Sen/Inclusion,Private Contractors,Third Party Prov - Private,PH101,15/12/2021,703967,2259.41,REVENUE,LEARNING4LIFE-GY-CIC,144120
North East Lincolnshire Council,http://statistics.data.gov.uk/id/local-authority/00FC),Childrens Services,Education And Inclusion,Sen/Inclusion,Private Contractors,Third Party Prov - Private,PH101,15/12/2021,703966,2259.41,REVENUE,LEARNING4LIFE-GY-CIC,144120
North East Lincolnshire Council,http://statistics.data.gov.uk/id/local-authority/00FC),Childrens Services,Education And Inclusion,Sen/Inclusion,Private Contractors,Third Party Prov - Private,PH101,15/12/2021,703968,17842.61,REVENUE,LEARNING4LIFE-GY-CIC,144120
North East Lincolnshire Council,http://statistics.data.gov.uk/id/local-authority/00FC),Childrens Services,Education And Inclusion,Sen/Inclusion,Private Contractors,Third Party Prov - Private,PH101,20/12/2021,704494,1635.5,REVENUE,FRANKLIN COLLEGE,101073
North East Lincolnshire Council,http://statistics.data.gov.uk/id/local-authority/00FC),Childrens Services,Education And Inclusion,Sen/Inclusion,Miscellaneous Expenses,Contingency Reserve,LL123,21/12/2021,705125,1417,REVENUE,PHOENIX PARK ACADEMY,126685
North East Lincolnshire Council,http://statistics.data.gov.uk/id/local-authority/00FC),Childrens Services,Education And Inclusion,Sen/Inclusion,Miscellaneous Expenses,Contingency Reserve,LL123,21/12/2021,705127,17000,REVENUE,PHOENIX PARK ACADEMY,126685
North East Lincolnshire Council,http://statistics.data.gov.uk/id/local-authority/00FC),Childrens Services,Education And Inclusion,Sen/Inclusion,Miscellaneous Expenses,Contingency Reserve,LL123,21/12/2021,705126,48167,REVENUE,PHOENIX PARK ACADEMY,126685
North East Lincolnshire Council,http://statistics.data.gov.uk/id/local-authority/00FC),Childrens Services,Education And Inclusion,Sen/Inclusion,Miscellaneous Expenses,Contingency Reserve,LL123,21/12/2021,705128,28333,REVENUE,SEVENHILLS ACADEMY,128660
North East Lincolnshire Council,http://statistics.data.gov.uk/id/local-authority/00FC),Childrens Services,Education And Inclusion,Sen/Inclusion,Miscellaneous Expenses,Contingency Reserve,LL123,21/12/2021,705129,28333,REVENUE,SEVENHILLS ACADEMY,128660
North East Lincolnshire Council,http://statistics.data.gov.uk/id/local-authority/00FC),Childrens Services,Education And Inclusion,Sen/Inclusion,Contributions To Provisions,Contributions - Other,LK103,21/12/2021,705118,1700,REVENUE,THE CAMBRIDGE PARK ACADEMY,107472
North East Lincolnshire Council,http://statistics.data.gov.uk/id/local-authority/00FC),Childrens Services,Education And Inclusion,Sen/Inclusion,Contributions To Provisions,Contributions - Third Sector,LK102,21/12/2021,990480,935,REVENUE,REDACTED PERSONAL INFORMATION,REDACTED PERSONAL INFORMATION
North East Lincolnshire Council,http://statistics.data.gov.uk/id/local-authority/00FC),Childrens Services,Education And Inclusion,Sen/Inclusion,Contributions To Provisions,Contributions - Third Sector,LK102,01/12/2021,695584,1871.11,REVENUE,THE CHILDRENS HOUSE,101141
North East Lincolnshire Council,http://statistics.data.gov.uk/id/local-authority/00FC),Childrens Services,Education And Inclusion,Sen/Inclusion,Contributions To Provisions,Contributions - Third Sector,LK102,17/12/2021,701409,4555.73,REVENUE,LISLE MARSDEN CHILDCARE LIMITED,110493
North East Lincolnshire Council,http://statistics.data.gov.uk/id/local-authority/00FC),Childrens Services,Education And Inclusion,Sen/Inclusion,Contributions To Provisions,Contributions - Third Sector,LK102,16/12/2021,704046,2093.08,REVENUE,AK PAYROLL SERVICES LTD,145107
North East Lincolnshire Council,http://statistics.data.gov.uk/id/local-authority/00FC),Childrens Services,Education And Inclusion,Sen/Inclusion,Contributions To Provisions,Contributions - Third Sector,LK102,16/12/2021,704047,5833,REVENUE,EASTFIELD PRIMARY ACADEMY,121907
North East Lincolnshire Council,http://statistics.data.gov.uk/id/local-authority/00FC),Childrens Services,Education And Inclusion,Sen/Inclusion,Contributions To Provisions,Contributions - Third Sector,LK102,16/12/2021,704048,5833,REVENUE,EASTFIELD PRIMARY ACADEMY,121907
North East Lincolnshire Council,http://statistics.data.gov.uk/id/local-authority/00FC),Childrens Services,Education And Inclusion,Sen/Inclusion,Contributions To Provisions,Contributions - Third Sector,LK102,16/12/2021,704049,5833,REVENUE,EASTFIELD PRIMARY ACADEMY,121907
North East Lincolnshire Council,http://statistics.data.gov.uk/id/local-authority/00FC),Childrens Services,Education And Inclusion,Sen/Inclusion,Contributions To Provisions,Contributions - Third Sector,LK102,20/12/2021,704497,2534.25,REVENUE,RAINBOW CORNER DAY NURSERY,101229
North East Lincolnshire Council,http://statistics.data.gov.uk/id/local-authority/00FC),Childrens Services,Education And Inclusion,Sen/Inclusion,Miscellaneous Expenses,Contingency Reserve,LL123,21/12/2021,705119,155534,REVENUE,THE CAMBRIDGE PARK ACADEMY,107472
North East Lincolnshire Council,http://statistics.data.gov.uk/id/local-authority/00FC),Childrens Services,Education And Inclusion,Sen/Inclusion,Miscellaneous Expenses,Contingency Reserve,LL123,21/12/2021,705116,9817,REVENUE,THE CAMBRIDGE PARK ACADEMY,107472
North East Lincolnshire Council,http://statistics.data.gov.uk/id/local-authority/00FC),Childrens Services,Education And Inclusion,Sen/Inclusion,Miscellaneous Expenses,Contingency Reserve,LL123,21/12/2021,705120,9817,REVENUE,HUMBERSTON PARK SPECIAL SCHOOL,107911
North East Lincolnshire Council,http://statistics.data.gov.uk/id/local-authority/00FC),Childrens Services,Education And Inclusion,Sen/Inclusion,Miscellaneous Expenses,Contingency Reserve,LL123,21/12/2021,705121,122718,REVENUE,HUMBERSTON PARK SPECIAL SCHOOL,107911
North East Lincolnshire Council,http://statistics.data.gov.uk/id/local-authority/00FC),Childrens Services,Education And Inclusion,Sen/Inclusion,Miscellaneous Expenses,Other Expenses General,LL119,21/12/2021,705123,6000,REVENUE,EASTFIELD PRIMARY ACADEMY,121907
North East Lincolnshire Council,http://statistics.data.gov.uk/id/local-authority/00FC),Childrens Services,Education And Inclusion,Sen/Inclusion,Miscellaneous Expenses,Other Expenses General,LL119,21/12/2021,705124,1958,REVENUE,EASTFIELD PRIMARY ACADEMY,121907
North East Lincolnshire Council,http://statistics.data.gov.uk/id/local-authority/00FC),Childrens Services,Education And Inclusion,Sen/Inclusion,Miscellaneous Expenses,Other Expenses General,LL119,21/12/2021,705122,9000,REVENUE,EASTFIELD PRIMARY ACADEMY,121907
North East Lincolnshire Council,http://statistics.data.gov.uk/id/local-authority/00FC),Childrens Services,Education And Inclusion,Sen/Inclusion,Contributions To Provisions,Contributions - Other,LK103,02/12/2021,701489,2235,REVENUE,MISS AMANDA YOUNG,119739
North East Lincolnshire Council,http://statistics.data.gov.uk/id/local-authority/00FC),Childrens Services,Education And Inclusion,Sen/Inclusion,Contributions To Provisions,Contributions - Other,LK103,02/12/2021,701488,425.22,REVENUE,VIDA BINGHAM,147466
North East Lincolnshire Council,http://statistics.data.gov.uk/id/local-authority/00FC),Childrens Services,Education And Inclusion,Sen/Inclusion,Contributions To Provisions,Contributions - Other,LK103,16/12/2021,703952,750,REVENUE,ST PETERS COFE PRIMARY ACADEMY,134905
North East Lincolnshire Council,http://statistics.data.gov.uk/id/local-authority/00FC),Childrens Services,Education And Inclusion,Sen/Inclusion,Contributions To Provisions,Contributions - Other,LK103,16/12/2021,703952,750,REVENUE,ST PETERS COFE PRIMARY ACADEMY,134905
North East Lincolnshire Council,http://statistics.data.gov.uk/id/local-authority/00FC),Childrens Services,Education And Inclusion,Sen/Inclusion,Contributions To Provisions,Contributions - Other,LK103,16/12/2021,703952,750,REVENUE,ST PETERS COFE PRIMARY ACADEMY,134905
North East Lincolnshire Council,http://statistics.data.gov.uk/id/local-authority/00FC),Childrens Services,Education And Inclusion,Sen/Inclusion,Contributions To Provisions,Contributions - Other,LK103,02/12/2021,701490,750,REVENUE,LISLE MARSDEN CHILDCARE LIMITED,110493
North East Lincolnshire Council,http://statistics.data.gov.uk/id/local-authority/00FC),Childrens Services,Education And Inclusion,Sen/Inclusion,Contributions To Provisions,Contributions - Other,LK103,02/12/2021,701492,750,REVENUE,LITTLE TWINKLES CHILDCARE LTD,122217
North East Lincolnshire Council,http://statistics.data.gov.uk/id/local-authority/00FC),Childrens Services,Education And Inclusion,Sen/Inclusion,Contributions To Provisions,Contributions - Other,LK103,07/12/2021,701733,750,REVENUE,OLD CLEE PRIMARY ACADEMY,119822
North East Lincolnshire Council,http://statistics.data.gov.uk/id/local-authority/00FC),Childrens Services,Education And Inclusion,Sen/Inclusion,Contributions To Provisions,Contributions - Other,LK103,07/12/2021,702047,2422.5,REVENUE,ETAC LIMITED,101710
North East Lincolnshire Council,http://statistics.data.gov.uk/id/local-authority/00FC),Childrens Services,Education And Inclusion,Sen/Inclusion,Contributions To Provisions,Contributions - Third Sector,LK102,14/12/2021,703363,2220,REVENUE,FOR UNDER FIVES LTD,100647
North East Lincolnshire Council,http://statistics.data.gov.uk/id/local-authority/00FC),Childrens Services,Education And Inclusion,Sen/Inclusion,Contributions To Provisions,Contributions - Third Sector,LK102,14/12/2021,703366,1500,REVENUE,FOR UNDER FIVES LTD,100647
North East Lincolnshire Council,http://statistics.data.gov.uk/id/local-authority/00FC),Childrens Services,Education And Inclusion,Sen/Inclusion,Other Local Authorities,Third Pp - Other Local Auth,PC101,10/12/2021,702817,264648.51,REVENUE,REDACTED PERSONAL INFORMATION,REDACTED PERSONAL INFORMATION
North East Lincolnshire Council,http://statistics.data.gov.uk/id/local-authority/00FC),Childrens Services,Education And Inclusion,Sen/Inclusion,Other Local Authorities,Third Pp - Other Local Auth,PC101,20/12/2021,704501,161937.39,REVENUE,REDACTED PERSONAL INFORMATION,REDACTED PERSONAL INFORMATION
North East Lincolnshire Council,http://statistics.data.gov.uk/id/local-authority/00FC),Childrens Services,Education And Inclusion,Sen/Inclusion,Other Local Authorities,Third Pp - Other Local Auth,PC101,16/12/2021,704203,3555.2,REVENUE,REDACTED PERSONAL INFORMATION,REDACTED PERSONAL INFORMATION
North East Lincolnshire Council,http://statistics.data.gov.uk/id/local-authority/00FC),Childrens Services,Education And Inclusion,Sen/Inclusion,Other Local Authorities,Third Pp - Other Local Auth,PC101,10/12/2021,703083,3415.5,REVENUE,REDACTED PERSONAL INFORMATION,REDACTED PERSONAL INFORMATION
North East Lincolnshire Council,http://statistics.data.gov.uk/id/local-authority/00FC),Childrens Services,Education And Inclusion,Sen/Inclusion,Other Local Authorities,Third Pp - Other Local Auth,PC101,10/12/2021,703079,41128.66,REVENUE,REDACTED PERSONAL INFORMATION,REDACTED PERSONAL INFORMATION
North East Lincolnshire Council,http://statistics.data.gov.uk/id/local-authority/00FC),Childrens Services,Education And Inclusion,Sen/Inclusion,Other Local Authorities,Third Pp - Other Local Auth,PC101,15/12/2021,703985,33488.13,REVENUE,REDACTED PERSONAL INFORMATION,REDACTED PERSONAL INFORMATION
North East Lincolnshire Council,http://statistics.data.gov.uk/id/local-authority/00FC),Childrens Services,Education And Inclusion,Sen/Inclusion,Other Local Authorities,Third Pp - Other Local Auth,PC101,07/12/2021,701760,4333.4,REVENUE,REDACTED PERSONAL INFORMATION,REDACTED PERSONAL INFORMATION
North East Lincolnshire Council,http://statistics.data.gov.uk/id/local-authority/00FC),Childrens Services,Education And Inclusion,Sen/Inclusion,Other Local Authorities,Third Pp - Other Local Auth,PC101,07/12/2021,701777,3933.4,REVENUE,REDACTED PERSONAL INFORMATION,REDACTED PERSONAL INFORMATION
North East Lincolnshire Council,http://statistics.data.gov.uk/id/local-authority/00FC),Childrens Services,Education And Inclusion,Sen/Inclusion,Other Local Authorities,Third Pp - Other Local Auth,PC101,07/12/2021,701778,3933.4,REVENUE,REDACTED PERSONAL INFORMATION,REDACTED PERSONAL INFORMATION
North East Lincolnshire Council,http://statistics.data.gov.uk/id/local-authority/00FC),Childrens Services,Education And Inclusion,Sen/Inclusion,Other Local Authorities,Third Pp - Other Local Auth,PC101,07/12/2021,701779,3333.4,REVENUE,REDACTED PERSONAL INFORMATION,REDACTED PERSONAL INFORMATION
North East Lincolnshire Council,http://statistics.data.gov.uk/id/local-authority/00FC),Childrens Services,Education And Inclusion,Sen/Inclusion,Other Local Authorities,Third Pp - Other Local Auth,PC101,16/12/2021,704196,1000,REVENUE,REDACTED PERSONAL INFORMATION,REDACTED PERSONAL INFORMATION
North East Lincolnshire Council,http://statistics.data.gov.uk/id/local-authority/00FC),Childrens Services,Education And Inclusion,Sen/Inclusion,Other Local Authorities,Third Pp - Other Local Auth,PC101,01/12/2021,701386,5906.25,REVENUE,REDACTED PERSONAL INFORMATION,REDACTED PERSONAL INFORMATION
North East Lincolnshire Council,http://statistics.data.gov.uk/id/local-authority/00FC),Childrens Services,Education And Inclusion,Sen/Inclusion,Other Local Authorities,Third Pp - Other Local Auth,PC101,06/12/2021,701886,4725,REVENUE,REDACTED PERSONAL INFORMATION,REDACTED PERSONAL INFORMATION
North East Lincolnshire Council,http://statistics.data.gov.uk/id/local-authority/00FC),Childrens Services,Education And Inclusion,Sen/Inclusion,Other Local Authorities,Third Pp - Other Local Auth,PC101,10/12/2021,703085,29787,REVENUE,REDACTED PERSONAL INFORMATION,REDACTED PERSONAL INFORMATION
North East Lincolnshire Council,http://statistics.data.gov.uk/id/local-authority/00FC),Childrens Services,Education And Inclusion,Sen/Inclusion,Other Local Authorities,Third Pp - Other Local Auth,PC101,10/12/2021,703086,22696,REVENUE,REDACTED PERSONAL INFORMATION,REDACTED PERSONAL INFORMATION
North East Lincolnshire Council,http://statistics.data.gov.uk/id/local-authority/00FC),Childrens Services,Education And Inclusion,Sen/Inclusion,Other Local Authorities,Third Pp - Other Local Auth,PC101,10/12/2021,703087,22696,REVENUE,REDACTED PERSONAL INFORMATION,REDACTED PERSONAL INFORMATION
North East Lincolnshire Council,http://statistics.data.gov.uk/id/local-authority/00FC),Childrens Services,Education And Inclusion,Sen/Inclusion,Other Local Authorities,Third Pp - Other Local Auth,PC101,10/12/2021,703088,22696,REVENUE,REDACTED PERSONAL INFORMATION,REDACTED PERSONAL INFORMATION
North East Lincolnshire Council,http://statistics.data.gov.uk/id/local-authority/00FC),Childrens Services,Education And Inclusion,Sen/Inclusion,Other Local Authorities,Third Pp - Other Local Auth,PC101,10/12/2021,703089,24501,REVENUE,REDACTED PERSONAL INFORMATION,REDACTED PERSONAL INFORMATION
North East Lincolnshire Council,http://statistics.data.gov.uk/id/local-authority/00FC),Childrens Services,Education And Inclusion,Sen/Inclusion,Other Local Authorities,Third Pp - Other Local Auth,PC101,10/12/2021,703091,26452,REVENUE,REDACTED PERSONAL INFORMATION,REDACTED PERSONAL INFORMATION
North East Lincolnshire Council,http://statistics.data.gov.uk/id/local-authority/00FC),Childrens Services,Education And Inclusion,Sen/Inclusion,Other Local Authorities,Third Pp - Other Local Auth,PC101,10/12/2021,703092,26452,REVENUE,REDACTED PERSONAL INFORMATION,REDACTED PERSONAL INFORMATION
North East Lincolnshire Council,http://statistics.data.gov.uk/id/local-authority/00FC),Childrens Services,Education And Inclusion,Sen/Inclusion,Other Local Authorities,Third Pp - Other Local Auth,PC101,10/12/2021,703093,26452,REVENUE,REDACTED PERSONAL INFORMATION,REDACTED PERSONAL INFORMATION
North East Lincolnshire Council,http://statistics.data.gov.uk/id/local-authority/00FC),Childrens Services,Education And Inclusion,Sen/Inclusion,Other Local Authorities,Third Pp - Other Local Auth,PC101,10/12/2021,703095,4725,REVENUE,REDACTED PERSONAL INFORMATION,REDACTED PERSONAL INFORMATION
North East Lincolnshire Council,http://statistics.data.gov.uk/id/local-authority/00FC),Childrens Services,Education And Inclusion,Sen/Inclusion,Other Local Authorities,Third Pp - Other Local Auth,PC101,10/12/2021,703096,4725,REVENUE,REDACTED PERSONAL INFORMATION,REDACTED PERSONAL INFORMATION
North East Lincolnshire Council,http://statistics.data.gov.uk/id/local-authority/00FC),Childrens Services,Education And Inclusion,Sen/Inclusion,Other Local Authorities,Third Pp - Other Local Auth,PC101,10/12/2021,703105,4725,REVENUE,REDACTED PERSONAL INFORMATION,REDACTED PERSONAL INFORMATION
North East Lincolnshire Council,http://statistics.data.gov.uk/id/local-authority/00FC),Childrens Services,Education And Inclusion,Sen/Inclusion,Other Local Authorities,Third Pp - Other Local Auth,PC101,10/12/2021,703090,26452,REVENUE,REDACTED PERSONAL INFORMATION,REDACTED PERSONAL INFORMATION
North East Lincolnshire Council,http://statistics.data.gov.uk/id/local-authority/00FC),Childrens Services,Education And Inclusion,Sen/Inclusion,Other Local Authorities,Third Pp - Other Local Auth,PC101,10/12/2021,703104,2925,REVENUE,REDACTED PERSONAL INFORMATION,REDACTED PERSONAL INFORMATION
North East Lincolnshire Council,http://statistics.data.gov.uk/id/local-authority/00FC),Childrens Services,Education And Inclusion,Sen/Inclusion,Other Local Authorities,Third Pp - Other Local Auth,PC101,10/12/2021,703106,4725,REVENUE,REDACTED PERSONAL INFORMATION,REDACTED PERSONAL INFORMATION
North East Lincolnshire Council,http://statistics.data.gov.uk/id/local-authority/00FC),Childrens Services,Education And Inclusion,Sen/Inclusion,Other Local Authorities,Third Pp - Other Local Auth,PC101,10/12/2021,703107,4725,REVENUE,REDACTED PERSONAL INFORMATION,REDACTED PERSONAL INFORMATION
North East Lincolnshire Council,http://statistics.data.gov.uk/id/local-authority/00FC),Childrens Services,Education And Inclusion,Sen/Inclusion,Other Local Authorities,Third Pp - Other Local Auth,PC101,10/12/2021,703108,4725,REVENUE,REDACTED PERSONAL INFORMATION,REDACTED PERSONAL INFORMATION
North East Lincolnshire Council,http://statistics.data.gov.uk/id/local-authority/00FC),Childrens Services,Education And Inclusion,Sen/Inclusion,Other Local Authorities,Third Pp - Other Local Auth,PC101,10/12/2021,703109,1800,REVENUE,REDACTED PERSONAL INFORMATION,REDACTED PERSONAL INFORMATION
North East Lincolnshire Council,http://statistics.data.gov.uk/id/local-authority/00FC),Childrens Services,Education And Inclusion,Sen/Inclusion,Other Local Authorities,Third Pp - Other Local Auth,PC101,10/12/2021,703110,2925,REVENUE,REDACTED PERSONAL INFORMATION,REDACTED PERSONAL INFORMATION
North East Lincolnshire Council,http://statistics.data.gov.uk/id/local-authority/00FC),Childrens Services,Education And Inclusion,Sen/Inclusion,Other Local Authorities,Third Pp - Other Local Auth,PC101,10/12/2021,703111,4725,REVENUE,REDACTED PERSONAL INFORMATION,REDACTED PERSONAL INFORMATION
North East Lincolnshire Council,http://statistics.data.gov.uk/id/local-authority/00FC),Childrens Services,Education And Inclusion,Sen/Inclusion,Other Local Authorities,Third Pp - Other Local Auth,PC101,16/12/2021,704205,3543.75,REVENUE,REDACTED PERSONAL INFORMATION,REDACTED PERSONAL INFORMATION
North East Lincolnshire Council,http://statistics.data.gov.uk/id/local-authority/00FC),Childrens Services,Education And Inclusion,Sen/Inclusion,Other Local Authorities,Third Pp - Other Local Auth,PC101,16/12/2021,704206,2193.75,REVENUE,REDACTED PERSONAL INFORMATION,REDACTED PERSONAL INFORMATION
North East Lincolnshire Council,http://statistics.data.gov.uk/id/local-authority/00FC),Childrens Services,Education And Inclusion,Sen/Inclusion,Other Local Authorities,Third Pp - Other Local Auth,PC101,16/12/2021,704207,1350,REVENUE,REDACTED PERSONAL INFORMATION,REDACTED PERSONAL INFORMATION
North East Lincolnshire Council,http://statistics.data.gov.uk/id/local-authority/00FC),Childrens Services,Education And Inclusion,Sen/Inclusion,Other Local Authorities,Third Pp - Other Local Auth,PC101,16/12/2021,704208,3543.75,REVENUE,REDACTED PERSONAL INFORMATION,REDACTED PERSONAL INFORMATION
North East Lincolnshire Council,http://statistics.data.gov.uk/id/local-authority/00FC),Childrens Services,Education And Inclusion,Sen/Inclusion,Other Local Authorities,Third Pp - Other Local Auth,PC101,16/12/2021,704209,3543.75,REVENUE,REDACTED PERSONAL INFORMATION,REDACTED PERSONAL INFORMATION
North East Lincolnshire Council,http://statistics.data.gov.uk/id/local-authority/00FC),Childrens Services,Education And Inclusion,Sen/Inclusion,Other Local Authorities,Third Pp - Other Local Auth,PC101,16/12/2021,704210,3543.75,REVENUE,REDACTED PERSONAL INFORMATION,REDACTED PERSONAL INFORMATION
North East Lincolnshire Council,http://statistics.data.gov.uk/id/local-authority/00FC),Childrens Services,Education And Inclusion,Sen/Inclusion,Other Local Authorities,Third Pp - Other Local Auth,PC101,16/12/2021,704211,3543.75,REVENUE,REDACTED PERSONAL INFORMATION,REDACTED PERSONAL INFORMATION
North East Lincolnshire Council,http://statistics.data.gov.uk/id/local-authority/00FC),Childrens Services,Education And Inclusion,Sen/Inclusion,Other Local Authorities,Third Pp - Other Local Auth,PC101,16/12/2021,704212,3543.75,REVENUE,REDACTED PERSONAL INFORMATION,REDACTED PERSONAL INFORMATION
North East Lincolnshire Council,http://statistics.data.gov.uk/id/local-authority/00FC),Childrens Services,Education And Inclusion,Sen/Inclusion,Other Local Authorities,Third Pp - Other Local Auth,PC101,16/12/2021,704213,2193.75,REVENUE,REDACTED PERSONAL INFORMATION,REDACTED PERSONAL INFORMATION
North East Lincolnshire Council,http://statistics.data.gov.uk/id/local-authority/00FC),Childrens Services,Education And Inclusion,Sen/Inclusion,Other Local Authorities,Third Pp - Other Local Auth,PC101,16/12/2021,704214,3543.75,REVENUE,REDACTED PERSONAL INFORMATION,REDACTED PERSONAL INFORMATION
North East Lincolnshire Council,http://statistics.data.gov.uk/id/local-authority/00FC),Childrens Services,Education And Inclusion,Sen/Inclusion,Other Local Authorities,Third Pp - Other Local Auth,PC101,16/12/2021,704215,3543.75,REVENUE,REDACTED PERSONAL INFORMATION,REDACTED PERSONAL INFORMATION
North East Lincolnshire Council,http://statistics.data.gov.uk/id/local-authority/00FC),Childrens Services,Education And Inclusion,Sen/Inclusion,Other Local Authorities,Third Pp - Other Local Auth,PC101,14/12/2021,703925,57960,REVENUE,REDACTED PERSONAL INFORMATION,REDACTED PERSONAL INFORMATION
North East Lincolnshire Council,http://statistics.data.gov.uk/id/local-authority/00FC),Childrens Services,Education And Inclusion,Sen/Inclusion,Other Local Authorities,Third Pp - Other Local Auth,PC101,10/12/2021,703081,13651,REVENUE,REDACTED PERSONAL INFORMATION,REDACTED PERSONAL INFORMATION
North East Lincolnshire Council,http://statistics.data.gov.uk/id/local-authority/00FC),Childrens Services,Education And Inclusion,Sen/Inclusion,Other Local Authorities,Third Pp - Other Local Auth,PC101,15/12/2021,703969,4387.5,REVENUE,REDACTED PERSONAL INFORMATION,REDACTED PERSONAL INFORMATION
North East Lincolnshire Council,http://statistics.data.gov.uk/id/local-authority/00FC),Childrens Services,Education And Inclusion,Sen/Inclusion,Other Local Authorities,Third Pp - Other Local Auth,PC101,16/12/2021,704050,5854.5,REVENUE,REDACTED PERSONAL INFORMATION,REDACTED PERSONAL INFORMATION
North East Lincolnshire Council,http://statistics.data.gov.uk/id/local-authority/00FC),Childrens Services,Education And Inclusion,Sen/Inclusion,Other Local Authorities,Third Pp - Other Local Auth,PC101,16/12/2021,704051,1170,REVENUE,REDACTED PERSONAL INFORMATION,REDACTED PERSONAL INFORMATION
North East Lincolnshire Council,http://statistics.data.gov.uk/id/local-authority/00FC),Childrens Services,Education And Inclusion,Attainment & Progress,Direct Employee Expenses,Agency Supply Teachers,EA104,14/12/2021,703170,288.75,REVENUE,ZOE EVERATT,106842
North East Lincolnshire Council,http://statistics.data.gov.uk/id/local-authority/00FC),Childrens Services,Education And Inclusion,Attainment & Progress,Direct Employee Expenses,Agency Supply Teachers,EA104,15/12/2021,703274,350,REVENUE,MATT GIDLOW,103864
North East Lincolnshire Council,http://statistics.data.gov.uk/id/local-authority/00FC),Childrens Services,Education And Inclusion,Attainment & Progress,Direct Employee Expenses,Agency Supply Teachers,EA104,15/12/2021,703273,350,REVENUE,MATT GIDLOW,103864
North East Lincolnshire Council,http://statistics.data.gov.uk/id/local-authority/00FC),Childrens Services,Education And Inclusion,Attainment & Progress,Direct Employee Expenses,Agency Supply Teachers,EA104,01/12/2021,701422,350,REVENUE,DAVID PEARCE,139665
North East Lincolnshire Council,http://statistics.data.gov.uk/id/local-authority/00FC),Childrens Services,Education And Inclusion,Attainment & Progress,Direct Employee Expenses,Agency Supply Teachers,EA104,02/12/2021,701423,350,REVENUE,DAVID PEARCE,139665
North East Lincolnshire Council,http://statistics.data.gov.uk/id/local-authority/00FC),Childrens Services,Education And Inclusion,Attainment & Progress,Direct Employee Expenses,Agency Supply Teachers,EA104,15/12/2021,703276,350,REVENUE,MATT GIDLOW,103864
North East Lincolnshire Council,http://statistics.data.gov.uk/id/local-authority/00FC),Childrens Services,Education And Inclusion,Attainment & Progress,Direct Employee Expenses,Agency Supply Teachers,EA104,16/12/2021,704052,360,REVENUE,MUSIC LINCS LTD,100944
North East Lincolnshire Council,http://statistics.data.gov.uk/id/local-authority/00FC),Childrens Services,Education And Inclusion,Attainment & Progress,Direct Employee Expenses,Agency Supply Teachers,EA104,06/12/2021,702010,275,REVENUE,ELIZABETH GRIFFIN,139846
North East Lincolnshire Council,http://statistics.data.gov.uk/id/local-authority/00FC),Childrens Services,Education And Inclusion,Attainment & Progress,Direct Employee Expenses,Agency Supply Teachers,EA104,13/12/2021,703175,262.5,REVENUE,KEVIN ROGERS,101480
North East Lincolnshire Council,http://statistics.data.gov.uk/id/local-authority/00FC),Childrens Services,Education And Inclusion,Attainment & Progress,Direct Employee Expenses,Agency Supply Teachers,EA104,03/12/2021,701527,1400,REVENUE,DAVID PEARCE,139665
North East Lincolnshire Council,http://statistics.data.gov.uk/id/local-authority/00FC),Childrens Services,Education And Inclusion,Attainment & Progress,Direct Employee Expenses,Agency Supply Teachers,EA104,13/12/2021,703172,1800,REVENUE,ZOE EVERATT,106842
North East Lincolnshire Council,http://statistics.data.gov.uk/id/local-authority/00FC),Childrens Services,Education And Inclusion,Attainment & Progress,Direct Employee Expenses,Agency Supply Teachers,EA104,07/12/2021,702206,288.75,REVENUE,EMMA MIDDLETON,105103
North East Lincolnshire Council,http://statistics.data.gov.uk/id/local-authority/00FC),Childrens Services,Education And Inclusion,Attainment & Progress,Direct Employee Expenses,Agency Supply Teachers,EA104,16/12/2021,704036,550,REVENUE,MRS RUTH HART,101928
North East Lincolnshire Council,http://statistics.data.gov.uk/id/local-authority/00FC),Childrens Services,Education And Inclusion,Attainment & Progress,Private Contractors,Third Party Prov - Private,PH101,08/12/2021,702110,6000,REVENUE,STEPHEN WILD,149777
North East Lincolnshire Council,http://statistics.data.gov.uk/id/local-authority/00FC),Childrens Services,Education And Inclusion,Attainment & Progress,Other Agencies,Other,PJ121,08/12/2021,696950,1200,REVENUE,EMMA MIDDLETON,105103
North East Lincolnshire Council,http://statistics.data.gov.uk/id/local-authority/00FC),Childrens Services,Education And Inclusion,Attainment & Progress,Other Agencies,Other,PJ121,06/12/2021,702152,1200,REVENUE,EMMA MIDDLETON,105103
North East Lincolnshire Council,http://statistics.data.gov.uk/id/local-authority/00FC),Childrens Services,Education And Inclusion,Attainment & Progress,Other Agencies,Other,PJ121,06/12/2021,702155,1200,REVENUE,EMMA MIDDLETON,105103
North East Lincolnshire Council,http://statistics.data.gov.uk/id/local-authority/00FC),Childrens Services,Education And Inclusion,Attainment & Progress,Other Agencies,Other,PJ121,21/12/2021,705722,1200,REVENUE,EMMA MIDDLETON,105103
North East Lincolnshire Council,http://statistics.data.gov.uk/id/local-authority/00FC),Childrens Services,Education And Inclusion,Attainment & Progress,Other Agencies,Performers,PJ101,01/12/2021,701425,480,REVENUE,SUSAN J BOOTH,103257
North East Lincolnshire Council,http://statistics.data.gov.uk/id/local-authority/00FC),Childrens Services,Education And Inclusion,Attainment & Progress,Private Contractors,Third Party Prov - Private,PH101,07/12/2021,702068,16637.4,REVENUE,CLIMB 4 LTD,129154
North East Lincolnshire Council,http://statistics.data.gov.uk/id/local-authority/00FC),Childrens Services,Education And Inclusion,Attainment & Progress,Private Contractors,Third Party Prov - Private,PH101,07/12/2021,702067,50730,REVENUE,GRIMSBY TOWN SPORTS & EDUCATIONAL TRUST,114701
North East Lincolnshire Council,http://statistics.data.gov.uk/id/local-authority/00FC),Childrens Services,Education And Inclusion,Attainment & Progress,Private Contractors,Third Party Prov - Private,PH101,07/12/2021,702124,25000,REVENUE,GRIMSBY TOWN SPORTS & EDUCATIONAL TRUST,114701
North East Lincolnshire Council,http://statistics.data.gov.uk/id/local-authority/00FC),Childrens Services,Education And Inclusion,Attainment & Progress,Private Contractors,Third Party Prov - Private,PH101,16/12/2021,704055,-50730,REVENUE,GRIMSBY TOWN SPORTS & EDUCATIONAL TRUST,114701
North East Lincolnshire Council,http://statistics.data.gov.uk/id/local-authority/00FC),Childrens Services,Education And Inclusion,Attainment & Progress,Private Contractors,Third Party Prov - Private,PH101,16/12/2021,704058,-25000,REVENUE,GRIMSBY TOWN SPORTS & EDUCATIONAL TRUST,114701
North East Lincolnshire Council,http://statistics.data.gov.uk/id/local-authority/00FC),Childrens Services,Education And Inclusion,Attainment & Progress,Private Contractors,Third Party Prov - Private,PH101,07/12/2021,702071,102989,REVENUE,LINCS INSPIRE LTD,120610
North East Lincolnshire Council,http://statistics.data.gov.uk/id/local-authority/00FC),Childrens Services,Education And Inclusion,Attainment & Progress,Private Contractors,Third Party Prov - Private,PH101,16/12/2021,704056,-102989,REVENUE,LINCS INSPIRE LTD,120610
North East Lincolnshire Council,http://statistics.data.gov.uk/id/local-authority/00FC),Childrens Services,Education And Inclusion,Attainment & Progress,Private Contractors,Third Party Prov - Private,PH101,07/12/2021,702073,8640,REVENUE,MULTI SPORT PRO LTD,149367
North East Lincolnshire Council,http://statistics.data.gov.uk/id/local-authority/00FC),Childrens Services,Education And Inclusion,Attainment & Progress,Private Contractors,Third Party Prov - Private,PH101,16/12/2021,704057,-8640,REVENUE,MULTI SPORT PRO LTD,149367
North East Lincolnshire Council,http://statistics.data.gov.uk/id/local-authority/00FC),Childrens Services,Education And Inclusion,Attainment & Progress,Private Contractors,Third Party Prov - Private,PH101,07/12/2021,702069,14987,REVENUE,OASIS ACADEMY WINTRINGHAM,101939
North East Lincolnshire Council,http://statistics.data.gov.uk/id/local-authority/00FC),Childrens Services,Education And Inclusion,Attainment & Progress,Private Contractors,Third Party Prov - Private,PH101,14/12/2021,703146,605.34,REVENUE,OUTDOOR LEARNING SCHOOLS,124467
North East Lincolnshire Council,http://statistics.data.gov.uk/id/local-authority/00FC),Childrens Services,Education And Inclusion,Attainment & Progress,Private Contractors,Third Party Prov - Private,PH101,07/12/2021,702076,5112,REVENUE,POSITIVE ACTIVITIES,126463
North East Lincolnshire Council,http://statistics.data.gov.uk/id/local-authority/00FC),Childrens Services,Education And Inclusion,Pupil Supp Safeguard/Wellbeing,Other Agencies,Tuition,PJ112,21/12/2021,989627,250,REVENUE,REDACTED PERSONAL INFORMATION,REDACTED PERSONAL INFORMATION
North East Lincolnshire Council,http://statistics.data.gov.uk/id/local-authority/00FC),Childrens Services,Education And Inclusion,Pupil Supp Safeguard/Wellbeing,Other Agencies,Tuition,PJ112,07/12/2021,984330,250,REVENUE,REDACTED PERSONAL INFORMATION,REDACTED PERSONAL INFORMATION
North East Lincolnshire Council,http://statistics.data.gov.uk/id/local-authority/00FC),Childrens Services,Education And Inclusion,Pupil Supp Safeguard/Wellbeing,Other Agencies,Tuition,PJ112,21/12/2021,989628,250,REVENUE,REDACTED PERSONAL INFORMATION,REDACTED PERSONAL INFORMATION
North East Lincolnshire Council,http://statistics.data.gov.uk/id/local-authority/00FC),Childrens Services,Education And Inclusion,Pupil Supp Safeguard/Wellbeing,Other Agencies,Tuition,PJ112,14/12/2021,986349,300,REVENUE,REDACTED PERSONAL INFORMATION,REDACTED PERSONAL INFORMATION
North East Lincolnshire Council,http://statistics.data.gov.uk/id/local-authority/00FC),Childrens Services,Education And Inclusion,Pupil Supp Safeguard/Wellbeing,Other Agencies,Tuition,PJ112,14/12/2021,986173,325,REVENUE,REDACTED PERSONAL INFORMATION,REDACTED PERSONAL INFORMATION
North East Lincolnshire Council,http://statistics.data.gov.uk/id/local-authority/00FC),Childrens Services,Education And Inclusion,Pupil Supp Safeguard/Wellbeing,Other Agencies,Tuition,PJ112,06/12/2021,702048,986.25,REVENUE,AA RADIO CARS LTD,101222
North East Lincolnshire Council,http://statistics.data.gov.uk/id/local-authority/00FC),Childrens Services,Education And Inclusion,Pupil Supp Safeguard/Wellbeing,Other Agencies,Tuition,PJ112,06/12/2021,702020,500,REVENUE,NATIONAL ASSOCIATION OF VIRTUAL SCHOOL HEADS,135553
North East Lincolnshire Council,http://statistics.data.gov.uk/id/local-authority/00FC),Childrens Services,Education And Inclusion,Pupil Supp Safeguard/Wellbeing,Other Agencies,Tuition,PJ112,06/12/2021,702029,300,REVENUE,JEFF LAKE,142061
North East Lincolnshire Council,http://statistics.data.gov.uk/id/local-authority/00FC),Childrens Services,Education And Inclusion,Pupil Supp Safeguard/Wellbeing,Other Agencies,Tuition,PJ112,07/12/2021,702011,300,REVENUE,EDUCLA,147507
North East Lincolnshire Council,http://statistics.data.gov.uk/id/local-authority/00FC),Childrens Services,Education And Inclusion,Pupil Supp Safeguard/Wellbeing,Other Agencies,Tuition,PJ112,06/12/2021,702012,300,REVENUE,EDUCLA,147507
North East Lincolnshire Council,http://statistics.data.gov.uk/id/local-authority/00FC),Childrens Services,Education And Inclusion,Pupil Supp Safeguard/Wellbeing,Other Agencies,Tuition,PJ112,07/12/2021,702019,1462.5,REVENUE,LEARNING4LIFE-GY-CIC,144120
North East Lincolnshire Council,http://statistics.data.gov.uk/id/local-authority/00FC),Childrens Services,Education And Inclusion,Pupil Supp Safeguard/Wellbeing,Other Agencies,Tuition,PJ112,07/12/2021,702018,250,REVENUE,LINCS INSPIRE LTD,120610
North East Lincolnshire Council,http://statistics.data.gov.uk/id/local-authority/00FC),Childrens Services,Education And Inclusion,Pupil Supp Safeguard/Wellbeing,Other Agencies,Tuition,PJ112,06/12/2021,702013,300,REVENUE,EDUCLA,147507
North East Lincolnshire Council,http://statistics.data.gov.uk/id/local-authority/00FC),Childrens Services,Education And Inclusion,Pupil Supp Safeguard/Wellbeing,Other Agencies,Tuition,PJ112,07/12/2021,702014,300,REVENUE,EDUCLA,147507
North East Lincolnshire Council,http://statistics.data.gov.uk/id/local-authority/00FC),Childrens Services,Education And Inclusion,Pupil Supp Safeguard/Wellbeing,Other Agencies,Tuition,PJ112,08/12/2021,702515,350,REVENUE,SUE BURNHAM,145697
North East Lincolnshire Council,http://statistics.data.gov.uk/id/local-authority/00FC),Childrens Services,Education And Inclusion,Pupil Supp Safeguard/Wellbeing,Government Grants,Grants - Pupil Premium,VA102,21/12/2021,705048,2345,REVENUE,REDACTED PERSONAL INFORMATION,REDACTED PERSONAL INFORMATION
North East Lincolnshire Council,http://statistics.data.gov.uk/id/local-authority/00FC),Childrens Services,Education And Inclusion,Pupil Supp Safeguard/Wellbeing,Government Grants,Grants - Pupil Premium,VA102,21/12/2021,705020,6700,REVENUE,REDACTED PERSONAL INFORMATION,REDACTED PERSONAL INFORMATION
North East Lincolnshire Council,http://statistics.data.gov.uk/id/local-authority/00FC),Childrens Services,Education And Inclusion,Pupil Supp Safeguard/Wellbeing,Government Grants,Grants - Pupil Premium,VA102,21/12/2021,705068,1000,REVENUE,REDACTED PERSONAL INFORMATION,REDACTED PERSONAL INFORMATION
North East Lincolnshire Council,http://statistics.data.gov.uk/id/local-authority/00FC),Childrens Services,Education And Inclusion,Pupil Supp Safeguard/Wellbeing,Government Grants,Grants - Pupil Premium,VA102,21/12/2021,705041,1000,REVENUE,REDACTED PERSONAL INFORMATION,REDACTED PERSONAL INFORMATION
North East Lincolnshire Council,http://statistics.data.gov.uk/id/local-authority/00FC),Childrens Services,Education And Inclusion,Pupil Supp Safeguard/Wellbeing,Government Grants,Grants - Pupil Premium,VA102,21/12/2021,705038,2400,REVENUE,REDACTED PERSONAL INFORMATION,REDACTED PERSONAL INFORMATION
North East Lincolnshire Council,http://statistics.data.gov.uk/id/local-authority/00FC),Childrens Services,Education And Inclusion,Pupil Supp Safeguard/Wellbeing,Government Grants,Grants - Pupil Premium,VA102,21/12/2021,705071,3600,REVENUE,REDACTED PERSONAL INFORMATION,REDACTED PERSONAL INFORMATION
North East Lincolnshire Council,http://statistics.data.gov.uk/id/local-authority/00FC),Childrens Services,Education And Inclusion,Pupil Supp Safeguard/Wellbeing,Government Grants,Grants - Pupil Premium,VA102,21/12/2021,705078,2200,REVENUE,REDACTED PERSONAL INFORMATION,REDACTED PERSONAL INFORMATION
North East Lincolnshire Council,http://statistics.data.gov.uk/id/local-authority/00FC),Childrens Services,Education And Inclusion,Pupil Supp Safeguard/Wellbeing,Government Grants,Grants - Pupil Premium,VA102,21/12/2021,705063,6800,REVENUE,REDACTED PERSONAL INFORMATION,REDACTED PERSONAL INFORMATION
North East Lincolnshire Council,http://statistics.data.gov.uk/id/local-authority/00FC),Childrens Services,Education And Inclusion,Pupil Supp Safeguard/Wellbeing,Government Grants,Grants - Pupil Premium,VA102,21/12/2021,705111,6800,REVENUE,REDACTED PERSONAL INFORMATION,REDACTED PERSONAL INFORMATION
North East Lincolnshire Council,http://statistics.data.gov.uk/id/local-authority/00FC),Childrens Services,Education And Inclusion,Pupil Supp Safeguard/Wellbeing,Government Grants,Grants - Pupil Premium,VA102,21/12/2021,705092,10800,REVENUE,REDACTED PERSONAL INFORMATION,REDACTED PERSONAL INFORMATION
North East Lincolnshire Council,http://statistics.data.gov.uk/id/local-authority/00FC),Childrens Services,Education And Inclusion,Pupil Supp Safeguard/Wellbeing,Government Grants,Grants - Pupil Premium,VA102,21/12/2021,705082,4500,REVENUE,REDACTED PERSONAL INFORMATION,REDACTED PERSONAL INFORMATION
North East Lincolnshire Council,http://statistics.data.gov.uk/id/local-authority/00FC),Childrens Services,Education And Inclusion,Pupil Supp Safeguard/Wellbeing,Government Grants,Grants - Pupil Premium,VA102,21/12/2021,705094,5800,REVENUE,REDACTED PERSONAL INFORMATION,REDACTED PERSONAL INFORMATION
North East Lincolnshire Council,http://statistics.data.gov.uk/id/local-authority/00FC),Childrens Services,Safer And Partnerships,Young And Safe,Voluntary Associations,Third Pp - Third Sector,PF101,10/12/2021,703143,16125,REVENUE,THE BLUE DOOR,146428
North East Lincolnshire Council,http://statistics.data.gov.uk/id/local-authority/00FC),Childrens Services,Safer And Partnerships,Young And Safe,Indirect Employee Expenses,Staff Training,EB122,09/12/2021,702980,350,REVENUE,PAM ALLEN ASSOCIATES LTD,148650
North East Lincolnshire Council,http://statistics.data.gov.uk/id/local-authority/00FC),Childrens Services,Safer And Partnerships,Young And Safe,Rents,Room Hire,GC103,20/12/2021,704577,840,REVENUE,WEST MARSH DEVELOPMENT TRUST,105846
North East Lincolnshire Council,http://statistics.data.gov.uk/id/local-authority/00FC),Childrens Services,Safer And Partnerships,Young And Safe,Equip / Furniture / Materials,Equipment - Purchase,LA101,09/12/2021,702776,600,REVENUE,WEST MARSH DEVELOPMENT TRUST,105846
North East Lincolnshire Council,http://statistics.data.gov.uk/id/local-authority/00FC),Childrens Services,Safer And Partnerships,Young And Safe,Voluntary Associations,Third Pp - Third Sector,PF101,10/12/2021,703145,600,REVENUE,IAN COXAN,103410
North East Lincolnshire Council,http://statistics.data.gov.uk/id/local-authority/00FC),Childrens Services,Safer And Partnerships,Young And Safe,Voluntary Associations,Third Pp - Third Sector,PF101,10/12/2021,703144,10000,REVENUE,IAN COXAN,103410
North East Lincolnshire Council,http://statistics.data.gov.uk/id/local-authority/00FC),Childrens Services,Safer And Partnerships,Safeguard Board / Dom Violence,Private Contractors,Contract Payments,PH105,07/12/2021,702060,13250,REVENUE,EMPOWER EMPLOYABILITY MENTORING PROGRAMME,118831
North East Lincolnshire Council,http://statistics.data.gov.uk/id/local-authority/00FC),Childrens Services,Safer And Partnerships,Child Safeguarding Review Serv,Direct Employee Expenses,Agency Staff,EA105,09/12/2021,700559,2507.5,REVENUE,ATTENTI CONSULTING,146503
North East Lincolnshire Council,http://statistics.data.gov.uk/id/local-authority/00FC),Childrens Services,Safer And Partnerships,Child Safeguarding Review Serv,Direct Employee Expenses,Agency Staff,EA105,15/12/2021,701938,2507.5,REVENUE,ATTENTI CONSULTING,146503
North East Lincolnshire Council,http://statistics.data.gov.uk/id/local-authority/00FC),Childrens Services,Safer And Partnerships,Child Safeguarding Review Serv,Direct Employee Expenses,Agency Staff,EA105,09/12/2021,701771,1964.7,REVENUE,ATTENTI CONSULTING,146503
North East Lincolnshire Council,http://statistics.data.gov.uk/id/local-authority/00FC),Childrens Services,Childrens Trust,Palliative / Complex Care,Private Contractors,Third Party Prov - Private,PH101,06/12/2021,701913,1330,REVENUE,APOLLO HOME HEALTHCARE LIMITED,138437
North East Lincolnshire Council,http://statistics.data.gov.uk/id/local-authority/00FC),Childrens Services,Childrens Trust,Palliative / Complex Care,Private Contractors,Third Party Prov - Private,PH101,06/12/2021,701925,265.9,REVENUE,AK PAYROLL SERVICES LTD,145107
North East Lincolnshire Council,http://statistics.data.gov.uk/id/local-authority/00FC),Childrens Services,Childrens Trust,Palliative / Complex Care,Private Contractors,Third Party Prov - Private,PH101,06/12/2021,701923,1901.1,REVENUE,AK PAYROLL SERVICES LTD,145112
North East Lincolnshire Council,http://statistics.data.gov.uk/id/local-authority/00FC),Childrens Services,Childrens Trust,Palliative / Complex Care,Private Contractors,Third Party Prov - Private,PH101,06/12/2021,701924,990.06,REVENUE,AK PAYROLL SERVICES LTD,145109
North East Lincolnshire Council,http://statistics.data.gov.uk/id/local-authority/00FC),Childrens Services,Childrens Trust,Palliative / Complex Care,Private Contractors,Third Party Prov - Private,PH101,06/12/2021,701922,2975.66,REVENUE,AK PAYROLL SERVICES LTD,145106
North East Lincolnshire Council,http://statistics.data.gov.uk/id/local-authority/00FC),Childrens Services,Childrens Trust,Palliative / Complex Care,Private Contractors,Third Party Prov - Private,PH101,07/12/2021,701977,950,REVENUE,APOLLO HOME HEALTHCARE LIMITED,138437
North East Lincolnshire Council,http://statistics.data.gov.uk/id/local-authority/00FC),Childrens Services,Childrens Trust,Childrens Mental & Emot Health,Health Authorities,Third Pp - Health Auth,PD101,01/12/2021,701385,2420,REVENUE,G-MAP SERVICES,109932
North East Lincolnshire Council,http://statistics.data.gov.uk/id/local-authority/00FC),Childrens Services,Childrens Trust,Childrens Mental & Emot Health,Health Authorities,Third Pp - Health Auth,PD101,07/12/2021,702207,540,REVENUE,LOUISE HOWARTH,149653
North East Lincolnshire Council,http://statistics.data.gov.uk/id/local-authority/00FC),Childrens Services,Childrens Trust,Childrens Mental & Emot Health,Health Authorities,Third Pp - Health Auth,PD101,10/12/2021,703125,360,REVENUE,CUDOX WELLBEING CIC,148254
North East Lincolnshire Council,http://statistics.data.gov.uk/id/local-authority/00FC),Childrens Services,Childrens Trust,Childrens Mental & Emot Health,Health Authorities,Third Pp - Health Auth,PD101,15/12/2021,703986,590,REVENUE,TIME TO LISTEN LIMITED,140435
North East Lincolnshire Council,http://statistics.data.gov.uk/id/local-authority/00FC),Childrens Services,Childrens Trust,Childrens Mental & Emot Health,Health Authorities,Third Pp - Health Auth,PD101,20/12/2021,704418,800,REVENUE,FORTIS THERAPY & TRAINING,120445
North East Lincolnshire Council,http://statistics.data.gov.uk/id/local-authority/00FC),Childrens Services,Childrens Trust,Childrens Mental & Emot Health,Health Authorities,Third Pp - Health Auth,PD101,20/12/2021,704419,500,REVENUE,FORTIS THERAPY & TRAINING,120445
North East Lincolnshire Council,http://statistics.data.gov.uk/id/local-authority/00FC),Childrens Services,Childrens Trust,Childrens Mental & Emot Health,Private Contractors,Contract Payments,PH105,20/12/2021,704565,248705.75,REVENUE,LINCOLNSHIRE PARTNERSHIP NHS FOUNDATION TRUST,105021
North East Lincolnshire Council,http://statistics.data.gov.uk/id/local-authority/00FC),Childrens Services,Childrens Trust,Childrens Mental & Emot Health,Other Agencies,Top Up,PJ123,20/12/2021,704566,13799.91,REVENUE,LINCOLNSHIRE PARTNERSHIP NHS FOUNDATION TRUST,105021
North East Lincolnshire Council,http://statistics.data.gov.uk/id/local-authority/00FC),Childrens Services,Childrens Trust,Childrens Mental & Emot Health,Private Contractors,Contract Payments,PH105,16/12/2021,704088,6666.35,REVENUE,KOOTH DIGITAL HEALTH LIMITED,135941
North East Lincolnshire Council,http://statistics.data.gov.uk/id/local-authority/00FC),Childrens Services,Childrens Trust,Childrens Mental & Emot Health,Private Contractors,Contract Payments,PH105,01/12/2021,701529,61356.17,REVENUE,COMPASS SERVICES TO IMPROVE HEALTH,145810
North East Lincolnshire Council,http://statistics.data.gov.uk/id/local-authority/00FC),Childrens Services,Childrens Trust,Childrens Mental & Emot Health,Private Contractors,Contract Payments,PH105,13/12/2021,703291,29333.33,REVENUE,COMPASS SERVICES TO IMPROVE HEALTH,145810
North East Lincolnshire Council,http://statistics.data.gov.uk/id/local-authority/00FC),Childrens Services,Childrens Trust,Childrens Mental & Emot Health,Private Contractors,Contract Payments,PH105,21/12/2021,705750,90689.5,REVENUE,COMPASS SERVICES TO IMPROVE HEALTH,145810
North East Lincolnshire Council,http://statistics.data.gov.uk/id/local-authority/00FC),Childrens Services,Director - Children / Fam Serv,Director Children & Fam Serv,Private Contractors,Contract Payments,PH105,09/12/2021,702513,825,REVENUE,SIGNIS LTD,145139
North East Lincolnshire Council,http://statistics.data.gov.uk/id/local-authority/00FC),Childrens Services,Director - Children / Fam Serv,Director Children & Fam Serv,Private Contractors,Contract Payments,PH105,09/12/2021,702514,825,REVENUE,SIGNIS LTD,145139
North East Lincolnshire Council,http://statistics.data.gov.uk/id/local-authority/00FC),Childrens Services,Director - Children / Fam Serv,Director Children & Fam Serv,Direct Employee Expenses,Agency Staff,EA105,17/12/2021,703254,5500,REVENUE,GRAVITAS RECRUITMENT GROUP LTD,143484
North East Lincolnshire Council,http://statistics.data.gov.uk/id/local-authority/00FC),Childrens Services,Director - Children / Fam Serv,Director Children & Fam Serv,Direct Employee Expenses,Agency Staff,EA105,08/12/2021,702021,2500,REVENUE,GRAVITAS RECRUITMENT GROUP LTD,143484
North East Lincolnshire Council,http://statistics.data.gov.uk/id/local-authority/00FC),Childrens Services,Director - Children / Fam Serv,Director Children & Fam Serv,Direct Employee Expenses,Agency Staff,EA105,17/12/2021,703236,2500,REVENUE,GRAVITAS RECRUITMENT GROUP LTD,143484
North East Lincolnshire Council,http://statistics.data.gov.uk/id/local-authority/00FC),Childrens Services,Director - Children / Fam Serv,Director Children & Fam Serv,Direct Employee Expenses,Agency Staff,EA105,08/12/2021,702045,2400,REVENUE,GRAVITAS RECRUITMENT GROUP LTD,143484
North East Lincolnshire Council,http://statistics.data.gov.uk/id/local-authority/00FC),Childrens Services,Director - Children / Fam Serv,Director Children & Fam Serv,Direct Employee Expenses,Agency Staff,EA105,17/12/2021,703267,2400,REVENUE,GRAVITAS RECRUITMENT GROUP LTD,143484
North East Lincolnshire Council,http://statistics.data.gov.uk/id/local-authority/00FC),Childrens Services,Director - Children / Fam Serv,Director Children & Fam Serv,Direct Employee Expenses,Agency Staff,EA105,08/12/2021,701103,2400,REVENUE,GRAVITAS RECRUITMENT GROUP LTD,143484
North East Lincolnshire Council,http://statistics.data.gov.uk/id/local-authority/00FC),Childrens Services,Director - Children / Fam Serv,Director Children & Fam Serv,Direct Employee Expenses,Agency Staff,EA105,08/12/2021,702044,2400,REVENUE,GRAVITAS RECRUITMENT GROUP LTD,143484
North East Lincolnshire Council,http://statistics.data.gov.uk/id/local-authority/00FC),Childrens Services,Director - Children / Fam Serv,Director Children & Fam Serv,Direct Employee Expenses,Agency Staff,EA105,17/12/2021,703263,2400,REVENUE,GRAVITAS RECRUITMENT GROUP LTD,143484
North East Lincolnshire Council,http://statistics.data.gov.uk/id/local-authority/00FC),Childrens Services,Director - Children / Fam Serv,Director Children & Fam Serv,Direct Employee Expenses,Agency Staff,EA105,22/12/2021,703259,891.98,REVENUE,ON LINE PEOPLE LTD,144850
North East Lincolnshire Council,http://statistics.data.gov.uk/id/local-authority/00FC),Childrens Services,Safeguard & Early Help,Childrens Health,Rep Alterations Maint Building,Buildings - Fixtures And Fitt,GA104,06/12/2021,701859,292.7,REVENUE,ENGIE SERVICES LTD,133267
North East Lincolnshire Council,http://statistics.data.gov.uk/id/local-authority/00FC),Childrens Services,Safeguard & Early Help,Childrens Health,Indirect Employee Expenses,Staff Training,EB122,07/12/2021,702040,720,REVENUE,INSTITUTE OF HEALTH VISITING,135605
North East Lincolnshire Council,http://statistics.data.gov.uk/id/local-authority/00FC),Childrens Services,Safeguard & Early Help,Childrens Health,Indirect Employee Expenses,Staff Training,EB122,20/12/2021,704604,2700,REVENUE,ERIC,108869
North East Lincolnshire Council,http://statistics.data.gov.uk/id/local-authority/00FC),Childrens Services,Safeguard & Early Help,Childrens Health,Rents,Room Hire,GC103,15/12/2021,702122,303.5,REVENUE,CENTRE4 LIMITED,126893
North East Lincolnshire Council,http://statistics.data.gov.uk/id/local-authority/00FC),Childrens Services,Safeguard & Early Help,Childrens Health,Rents,Room Hire,GC103,20/12/2021,704680,480,REVENUE,IMMINGHAM TOWN COUNCIL,101597
North East Lincolnshire Council,http://statistics.data.gov.uk/id/local-authority/00FC),Childrens Services,Safeguard & Early Help,Childrens Health,Rents,Room Hire,GC103,20/12/2021,704681,750,REVENUE,IMMINGHAM TOWN COUNCIL,101597
North East Lincolnshire Council,http://statistics.data.gov.uk/id/local-authority/00FC),Childrens Services,Safeguard & Early Help,Childrens Health,Communications And Computing,Computer H/Ware - Purchases,LF105,13/12/2021,703214,770,REVENUE,TOTAL COMPUTER NETWORKS LTD,141310
North East Lincolnshire Council,http://statistics.data.gov.uk/id/local-authority/00FC),Childrens Services,Safeguard & Early Help,Childrens Health,Communications And Computing,Telephones,LF112,06/12/2021,688021,440,REVENUE,TOTAL COMPUTER NETWORKS LTD,141310
North East Lincolnshire Council,http://statistics.data.gov.uk/id/local-authority/00FC),Childrens Services,Safeguard & Early Help,Childrens Health,Indirect Employee Expenses,Staff Training,EB122,07/12/2021,701890,350,REVENUE,FOREFRONT TRAINING LTD,105501
North East Lincolnshire Council,http://statistics.data.gov.uk/id/local-authority/00FC),Childrens Services,Safeguard & Early Help,Head Of Corporate Parenting,Direct Employee Expenses,Agency Staff,EA105,09/12/2021,700557,3245,REVENUE,ATTENTI CONSULTING,146503
North East Lincolnshire Council,http://statistics.data.gov.uk/id/local-authority/00FC),Childrens Services,Safeguard & Early Help,Head Of Corporate Parenting,Direct Employee Expenses,Agency Staff,EA105,15/12/2021,701763,3245,REVENUE,ATTENTI CONSULTING,146503
North East Lincolnshire Council,http://statistics.data.gov.uk/id/local-authority/00FC),Childrens Services,Safeguard & Early Help,Head Of Corporate Parenting,Private Contractors,Third Party Prov - Private,PH101,20/12/2021,704458,3803.39,REVENUE,FOSTER CARE ASSOCIATES LIMITED,101455
North East Lincolnshire Council,http://statistics.data.gov.uk/id/local-authority/00FC),Childrens Services,Safeguard & Early Help,Head Of Corporate Parenting,Private Contractors,Third Party Prov - Private,PH101,20/12/2021,704472,3839.66,REVENUE,FOSTER CARE ASSOCIATES LIMITED,101455
North East Lincolnshire Council,http://statistics.data.gov.uk/id/local-authority/00FC),Childrens Services,Safeguard & Early Help,Head Of Corporate Parenting,Private Contractors,Third Party Prov - Private,PH101,20/12/2021,704433,3839.66,REVENUE,FOSTER CARE ASSOCIATES LIMITED,101455
North East Lincolnshire Council,http://statistics.data.gov.uk/id/local-authority/00FC),Childrens Services,Safeguard & Early Help,Head Of Corporate Parenting,Private Contractors,Third Party Prov - Private,PH101,07/12/2021,701789,829.99,REVENUE,SWIIS FOSTER CARE LTD,146857
North East Lincolnshire Council,http://statistics.data.gov.uk/id/local-authority/00FC),Childrens Services,Safeguard & Early Help,Head Of Corporate Parenting,Private Contractors,Third Party Prov - Private,PH101,07/12/2021,702070,829.99,REVENUE,SWIIS FOSTER CARE LTD,146857
North East Lincolnshire Council,http://statistics.data.gov.uk/id/local-authority/00FC),Childrens Services,Safeguard & Early Help,Head Of Corporate Parenting,Private Contractors,Third Party Prov - Private,PH101,15/12/2021,704001,829.99,REVENUE,SWIIS FOSTER CARE LTD,146857
North East Lincolnshire Council,http://statistics.data.gov.uk/id/local-authority/00FC),Childrens Services,Safeguard & Early Help,Head Of Corporate Parenting,Private Contractors,Third Party Prov - Private,PH101,20/12/2021,704463,829.99,REVENUE,SWIIS FOSTER CARE LTD,146857
North East Lincolnshire Council,http://statistics.data.gov.uk/id/local-authority/00FC),Childrens Services,Safeguard & Early Help,Head Of Corporate Parenting,Private Contractors,Third Party Prov - Private,PH101,20/12/2021,704462,3803.39,REVENUE,FOSTER CARE ASSOCIATES LIMITED,101455
North East Lincolnshire Council,http://statistics.data.gov.uk/id/local-authority/00FC),Childrens Services,Safeguard & Early Help,Head Of Corporate Parenting,Private Contractors,Third Party Prov - Private,PH101,07/12/2021,702486,3764.33,REVENUE,COMPASS FOSTERING LONDON LTD,149498
North East Lincolnshire Council,http://statistics.data.gov.uk/id/local-authority/00FC),Childrens Services,Safeguard & Early Help,Head Of Corporate Parenting,Private Contractors,Third Party Prov - Private,PH101,01/12/2021,700990,6650,REVENUE,LEARNING4LIFE-GY-CIC,144120
North East Lincolnshire Council,http://statistics.data.gov.uk/id/local-authority/00FC),Childrens Services,Safeguard & Early Help,Head Of Corporate Parenting,Private Contractors,Third Party Prov - Private,PH101,14/12/2021,703386,6650,REVENUE,LEARNING4LIFE-GY-CIC,144120
North East Lincolnshire Council,http://statistics.data.gov.uk/id/local-authority/00FC),Childrens Services,Safeguard & Early Help,Head Of Safeguarding,Direct Employee Expenses,Agency Staff,EA105,17/12/2021,702711,27487.1,REVENUE,ATTENTI CONSULTING,146503
North East Lincolnshire Council,http://statistics.data.gov.uk/id/local-authority/00FC),Childrens Services,Safeguard & Early Help,Head Of Safeguarding,Direct Employee Expenses,Agency Staff,EA105,09/12/2021,702690,1906.5,REVENUE,PARADIGM PROFESSIONAL CONSULTANCY LTD,129224
North East Lincolnshire Council,http://statistics.data.gov.uk/id/local-authority/00FC),Childrens Services,Safeguard & Early Help,Head Of Safeguarding,Direct Employee Expenses,Agency Staff,EA105,20/12/2021,704485,1537.5,REVENUE,PARADIGM PROFESSIONAL CONSULTANCY LTD,129224
North East Lincolnshire Council,http://statistics.data.gov.uk/id/local-authority/00FC),Childrens Services,Safeguard & Early Help,Head Of Safeguarding,Direct Employee Expenses,Agency Staff,EA105,20/12/2021,704712,1566,REVENUE,PARADIGM PROFESSIONAL CONSULTANCY LTD,129224
North East Lincolnshire Council,http://statistics.data.gov.uk/id/local-authority/00FC),Childrens Services,Safeguard & Early Help,Head Of Safeguarding,Direct Employee Expenses,Agency Staff,EA105,20/12/2021,704711,1612.5,REVENUE,PARADIGM PROFESSIONAL CONSULTANCY LTD,129224
North East Lincolnshire Council,http://statistics.data.gov.uk/id/local-authority/00FC),Childrens Services,Safeguard & Early Help,Head Of Safeguarding,Direct Employee Expenses,Agency Staff,EA105,20/12/2021,704710,1632.75,REVENUE,PARADIGM PROFESSIONAL CONSULTANCY LTD,129224
North East Lincolnshire Council,http://statistics.data.gov.uk/id/local-authority/00FC),Childrens Services,Safeguard & Early Help,Head Of Safeguarding,Public Transport,Public Transport - Serv User,JD102,21/12/2021,989629,577,REVENUE,REDACTED PERSONAL INFORMATION,REDACTED PERSONAL INFORMATION
North East Lincolnshire Council,http://statistics.data.gov.uk/id/local-authority/00FC),Childrens Services,Safeguard & Early Help,Head Of Safeguarding,Private Contractors,Third Party Prov - Private,PH101,09/12/2021,702815,35000,REVENUE,REDACTED PERSONAL INFORMATION,REDACTED PERSONAL INFORMATION
North East Lincolnshire Council,http://statistics.data.gov.uk/id/local-authority/00FC),Childrens Services,Safeguard & Early Help,Head Of Safeguarding,Private Contractors,Third Party Prov - Private,PH101,10/12/2021,702816,20000,REVENUE,REDACTED PERSONAL INFORMATION,REDACTED PERSONAL INFORMATION
North East Lincolnshire Council,http://statistics.data.gov.uk/id/local-authority/00FC),Childrens Services,Safeguard & Early Help,Head Of Safeguarding,Other Agencies,Section 17,PJ125,07/12/2021,983791,304,REVENUE,REDACTED PERSONAL INFORMATION,REDACTED PERSONAL INFORMATION
North East Lincolnshire Council,http://statistics.data.gov.uk/id/local-authority/00FC),Childrens Services,Safeguard & Early Help,Head Of Safeguarding,Other Agencies,Section 17,PJ125,14/12/2021,985734,304,REVENUE,REDACTED PERSONAL INFORMATION,REDACTED PERSONAL INFORMATION
North East Lincolnshire Council,http://statistics.data.gov.uk/id/local-authority/00FC),Childrens Services,Safeguard & Early Help,Head Of Safeguarding,Other Agencies,Section 17,PJ125,21/12/2021,989097,304,REVENUE,REDACTED PERSONAL INFORMATION,REDACTED PERSONAL INFORMATION
North East Lincolnshire Council,http://statistics.data.gov.uk/id/local-authority/00FC),Childrens Services,Safeguard & Early Help,Head Of Safeguarding,Other Agencies,Section 17,PJ125,21/12/2021,990165,304,REVENUE,REDACTED PERSONAL INFORMATION,REDACTED PERSONAL INFORMATION
North East Lincolnshire Council,http://statistics.data.gov.uk/id/local-authority/00FC),Childrens Services,Safeguard & Early Help,Head Of Safeguarding,Other Agencies,Section 17,PJ125,21/12/2021,991220,304,REVENUE,REDACTED PERSONAL INFORMATION,REDACTED PERSONAL INFORMATION
North East Lincolnshire Council,http://statistics.data.gov.uk/id/local-authority/00FC),Childrens Services,Safeguard & Early Help,Head Of Safeguarding,Other Agencies,Section 17,PJ125,02/12/2021,701620,250,REVENUE,FAMILY SAFEGUARDING SERVICE,110640
North East Lincolnshire Council,http://statistics.data.gov.uk/id/local-authority/00FC),Childrens Services,Safeguard & Early Help,Head Of Safeguarding,Other Agencies,Section 17,PJ125,24/12/2021,705955,2339.4,REVENUE,REDACTED PERSONAL INFORMATION,REDACTED PERSONAL INFORMATION
North East Lincolnshire Council,http://statistics.data.gov.uk/id/local-authority/00FC),Childrens Services,Safeguard & Early Help,Head Of Safeguarding,Direct Employee Expenses,Agency Staff,EA105,08/12/2021,701762,3245,REVENUE,ATTENTI CONSULTING,146503
North East Lincolnshire Council,http://statistics.data.gov.uk/id/local-authority/00FC),Childrens Services,Safeguard & Early Help,Head Of Safeguarding,Direct Employee Expenses,Agency Staff,EA105,17/12/2021,702705,3245,REVENUE,ATTENTI CONSULTING,146503
North East Lincolnshire Council,http://statistics.data.gov.uk/id/local-authority/00FC),Childrens Services,Safeguard & Early Help,Head Of Safeguarding,Direct Employee Expenses,Agency Staff,EA105,17/12/2021,704194,3245,REVENUE,ATTENTI CONSULTING,146503
North East Lincolnshire Council,http://statistics.data.gov.uk/id/local-authority/00FC),Childrens Services,Safeguard & Early Help,Head Of Safeguarding,Direct Employee Expenses,Agency Staff,EA105,08/12/2021,701766,2655,REVENUE,ATTENTI CONSULTING,146503
North East Lincolnshire Council,http://statistics.data.gov.uk/id/local-authority/00FC),Childrens Services,Safeguard & Early Help,Head Of Safeguarding,Direct Employee Expenses,Agency Staff,EA105,17/12/2021,702706,1858.5,REVENUE,ATTENTI CONSULTING,146503
North East Lincolnshire Council,http://statistics.data.gov.uk/id/local-authority/00FC),Childrens Services,Safeguard & Early Help,Head Of Safeguarding,Direct Employee Expenses,Agency Staff,EA105,17/12/2021,704190,2655,REVENUE,ATTENTI CONSULTING,146503
North East Lincolnshire Council,http://statistics.data.gov.uk/id/local-authority/00FC),Childrens Services,Safeguard & Early Help,Head Of Safeguarding,Direct Employee Expenses,Agency Staff,EA105,07/12/2021,702443,304,REVENUE,ESSENTIAL SAFEGUARDING,147739
North East Lincolnshire Council,http://statistics.data.gov.uk/id/local-authority/00FC),Childrens Services,Safeguard & Early Help,Head Of Safeguarding,Direct Employee Expenses,Agency Staff,EA105,20/12/2021,704696,1517,REVENUE,ESSENTIAL SAFEGUARDING,147739
North East Lincolnshire Council,http://statistics.data.gov.uk/id/local-authority/00FC),Childrens Services,Safeguard & Early Help,Court And Cp Service,Rents,Room Hire,GC103,16/12/2021,701526,306,REVENUE,ART REGENERATION & COMMUNITY HERITAGE,135607
North East Lincolnshire Council,http://statistics.data.gov.uk/id/local-authority/00FC),Childrens Services,Safeguard & Early Help,Court And Cp Service,Direct Employee Expenses,Agency Staff,EA105,17/12/2021,702613,29447.44,REVENUE,ICS OPERATIONS LTD,141788
North East Lincolnshire Council,http://statistics.data.gov.uk/id/local-authority/00FC),Childrens Services,Safeguard & Early Help,Court And Cp Service,Direct Employee Expenses,Agency Staff,EA105,20/12/2021,704692,29447.44,REVENUE,ICS OPERATIONS LTD,141788
North East Lincolnshire Council,http://statistics.data.gov.uk/id/local-authority/00FC),Childrens Services,Safeguard & Early Help,Court And Cp Service,Direct Employee Expenses,Agency Staff,EA105,20/12/2021,704694,1013.63,REVENUE,ICS OPERATIONS LTD,141788
North East Lincolnshire Council,http://statistics.data.gov.uk/id/local-authority/00FC),Childrens Services,Safeguard & Early Help,Court And Cp Service,Direct Employee Expenses,Agency Staff,EA105,20/12/2021,704695,1023.98,REVENUE,ICS OPERATIONS LTD,141788
North East Lincolnshire Council,http://statistics.data.gov.uk/id/local-authority/00FC),Childrens Services,Safeguard & Early Help,Court And Cp Service,Direct Employee Expenses,Agency Staff,EA105,21/12/2021,704698,29447.44,REVENUE,ICS OPERATIONS LTD,141788
North East Lincolnshire Council,http://statistics.data.gov.uk/id/local-authority/00FC),Childrens Services,Safeguard & Early Help,Court And Cp Service,Public Transport,Public Transport - Serv User,JD102,16/12/2021,703941,260.31,REVENUE,CLICK TRAVEL,127476
North East Lincolnshire Council,http://statistics.data.gov.uk/id/local-authority/00FC),Childrens Services,Safeguard & Early Help,Court And Cp Service,Public Transport,Public Transport - Serv User,JD102,16/12/2021,703941,875.5,REVENUE,CLICK TRAVEL,127476
North East Lincolnshire Council,http://statistics.data.gov.uk/id/local-authority/00FC),Childrens Services,Safeguard & Early Help,Court And Cp Service,Communications And Computing,Computer S/Ware - Purchases,LF101,17/12/2021,704233,320.28,REVENUE,BALLICOM LIMITED,149429
North East Lincolnshire Council,http://statistics.data.gov.uk/id/local-authority/00FC),Childrens Services,Safeguard & Early Help,Court And Cp Service,Miscellaneous Expenses,Legal Fees - General,LL103,01/12/2021,701514,250,REVENUE,SILLS AND BETTERIDGE SOLICITORS,106757
North East Lincolnshire Council,http://statistics.data.gov.uk/id/local-authority/00FC),Childrens Services,Safeguard & Early Help,Court And Cp Service,Miscellaneous Expenses,Legal Fees - General,LL103,16/12/2021,704086,775.73,REVENUE,JOHN BARKER SOLICITORS,146152
North East Lincolnshire Council,http://statistics.data.gov.uk/id/local-authority/00FC),Childrens Services,Safeguard & Early Help,Court And Cp Service,Government Departments,Third Party Prov - Govt Depts,PE101,01/12/2021,700997,450,REVENUE,DR V L PHIPPS,142994
North East Lincolnshire Council,http://statistics.data.gov.uk/id/local-authority/00FC),Childrens Services,Safeguard & Early Help,Court And Cp Service,Private Contractors,Third Party Prov - Private,PH101,09/12/2021,702803,550,REVENUE,CORAM BEANSTALK,145504
North East Lincolnshire Council,http://statistics.data.gov.uk/id/local-authority/00FC),Childrens Services,Safeguard & Early Help,Court And Cp Service,Private Contractors,Third Party Prov - Private,PH101,07/12/2021,702000,2059.5,REVENUE,PSYCHOLOGY EXPERTS LTD,146277
North East Lincolnshire Council,http://statistics.data.gov.uk/id/local-authority/00FC),Childrens Services,Safeguard & Early Help,Court And Cp Service,Private Contractors,Third Party Prov - Private,PH101,06/12/2021,701934,2250,REVENUE,JULIE DAVIS,149281
North East Lincolnshire Council,http://statistics.data.gov.uk/id/local-authority/00FC),Childrens Services,Safeguard & Early Help,Court And Cp Service,Private Contractors,Third Party Prov - Private,PH101,20/12/2021,704416,440,REVENUE,TIME TO LISTEN LIMITED,140435
North East Lincolnshire Council,http://statistics.data.gov.uk/id/local-authority/00FC),Childrens Services,Safeguard & Early Help,Court And Cp Service,Other Agencies,Childminders/Nurseries/Playgrp,PJ127,07/12/2021,701975,1224.93,REVENUE,SPRINGFIELD DAY NURSERY LTD,147560
North East Lincolnshire Council,http://statistics.data.gov.uk/id/local-authority/00FC),Childrens Services,Safeguard & Early Help,Court And Cp Service,Other Agencies,Childminders/Nurseries/Playgrp,PJ127,17/12/2021,704377,490.5,REVENUE,TEC PARTNERSHIP - LITTLE STARS NURSERY,149044
North East Lincolnshire Council,http://statistics.data.gov.uk/id/local-authority/00FC),Childrens Services,Safeguard & Early Help,Court And Cp Service,Other Agencies,Childminders/Nurseries/Playgrp,PJ127,20/12/2021,704417,1458.25,REVENUE,SPRINGFIELD DAY NURSERY LTD,147560
North East Lincolnshire Council,http://statistics.data.gov.uk/id/local-authority/00FC),Childrens Services,Safeguard & Early Help,Court And Cp Service,Other Agencies,Section 17,PJ125,21/12/2021,989043,400,REVENUE,REDACTED PERSONAL INFORMATION,REDACTED PERSONAL INFORMATION
North East Lincolnshire Council,http://statistics.data.gov.uk/id/local-authority/00FC),Childrens Services,Safeguard & Early Help,Court And Cp Service,Other Agencies,Section 17,PJ125,21/12/2021,992319,3900,REVENUE,REDACTED PERSONAL INFORMATION,REDACTED PERSONAL INFORMATION
North East Lincolnshire Council,http://statistics.data.gov.uk/id/local-authority/00FC),Childrens Services,Safeguard & Early Help,Court And Cp Service,Other Agencies,Section 17,PJ125,21/12/2021,992315,2076,REVENUE,REDACTED PERSONAL INFORMATION,REDACTED PERSONAL INFORMATION
North East Lincolnshire Council,http://statistics.data.gov.uk/id/local-authority/00FC),Childrens Services,Safeguard & Early Help,Court And Cp Service,Other Agencies,Section 17,PJ125,02/12/2021,701620,343.66,REVENUE,FAMILY SAFEGUARDING SERVICE,110640
North East Lincolnshire Council,http://statistics.data.gov.uk/id/local-authority/00FC),Childrens Services,Safeguard & Early Help,Court And Cp Service,Other Agencies,Section 17,PJ125,21/12/2021,704489,360,REVENUE,FAMILY SAFEGUARDING SERVICE,110640
North East Lincolnshire Council,http://statistics.data.gov.uk/id/local-authority/00FC),Childrens Services,Safeguard & Early Help,Court And Cp Service,Other Agencies,Section 17,PJ125,16/12/2021,987998,346,REVENUE,REDACTED PERSONAL INFORMATION,REDACTED PERSONAL INFORMATION
North East Lincolnshire Council,http://statistics.data.gov.uk/id/local-authority/00FC),Childrens Services,Safeguard & Early Help,Advice And Inspection,Indirect Employee Expenses,Staff Training,EB122,13/12/2021,703211,300,REVENUE,DR CHRISTIAN PERRIN,148638
North East Lincolnshire Council,http://statistics.data.gov.uk/id/local-authority/00FC),Childrens Services,Safeguard & Early Help,Advice And Inspection,Indirect Employee Expenses,Staff Training,EB122,21/12/2021,704697,7200,REVENUE,TRACEY HILL TRAINING & CONSULTANCY LIMITED,121786
North East Lincolnshire Council,http://statistics.data.gov.uk/id/local-authority/00FC),Childrens Services,Safeguard & Early Help,Advice And Inspection,Indirect Employee Expenses,Staff Training,EB122,08/12/2021,701753,4462.5,REVENUE,DARTINGTON HALL TRUST,135861
North East Lincolnshire Council,http://statistics.data.gov.uk/id/local-authority/00FC),Childrens Services,Safeguard & Early Help,Advice And Inspection,Indirect Employee Expenses,Staff Training,EB122,08/12/2021,701753,850,REVENUE,DARTINGTON HALL TRUST,135861
North East Lincolnshire Council,http://statistics.data.gov.uk/id/local-authority/00FC),Childrens Services,Safeguard & Early Help,Advice And Inspection,Indirect Employee Expenses,Staff Training,EB122,20/12/2021,704576,300,REVENUE,DR CHRISTIAN PERRIN,148638
North East Lincolnshire Council,http://statistics.data.gov.uk/id/local-authority/00FC),Childrens Services,Safeguard & Early Help,Advice And Inspection,Direct Employee Expenses,Agency Staff,EA105,14/12/2021,699424,5000,REVENUE,GRAVITAS RECRUITMENT GROUP LTD,143484
North East Lincolnshire Council,http://statistics.data.gov.uk/id/local-authority/00FC),Childrens Services,Safeguard & Early Help,Advice And Inspection,Direct Employee Expenses,Agency Staff,EA105,14/12/2021,703355,2500,REVENUE,GRAVITAS RECRUITMENT GROUP LTD,143484
North East Lincolnshire Council,http://statistics.data.gov.uk/id/local-authority/00FC),Childrens Services,Safeguard & Early Help,Advice And Inspection,Direct Employee Expenses,Agency Staff,EA105,14/12/2021,703356,5000,REVENUE,GRAVITAS RECRUITMENT GROUP LTD,143484
North East Lincolnshire Council,http://statistics.data.gov.uk/id/local-authority/00FC),Childrens Services,Safeguard & Early Help,Cs Commissioning Service,Private Contractors,Third Party Prov - Private,PH101,16/12/2021,704198,6428.7,REVENUE,REDACTED PERSONAL INFORMATION,REDACTED PERSONAL INFORMATION
North East Lincolnshire Council,http://statistics.data.gov.uk/id/local-authority/00FC),Childrens Services,Safeguard & Early Help,Cs Commissioning Service,Private Contractors,Third Party Prov - Private,PH101,13/12/2021,703231,20012.36,REVENUE,REDACTED PERSONAL INFORMATION,REDACTED PERSONAL INFORMATION
North East Lincolnshire Council,http://statistics.data.gov.uk/id/local-authority/00FC),Childrens Services,Safeguard & Early Help,Cs Commissioning Service,Private Contractors,Third Party Prov - Private,PH101,01/12/2021,701511,2121.43,REVENUE,REDACTED PERSONAL INFORMATION,REDACTED PERSONAL INFORMATION
North East Lincolnshire Council,http://statistics.data.gov.uk/id/local-authority/00FC),Childrens Services,Safeguard & Early Help,Cs Commissioning Service,Private Contractors,Third Party Prov - Private,PH101,16/12/2021,704204,15632.68,REVENUE,REDACTED PERSONAL INFORMATION,REDACTED PERSONAL INFORMATION
North East Lincolnshire Council,http://statistics.data.gov.uk/id/local-authority/00FC),Childrens Services,Safeguard & Early Help,Cs Commissioning Service,Private Contractors,Third Party Prov - Private,PH101,16/12/2021,704202,15632.68,REVENUE,REDACTED PERSONAL INFORMATION,REDACTED PERSONAL INFORMATION
North East Lincolnshire Council,http://statistics.data.gov.uk/id/local-authority/00FC),Childrens Services,Safeguard & Early Help,Cs Commissioning Service,Private Contractors,Third Party Prov - Private,PH101,13/12/2021,703233,19650,REVENUE,REDACTED PERSONAL INFORMATION,REDACTED PERSONAL INFORMATION
North East Lincolnshire Council,http://statistics.data.gov.uk/id/local-authority/00FC),Childrens Services,Safeguard & Early Help,Cs Commissioning Service,Private Contractors,Third Party Prov - Private,PH101,13/12/2021,703230,13671.43,REVENUE,REDACTED PERSONAL INFORMATION,REDACTED PERSONAL INFORMATION
North East Lincolnshire Council,http://statistics.data.gov.uk/id/local-authority/00FC),Childrens Services,Safeguard & Early Help,Cs Commissioning Service,Private Contractors,Third Party Prov - Private,PH101,10/12/2021,703082,17785.71,REVENUE,REDACTED PERSONAL INFORMATION,REDACTED PERSONAL INFORMATION
North East Lincolnshire Council,http://statistics.data.gov.uk/id/local-authority/00FC),Childrens Services,Safeguard & Early Help,Cs Commissioning Service,Private Contractors,Third Party Prov - Private,PH101,01/12/2021,701523,15500,REVENUE,REDACTED PERSONAL INFORMATION,REDACTED PERSONAL INFORMATION
North East Lincolnshire Council,http://statistics.data.gov.uk/id/local-authority/00FC),Childrens Services,Safeguard & Early Help,Cs Commissioning Service,Private Contractors,Third Party Prov - Private,PH101,06/12/2021,701891,17121.3,REVENUE,REDACTED PERSONAL INFORMATION,REDACTED PERSONAL INFORMATION
North East Lincolnshire Council,http://statistics.data.gov.uk/id/local-authority/00FC),Childrens Services,Safeguard & Early Help,Cs Commissioning Service,Private Contractors,Third Party Prov - Private,PH101,01/12/2021,701517,4298.14,REVENUE,REDACTED PERSONAL INFORMATION,REDACTED PERSONAL INFORMATION
North East Lincolnshire Council,http://statistics.data.gov.uk/id/local-authority/00FC),Childrens Services,Safeguard & Early Help,Cs Commissioning Service,Private Contractors,Third Party Prov - Private,PH101,01/12/2021,701413,25431.86,REVENUE,REDACTED PERSONAL INFORMATION,REDACTED PERSONAL INFORMATION
North East Lincolnshire Council,http://statistics.data.gov.uk/id/local-authority/00FC),Childrens Services,Safeguard & Early Help,Cs Commissioning Service,Private Contractors,Third Party Prov - Private,PH101,20/12/2021,704496,26279.58,REVENUE,REDACTED PERSONAL INFORMATION,REDACTED PERSONAL INFORMATION
North East Lincolnshire Council,http://statistics.data.gov.uk/id/local-authority/00FC),Childrens Services,Safeguard & Early Help,Cs Commissioning Service,Private Contractors,Third Party Prov - Private,PH101,16/12/2021,704197,22692.86,REVENUE,REDACTED PERSONAL INFORMATION,REDACTED PERSONAL INFORMATION
North East Lincolnshire Council,http://statistics.data.gov.uk/id/local-authority/00FC),Childrens Services,Safeguard & Early Help,Cs Commissioning Service,Private Contractors,Third Party Prov - Private,PH101,01/12/2021,701524,21921.42,REVENUE,REDACTED PERSONAL INFORMATION,REDACTED PERSONAL INFORMATION
North East Lincolnshire Council,http://statistics.data.gov.uk/id/local-authority/00FC),Childrens Services,Safeguard & Early Help,Cs Commissioning Service,Private Contractors,Third Party Prov - Private,PH101,01/12/2021,701412,25437.51,REVENUE,REDACTED PERSONAL INFORMATION,REDACTED PERSONAL INFORMATION
North East Lincolnshire Council,http://statistics.data.gov.uk/id/local-authority/00FC),Childrens Services,Safeguard & Early Help,Cs Commissioning Service,Private Contractors,Third Party Prov - Private,PH101,13/12/2021,703232,23142.9,REVENUE,REDACTED PERSONAL INFORMATION,REDACTED PERSONAL INFORMATION
North East Lincolnshire Council,http://statistics.data.gov.uk/id/local-authority/00FC),Childrens Services,Safeguard & Early Help,Cs Commissioning Service,Private Contractors,Third Party Prov - Private,PH101,10/12/2021,703113,25620,REVENUE,REDACTED PERSONAL INFORMATION,REDACTED PERSONAL INFORMATION
North East Lincolnshire Council,http://statistics.data.gov.uk/id/local-authority/00FC),Childrens Services,Safeguard & Early Help,Cs Commissioning Service,Private Contractors,Third Party Prov - Private,PH101,16/12/2021,704199,21642.9,REVENUE,REDACTED PERSONAL INFORMATION,REDACTED PERSONAL INFORMATION
North East Lincolnshire Council,http://statistics.data.gov.uk/id/local-authority/00FC),Childrens Services,Safeguard & Early Help,Cs Commissioning Service,Private Contractors,Third Party Prov - Private,PH101,01/12/2021,701390,1008.56,REVENUE,REDACTED PERSONAL INFORMATION,REDACTED PERSONAL INFORMATION
North East Lincolnshire Council,http://statistics.data.gov.uk/id/local-authority/00FC),Childrens Services,Safeguard & Early Help,Cs Commissioning Service,Private Contractors,Third Party Prov - Private,PH101,16/12/2021,704201,15632.68,REVENUE,REDACTED PERSONAL INFORMATION,REDACTED PERSONAL INFORMATION
North East Lincolnshire Council,http://statistics.data.gov.uk/id/local-authority/00FC),Childrens Services,Safeguard & Early Help,Cs Commissioning Service,Private Contractors,Third Party Prov - Private,PH101,01/12/2021,701389,1008.56,REVENUE,REDACTED PERSONAL INFORMATION,REDACTED PERSONAL INFORMATION
North East Lincolnshire Council,http://statistics.data.gov.uk/id/local-authority/00FC),Childrens Services,Safeguard & Early Help,Cs Commissioning Service,Private Contractors,Third Party Prov - Private,PH101,16/12/2021,704200,14624.12,REVENUE,REDACTED PERSONAL INFORMATION,REDACTED PERSONAL INFORMATION
North East Lincolnshire Council,http://statistics.data.gov.uk/id/local-authority/00FC),Childrens Services,Safeguard & Early Help,Cs Commissioning Service,Private Contractors,Third Party Prov - Private,PH101,01/12/2021,701411,22439,REVENUE,REDACTED PERSONAL INFORMATION,REDACTED PERSONAL INFORMATION
North East Lincolnshire Council,http://statistics.data.gov.uk/id/local-authority/00FC),Childrens Services,Safeguard & Early Help,Cs Commissioning Service,Private Contractors,Third Party Prov - Private,PH101,06/12/2021,701885,28440,REVENUE,REDACTED PERSONAL INFORMATION,REDACTED PERSONAL INFORMATION
North East Lincolnshire Council,http://statistics.data.gov.uk/id/local-authority/00FC),Childrens Services,Safeguard & Early Help,Cs Commissioning Service,Private Contractors,Third Party Prov - Private,PH101,01/12/2021,701410,13285.67,REVENUE,REDACTED PERSONAL INFORMATION,REDACTED PERSONAL INFORMATION
North East Lincolnshire Council,http://statistics.data.gov.uk/id/local-authority/00FC),Childrens Services,Safeguard & Early Help,Cs Commissioning Service,Private Contractors,Third Party Prov - Private,PH101,17/12/2021,702819,12857.1,REVENUE,REDACTED PERSONAL INFORMATION,REDACTED PERSONAL INFORMATION
North East Lincolnshire Council,http://statistics.data.gov.uk/id/local-authority/00FC),Childrens Services,Safeguard & Early Help,Cs Commissioning Service,Private Contractors,Third Party Prov - Private,PH101,17/12/2021,704364,4949.98,REVENUE,REDACTED PERSONAL INFORMATION,REDACTED PERSONAL INFORMATION
North East Lincolnshire Council,http://statistics.data.gov.uk/id/local-authority/00FC),Childrens Services,Safeguard & Early Help,Cs Commissioning Service,Private Contractors,Third Party Prov - Private,PH101,20/12/2021,704670,7700,REVENUE,REDACTED PERSONAL INFORMATION,REDACTED PERSONAL INFORMATION
North East Lincolnshire Council,http://statistics.data.gov.uk/id/local-authority/00FC),Childrens Services,Safeguard & Early Help,Cs Commissioning Service,Private Contractors,Third Party Prov - Private,PH101,20/12/2021,704668,21800,REVENUE,REDACTED PERSONAL INFORMATION,REDACTED PERSONAL INFORMATION
North East Lincolnshire Council,http://statistics.data.gov.uk/id/local-authority/00FC),Childrens Services,Safeguard & Early Help,Cs Commissioning Service,Private Contractors,Third Party Prov - Private,PH101,20/12/2021,704673,29538,REVENUE,REDACTED PERSONAL INFORMATION,REDACTED PERSONAL INFORMATION
North East Lincolnshire Council,http://statistics.data.gov.uk/id/local-authority/00FC),Childrens Services,Safeguard & Early Help,Cs Commissioning Service,Private Contractors,Third Party Prov - Private,PH101,10/12/2021,702784,8283,REVENUE,REDACTED PERSONAL INFORMATION,REDACTED PERSONAL INFORMATION
North East Lincolnshire Council,http://statistics.data.gov.uk/id/local-authority/00FC),Childrens Services,Safeguard & Early Help,Cs Commissioning Service,Private Contractors,Third Party Prov - Private,PH101,24/12/2021,705915,1134,REVENUE,REDACTED PERSONAL INFORMATION,REDACTED PERSONAL INFORMATION
North East Lincolnshire Council,http://statistics.data.gov.uk/id/local-authority/00FC),Childrens Services,Safeguard & Early Help,Cs Commissioning Service,Miscellaneous Expenses,Other Expenses General,LL119,15/12/2021,703972,375,REVENUE,HEATHER WOOD,128562
North East Lincolnshire Council,http://statistics.data.gov.uk/id/local-authority/00FC),Childrens Services,Safeguard & Early Help,Cs Commissioning Service,Miscellaneous Expenses,Other Expenses General,LL119,15/12/2021,703971,375,REVENUE,HEATHER WOOD,128562
North East Lincolnshire Council,http://statistics.data.gov.uk/id/local-authority/00FC),Childrens Services,Safeguard & Early Help,Cs Commissioning Service,Private Contractors,Third Party Prov - Private,PH101,20/12/2021,704429,3416.2,REVENUE,FOSTER CARE ASSOCIATES LIMITED,101455
North East Lincolnshire Council,http://statistics.data.gov.uk/id/local-authority/00FC),Childrens Services,Safeguard & Early Help,Cs Commissioning Service,Private Contractors,Third Party Prov - Private,PH101,20/12/2021,704427,3416.2,REVENUE,FOSTER CARE ASSOCIATES LIMITED,101455
North East Lincolnshire Council,http://statistics.data.gov.uk/id/local-authority/00FC),Childrens Services,Safeguard & Early Help,Cs Commissioning Service,Private Contractors,Third Party Prov - Private,PH101,07/12/2021,702133,3135.6,REVENUE,TREE HOUSE CARE FOSTERING SOLUTIONS LTD,101150
North East Lincolnshire Council,http://statistics.data.gov.uk/id/local-authority/00FC),Childrens Services,Safeguard & Early Help,Cs Commissioning Service,Private Contractors,Third Party Prov - Private,PH101,07/12/2021,702131,3179.1,REVENUE,TREE HOUSE CARE FOSTERING SOLUTIONS LTD,101150
North East Lincolnshire Council,http://statistics.data.gov.uk/id/local-authority/00FC),Childrens Services,Safeguard & Early Help,Cs Commissioning Service,Private Contractors,Third Party Prov - Private,PH101,20/12/2021,704442,3676.6,REVENUE,FOSTER CARE ASSOCIATES LIMITED,101455
North East Lincolnshire Council,http://statistics.data.gov.uk/id/local-authority/00FC),Childrens Services,Safeguard & Early Help,Cs Commissioning Service,Private Contractors,Third Party Prov - Private,PH101,20/12/2021,704436,3676.6,REVENUE,FOSTER CARE ASSOCIATES LIMITED,101455
North East Lincolnshire Council,http://statistics.data.gov.uk/id/local-authority/00FC),Childrens Services,Safeguard & Early Help,Cs Commissioning Service,Private Contractors,Third Party Prov - Private,PH101,16/12/2021,704179,3339.81,REVENUE,THE NATIONAL FOSTERING AGENCY,112225
North East Lincolnshire Council,http://statistics.data.gov.uk/id/local-authority/00FC),Childrens Services,Safeguard & Early Help,Cs Commissioning Service,Private Contractors,Third Party Prov - Private,PH101,16/12/2021,704178,3407.9,REVENUE,THE NATIONAL FOSTERING AGENCY,112225
North East Lincolnshire Council,http://statistics.data.gov.uk/id/local-authority/00FC),Childrens Services,Safeguard & Early Help,Cs Commissioning Service,Private Contractors,Third Party Prov - Private,PH101,06/12/2021,701870,3740.27,REVENUE,FOSTERPLUS LTD,145485
North East Lincolnshire Council,http://statistics.data.gov.uk/id/local-authority/00FC),Childrens Services,Safeguard & Early Help,Cs Commissioning Service,Private Contractors,Third Party Prov - Private,PH101,20/12/2021,704408,3864.94,REVENUE,FOSTERPLUS LTD,145485
North East Lincolnshire Council,http://statistics.data.gov.uk/id/local-authority/00FC),Childrens Services,Safeguard & Early Help,Cs Commissioning Service,Private Contractors,Third Party Prov - Private,PH101,06/12/2021,701871,3148.8,REVENUE,UNITY FOSTER CARE LTD,144562
North East Lincolnshire Council,http://statistics.data.gov.uk/id/local-authority/00FC),Childrens Services,Safeguard & Early Help,Cs Commissioning Service,Private Contractors,Third Party Prov - Private,PH101,07/12/2021,702080,3253.76,REVENUE,UNITY FOSTER CARE LTD,144562
North East Lincolnshire Council,http://statistics.data.gov.uk/id/local-authority/00FC),Childrens Services,Safeguard & Early Help,Cs Commissioning Service,Private Contractors,Third Party Prov - Private,PH101,06/12/2021,701869,4815.6,REVENUE,UNITY FOSTER CARE LTD,144562
North East Lincolnshire Council,http://statistics.data.gov.uk/id/local-authority/00FC),Childrens Services,Safeguard & Early Help,Cs Commissioning Service,Private Contractors,Third Party Prov - Private,PH101,07/12/2021,702077,4976.12,REVENUE,UNITY FOSTER CARE LTD,144562
North East Lincolnshire Council,http://statistics.data.gov.uk/id/local-authority/00FC),Childrens Services,Safeguard & Early Help,Cs Commissioning Service,Private Contractors,Third Party Prov - Private,PH101,07/12/2021,702489,3548.1,REVENUE,PARALLEL PARENTS,145652
North East Lincolnshire Council,http://statistics.data.gov.uk/id/local-authority/00FC),Childrens Services,Safeguard & Early Help,Cs Commissioning Service,Private Contractors,Third Party Prov - Private,PH101,06/12/2021,701876,3155.1,REVENUE,ORANGE GROVE FOSTERCARE LTD,135118
North East Lincolnshire Council,http://statistics.data.gov.uk/id/local-authority/00FC),Childrens Services,Safeguard & Early Help,Cs Commissioning Service,Private Contractors,Third Party Prov - Private,PH101,20/12/2021,704412,3260.27,REVENUE,ORANGE GROVE FOSTERCARE LTD,135118
